Workbook

Sheet Main
B10: 2022-09-30
B12: Sheet No. | C12: Template Name | D12: Summary
B13: 1 | C13: Future Intra | D13: For Intraday trading in F&O segment
B14: 2 | C14: Cash Intra | D14: For Intraday trading in cash market segment
B15: 3 | C15: Mid-cap Intra | D15: For Intraday trading in Mid-cap stocks
B16: 4 | C16: Bulk Deals | D16: Reveals Bulk Deals carried on NSE & BSE
B17: 5 | C17: Call Tracker
K27: `

Sheet Future Intra
M5: Back to Main Page
A6: FOR INTRA DAY TRADING | L6: =Main!B10 -> 2022-09-30
A9: Sr.no | B9: Sector | C9: Scrip | D9: Expiry Date | E9: CLOSE RATE | F9: Pivot Point | G9: Supports | J9: Resistances
E10: Point | F10: Point | G10: S1 | H10: S2 | I10: S3 | J10: R1 | K10: R2 | L10: R3 | M10: HIGH | N10: LOW | O10: OI | P10: % Change in OI
A11: 1 | B11: Index | C11: NIFTY | D11: 2022-10-27 | E11: 16833.30 | F11: 16897.40 | G11: 16735.90 | H11: 16638.50 | I11: 16477.00 | J11: 16994.80 | K11: 17156.30 | L11: 17253.70 | M11: 17058.9 | N11: 16800 | O11: 12160100 | P11: -13.36%
A12: 2 | B12: Index | C12: BANKNIFTY | D12: 2022-10-27 | E12: 37861.30 | F12: 38010.97 | G12: 37561.93 | H12: 37262.57 | I12: 36813.53 | J12: 38310.33 | K12: 38759.37 | L12: 39058.73 | M12: 38460 | N12: 37711.6 | O12: 2354125 | P12: -14.36%
A13: 3 | B13: Index | C13: FINNIFTY | D13: 2022-10-25 | E13: 17203.65 | F13: 17268.25 | G13: 17076.50 | H13: 16949.35 | I13: 16757.60 | J13: 17395.40 | K13: 17587.15 | L13: 17714.30 | M13: 17460 | N13: 17141.1 | O13: 6000 | P13: 23.97%
A14: 4 | B14: Index | C14: MIDCPNIFTY | D14: 2022-10-25 | E14: 7110.00 | F14: 7146.15 | G14: 7073.85 | H14: 7037.70 | I14: 6965.40 | J14: 7182.30 | K14: 7254.60 | L14: 7290.75 | M14: 7218.45 | N14: 7110 | O14: 450 | P14: 20.00%
A15: 5 | B15: Chemical | C15: AARTIIND | D15: 2022-10-27 | E15: 736.30 | F15: 751.35 | G15: 713.70 | H15: 691.10 | I15: 653.45 | J15: 773.95 | K15: 811.60 | L15: 834.20 | M15: 789 | N15: 728.75 | O15: 2946950 | P15: 0.23%
A16: 6 | B16: Capital_Goods | C16: ABB | D16: 2022-10-27 | E16: 3017.80 | F16: 3022.97 | G16: 2981.08 | H16: 2944.37 | I16: 2902.48 | J16: 3059.68 | K16: 3101.57 | L16: 3138.28 | M16: 3064.85 | N16: 2986.25 | O16: 1307500 | P16: -8.29%
A17: 7 | B17: Pharma | C17: ABBOTINDIA | D17: 2022-10-27 | E17: 19247.50 | F17: 18955.35 | G17: 18590.70 | H17: 17933.90 | I17: 17569.25 | J17: 19612.15 | K17: 19976.80 | L17: 20633.60 | M17: 19320 | N17: 18298.55 | O17: 49840 | P17: -8.85%
A18: 8 | B18: Others | C18: ABCAPITAL | D18: 2022-10-27 | E18: 110.00 | F18: 109.65 | G18: 108.65 | H18: 107.30 | I18: 106.30 | J18: 111.00 | K18: 112.00 | L18: 113.35 | M18: 110.65 | N18: 108.3 | O18: 22572000 | P18: -7.62%
A19: 9 | B19: Textile | C19: ABFRL | D19: 2022-10-27 | E19: 339.30 | F19: 337.35 | G19: 333.70 | H19: 328.10 | I19: 324.45 | J19: 342.95 | K19: 346.60 | L19: 352.20 | M19: 341 | N19: 331.75 | O19: 8686600 | P19: -3.77%
A20: 10 | B20: Cement | C20: ACC | D20: 2022-10-27 | E20: 2386.80 | F20: 2372.82 | G20: 2349.68 | H20: 2312.57 | I20: 2289.43 | J20: 2409.93 | K20: 2433.07 | L20: 2470.18 | M20: 2395.95 | N20: 2335.7 | O20: 4444000 | P20: 0.86%
A21: 11 | B21: Others | C21: ADANIENT | D21: 2022-10-27 | E21: 3480.95 | F21: 3536.28 | G21: 3399.67 | H21: 3318.38 | I21: 3181.77 | J21: 3617.57 | K21: 3754.18 | L21: 3835.47 | M21: 3672.9 | N21: 3455 | O21: 16851500 | P21: -2.25%
A22: 12 | B22: Others | C22: ADANIPORTS | D22: 2022-10-27 | E22: 820.50 | F22: 829.17 | G22: 807.53 | H22: 794.57 | I22: 772.93 | J22: 842.13 | K22: 863.77 | L22: 876.73 | M22: 850.8 | N22: 816.2 | O22: 68332500 | P22: -1.58%
A23: 13 | B23: Pharma | C23: ALKEM | D23: 2022-10-27 | E23: 3246.80 | F23: 3220.05 | G23: 3171.30 | H23: 3095.80 | I23: 3047.05 | J23: 3295.55 | K23: 3344.30 | L23: 3419.80 | M23: 3268.8 | N23: 3144.55 | O23: 370400 | P23: -41.19%
A24: 14 | B24: Automobile | C24: AMARAJABAT | D24: 2022-10-27 | E24: 485.70 | F24: 487.50 | G24: 479.95 | H24: 474.20 | I24: 466.65 | J24: 493.25 | K24: 500.80 | L24: 506.55 | M24: 495.05 | N24: 481.75 | O24: 6124000 | P24: -4.30%
A25: 15 | B25: Cement | C25: AMBUJACEM | D25: 2022-10-27 | E25: 509.25 | F25: 509.73 | G25: 497.27 | H25: 485.28 | I25: 472.82 | J25: 521.72 | K25: 534.18 | L25: 546.17 | M25: 522.2 | N25: 497.75 | O25: 59745600 | P25: -2.65%
A26: 16 | B26: Others | C26: APOLLOHOSP | D26: 2022-10-27 | E26: 4402.95 | F26: 4371.95 | G26: 4329.25 | H26: 4255.55 | I26: 4212.85 | J26: 4445.65 | K26: 4488.35 | L26: 4562.05 | M26: 4414.65 | N26: 4298.25 | O26: 1428375 | P26: -6.04%
A27: 17 | B27: Automobile | C27: APOLLOTYRE | D27: 2022-10-27 | E27: 272.60 | F27: 274.37 | G27: 269.48 | H27: 266.37 | I27: 261.48 | J27: 277.48 | K27: 282.37 | L27: 285.48 | M27: 279.25 | N27: 271.25 | O27: 11088000 | P27: -11.58%
A28: 18 | B28: Automobile | C28: ASHOKLEY | D28: 2022-10-27 | E28: 150.25 | F28: 151.00 | G28: 148.65 | H28: 147.05 | I28: 144.70 | J28: 152.60 | K28: 154.95 | L28: 156.55 | M28: 153.35 | N28: 149.4 | O28: 47675000 | P28: -10.55%
A29: 19 | B29: FMCG | C29: ASIANPAINT | D29: 2022-10-27 | E29: 3395.05 | F29: 3454.28 | G29: 3323.82 | H29: 3252.58 | I29: 3122.12 | J29: 3525.52 | K29: 3655.98 | L29: 3727.22 | M29: 3584.75 | N29: 3383.05 | O29: 5403400 | P29: -4.25%
A30: 20 | B30: Others | C30: ASTRAL | D30: 2022-10-27 | E30: 2169.70 | F30: 2183.77 | G30: 2142.18 | H30: 2114.67 | I30: 2073.08 | J30: 2211.28 | K30: 2252.87 | L30: 2280.38 | M30: 2225.35 | N30: 2156.25 | O30: 1151700 | P30: -8.10%
A31: 21 | B31: Others | C31: ATUL | D31: 2022-10-27 | E31: 8939.85 | F31: 8900.05 | G31: 8821.00 | H31: 8702.15 | I31: 8623.10 | J31: 9018.90 | K31: 9097.95 | L31: 9216.80 | M31: 8979.1 | N31: 8781.2 | O31: 168375 | P31: -5.27%
A32: 22 | B32: Banking | C32: AUBANK | D32: 2022-10-27 | E32: 602.55 | F32: 601.18 | G32: 591.37 | H32: 580.18 | I32: 570.37 | J32: 612.37 | K32: 622.18 | L32: 633.37 | M32: 611 | N32: 590 | O32: 5284000 | P32: -11.93%
A33: 23 | B33: Pharma | C33: AUROPHARMA | D33: 2022-10-27 | E33: 512.50 | F33: 510.57 | G33: 507.28 | H33: 502.07 | I33: 498.78 | J33: 515.78 | K33: 519.07 | L33: 524.28 | M33: 513.85 | N33: 505.35 | O33: 13714000 | P33: -5.15%
A34: 24 | B34: Banking | C34: AXISBANK | D34: 2022-10-27 | E34: 721.05 | F34: 722.98 | G34: 711.07 | H34: 701.08 | I34: 689.17 | J34: 732.97 | K34: 744.88 | L34: 754.87 | M34: 734.9 | N34: 713 | O34: 46465200 | P34: 4.02%
A35: 25 | B35: Automobile | C35: BAJAJ-AUTO | D35: 2022-10-27 | E35: 3476.75 | F35: 3497.40 | G35: 3444.35 | H35: 3411.95 | I35: 3358.90 | J35: 3529.80 | K35: 3582.85 | L35: 3615.25 | M35: 3550.45 | N35: 3465 | O35: 2471750 | P35: -5.69%
A36: 26 | B36: Finance | C36: BAJAJFINSV | D36: 2022-10-27 | E36: 1635.55 | F36: 1644.25 | G36: 1619.55 | H36: 1603.55 | I36: 1578.85 | J36: 1660.25 | K36: 1684.95 | L36: 1700.95 | M36: 1668.95 | N36: 1628.25 | O36: 6989500 | P36: -19.54%
A37: 27 | B37: Finance | C37: BAJFINANCE | D37: 2022-10-27 | E37: 7143.70 | F37: 7211.62 | G37: 7059.38 | H37: 6975.07 | I37: 6822.83 | J37: 7295.93 | K37: 7448.17 | L37: 7532.48 | M37: 7363.85 | N37: 7127.3 | O37: 3933375 | P37: -2.61%
A38: 28 | B38: Automobile | C38: BALKRISIND | D38: 2022-10-27 | E38: 1853.70 | F38: 1867.33 | G38: 1834.67 | H38: 1815.63 | I38: 1782.97 | J38: 1886.37 | K38: 1919.03 | L38: 1938.07 | M38: 1900 | N38: 1848.3 | O38: 2770500 | P38: -6.36%
A39: 29 | B39: Others | C39: BALRAMCHIN | D39: 2022-10-27 | E39: 343.75 | F39: 345.77 | G39: 338.68 | H39: 333.62 | I39: 326.53 | J39: 350.83 | K39: 357.92 | L39: 362.98 | M39: 352.85 | N39: 340.7 | O39: 6675200 | P39: -13.03%
A40: 30 | B40: Banking | C40: BANDHANBNK | D40: 2022-10-27 | E40: 261.30 | F40: 259.62 | G40: 256.73 | H40: 252.17 | I40: 249.28 | J40: 264.18 | K40: 267.07 | L40: 271.63 | M40: 262.5 | N40: 255.05 | O40: 27721800 | P40: -6.07%
A41: 31 | B41: Banking | C41: BANKBARODA | D41: 2022-10-27 | E41: 128.20 | F41: 128.33 | G41: 125.87 | H41: 123.53 | I41: 121.07 | J41: 130.67 | K41: 133.13 | L41: 135.47 | M41: 130.8 | N41: 126 | O41: 83742750 | P41: -7.84%
A42: 32 | B42: FMCG | C42: BATAINDIA | D42: 2022-10-27 | E42: 1793.75 | F42: 1792.67 | G42: 1765.83 | H42: 1737.92 | I42: 1711.08 | J42: 1820.58 | K42: 1847.42 | L42: 1875.33 | M42: 1819.5 | N42: 1764.75 | O42: 1874125 | P42: -18.28%
A43: 33 | B43: Capital_Goods | C43: BEL | D43: 2022-10-27 | E43: 99.55 | F43: 99.92 | G43: 98.53 | H43: 97.52 | I43: 96.13 | J43: 100.93 | K43: 102.32 | L43: 103.33 | M43: 101.3 | N43: 98.9 | O43: 86537400 | P43: -17.62%
A44: 34 | B44: FMCG | C44: BERGEPAINT | D44: 2022-10-27 | E44: 622.35 | F44: 624.72 | G44: 612.63 | H44: 602.92 | I44: 590.83 | J44: 634.43 | K44: 646.52 | L44: 656.23 | M44: 636.8 | N44: 615 | O44: 6904700 | P44: -5.15%
A45: 35 | B45: Automobile | C45: BHARATFORG | D45: 2022-10-27 | E45: 690.15 | F45: 693.30 | G45: 676.85 | H45: 663.55 | I45: 647.10 | J45: 706.60 | K45: 723.05 | L45: 736.35 | M45: 709.75 | N45: 680 | O45: 6673000 | P45: -9.54%
A46: 36 | B46: Telecom | C46: BHARTIARTL | D46: 2022-10-27 | E46: 758.90 | F46: 759.38 | G46: 755.02 | H46: 751.13 | I46: 746.77 | J46: 763.27 | K46: 767.63 | L46: 771.52 | M46: 763.75 | N46: 755.5 | O46: 40131800 | P46: -25.36%
A47: 37 | B47: Capital_Goods | C47: BHEL | D47: 2022-10-27 | E47: 58.85 | F47: 58.52 | G47: 57.93 | H47: 57.02 | I47: 56.43 | J47: 59.43 | K47: 60.02 | L47: 60.93 | M47: 59.1 | N47: 57.6 | O47: 113421000 | P47: -14.61%
A48: 38 | B48: Pharma | C48: BIOCON | D48: 2022-10-27 | E48: 287.95 | F48: 288.27 | G48: 285.53 | H48: 283.12 | I48: 280.38 | J48: 290.68 | K48: 293.42 | L48: 295.83 | M48: 291 | N48: 285.85 | O48: 18452900 | P48: -14.33%
A49: 39 | B49: Automobile | C49: BOSCHLTD | D49: 2022-10-27 | E49: 15692.40 | F49: 15659.15 | G49: 15418.30 | H49: 15144.20 | I49: 14903.35 | J49: 15933.25 | K49: 16174.10 | L49: 16448.20 | M49: 15900 | N49: 15385.05 | O49: 199500 | P49: -7.89%
A50: 40 | B50: Oil_Gas | C50: BPCL | D50: 2022-10-27 | E50: 304.90 | F50: 306.47 | G50: 302.33 | H50: 299.77 | I50: 295.63 | J50: 309.03 | K50: 313.17 | L50: 315.73 | M50: 310.6 | N50: 303.9 | O50: 16444800 | P50: -8.48%
A51: 41 | B51: FMCG | C51: BRITANNIA | D51: 2022-10-27 | E51: 3874.15 | F51: 3863.32 | G51: 3841.63 | H51: 3809.12 | I51: 3787.43 | J51: 3895.83 | K51: 3917.52 | L51: 3950.03 | M51: 3885 | N51: 3830.8 | O51: 1432200 | P51: -9.30%
A52: 42 | B52: Technology | C52: BSOFT | D52: 2022-10-27 | E52: 282.55 | F52: 284.97 | G52: 278.48 | H52: 274.42 | I52: 267.93 | J52: 289.03 | K52: 295.52 | L52: 299.58 | M52: 291.45 | N52: 280.9 | O52: 8360300 | P52: -8.61%
A53: 43 | B53: Banking | C53: CANBK | D53: 2022-10-27 | E53: 216.05 | F53: 216.40 | G53: 212.85 | H53: 209.65 | I53: 206.10 | J53: 219.60 | K53: 223.15 | L53: 226.35 | M53: 219.95 | N53: 213.2 | O53: 38072700 | P53: -17.44%
A54: 44 | B54: Finance | C54: CANFINHOME | D54: 2022-10-27 | E54: 471.65 | F54: 472.80 | G54: 465.60 | H54: 459.55 | I54: 452.35 | J54: 478.85 | K54: 486.05 | L54: 492.10 | M54: 480 | N54: 466.75 | O54: 5998200 | P54: -11.26%
A55: 45 | B55: Others | C55: CHAMBLFERT | D55: 2022-10-27 | E55: 309.95 | F55: 309.15 | G55: 305.60 | H55: 301.25 | I55: 297.70 | J55: 313.50 | K55: 317.05 | L55: 321.40 | M55: 312.7 | N55: 304.8 | O55: 5260500 | P55: -9.94%
A56: 46 | B56: Finance | C56: CHOLAFIN | D56: 2022-10-27 | E56: 728.90 | F56: 728.45 | G56: 718.95 | H56: 709.00 | I56: 699.50 | J56: 738.40 | K56: 747.90 | L56: 757.85 | M56: 737.95 | N56: 718.5 | O56: 5942500 | P56: -10.47%
A57: 47 | B57: Pharma | C57: CIPLA | D57: 2022-10-27 | E57: 1110.20 | F57: 1104.17 | G57: 1092.38 | H57: 1074.57 | I57: 1062.78 | J57: 1121.98 | K57: 1133.77 | L57: 1151.58 | M57: 1115.95 | N57: 1086.35 | O57: 7893600 | P57: -15.69%
A58: 48 | B58: Others | C58: COALINDIA | D58: 2022-10-27 | E58: 214.40 | F58: 214.13 | G58: 212.27 | H58: 210.13 | I58: 208.27 | J58: 216.27 | K58: 218.13 | L58: 220.27 | M58: 216 | N58: 212 | O58: 33339600 | P58: -14.08%
A59: 49 | B59: Technology | C59: COFORGE | D59: 2022-10-27 | E59: 3358.40 | F59: 3377.17 | G59: 3302.33 | H59: 3246.27 | I59: 3171.43 | J59: 3433.23 | K59: 3508.07 | L59: 3564.13 | M59: 3452 | N59: 3321.1 | O59: 660750 | P59: -17.52%
A60: 50 | B60: FMCG | C60: COLPAL | D60: 2022-10-27 | E60: 1610.00 | F60: 1604.27 | G60: 1591.48 | H60: 1572.97 | I60: 1560.18 | J60: 1622.78 | K60: 1635.57 | L60: 1654.08 | M60: 1617.05 | N60: 1585.75 | O60: 2158100 | P60: -12.44%
A61: 51 | B61: Others | C61: CONCOR | D61: 2022-10-27 | E61: 698.05 | F61: 695.88 | G61: 690.17 | H61: 682.28 | I61: 676.57 | J61: 703.77 | K61: 709.48 | L61: 717.37 | M61: 701.6 | N61: 688 | O61: 6969000 | P61: -9.51%
A62: 52 | B62: Others | C62: COROMANDEL | D62: 2022-10-27 | E62: 988.20 | F62: 987.98 | G62: 972.57 | H62: 956.93 | I62: 941.52 | J62: 1003.62 | K62: 1019.03 | L62: 1034.67 | M62: 1003.4 | N62: 972.35 | O62: 922600 | P62: -22.70%
A63: 53 | B63: Capital_Goods | C63: CROMPTON | D63: 2022-10-27 | E63: 404.00 | F63: 401.82 | G63: 397.63 | H63: 391.27 | I63: 387.08 | J63: 408.18 | K63: 412.37 | L63: 418.73 | M63: 406 | N63: 395.45 | O63: 3619500 | P63: -5.85%
A64: 54 | B64: Banking | C64: CUB | D64: 2022-10-27 | E64: 171.15 | F64: 170.72 | G64: 167.93 | H64: 164.72 | I64: 161.93 | J64: 173.93 | K64: 176.72 | L64: 179.93 | M64: 173.5 | N64: 167.5 | O64: 4300000 | P64: -37.82%
A65: 55 | B65: Capital_Goods | C65: CUMMINSIND | D65: 2022-10-27 | E65: 1185.40 | F65: 1186.47 | G65: 1165.43 | H65: 1145.47 | I65: 1124.43 | J65: 1206.43 | K65: 1227.47 | L65: 1247.43 | M65: 1207.5 | N65: 1166.5 | O65: 3229200 | P65: -6.56%
A66: 56 | B66: FMCG | C66: DABUR | D66: 2022-10-27 | E66: 577.25 | F66: 574.58 | G66: 569.22 | H66: 561.18 | I66: 555.82 | J66: 582.62 | K66: 587.98 | L66: 596.02 | M66: 579.95 | N66: 566.55 | O66: 10221250 | P66: 2.79%
A67: 57 | B67: Cement | C67: DALBHARAT | D67: 2022-10-27 | E67: 1555.00 | F67: 1546.25 | G67: 1529.90 | H67: 1504.80 | I67: 1488.45 | J67: 1571.35 | K67: 1587.70 | L67: 1612.80 | M67: 1562.6 | N67: 1521.15 | O67: 1284000 | P67: -14.31%
A68: 58 | B68: Chemical | C68: DEEPAKNTR | D68: 2022-10-27 | E68: 1983.85 | F68: 2021.65 | G68: 1928.20 | H68: 1872.55 | I68: 1779.10 | J68: 2077.30 | K68: 2170.75 | L68: 2226.40 | M68: 2115.1 | N68: 1966 | O68: 1877250 | P68: 0.16%
A69: 59 | B69: Others | C69: DELTACORP | D69: 2022-10-27 | E69: 194.60 | F69: 195.70 | G69: 191.15 | H69: 187.70 | I69: 183.15 | J69: 199.15 | K69: 203.70 | L69: 207.15 | M69: 200.25 | N69: 192.25 | O69: 14386500 | P69: -7.13%
A70: 60 | B70: Pharma | C70: DIVISLAB | D70: 2022-10-27 | E70: 3714.15 | F70: 3726.60 | G70: 3679.10 | H70: 3644.05 | I70: 3596.55 | J70: 3761.65 | K70: 3809.15 | L70: 3844.20 | M70: 3774.1 | N70: 3691.55 | O70: 2354250 | P70: -2.34%
A71: 61 | B71: Others | C71: DIXON | D71: 2022-10-27 | E71: 4201.45 | F71: 4199.85 | G71: 4156.60 | H71: 4111.75 | I71: 4068.50 | J71: 4244.70 | K71: 4287.95 | L71: 4332.80 | M71: 4243.1 | N71: 4155 | O71: 551250 | P71: -12.33%
A72: 62 | B72: Realty | C72: DLF | D72: 2022-10-27 | E72: 352.00 | F72: 352.00 | G72: 346.90 | H72: 341.80 | I72: 336.70 | J72: 357.10 | K72: 362.20 | L72: 367.30 | M72: 357.1 | N72: 346.9 | O72: 43607850 | P72: -2.51%
A73: 63 | B73: Pharma | C73: DRREDDY | D73: 2022-10-27 | E73: 4368.70 | F73: 4355.57 | G73: 4306.13 | H73: 4243.57 | I73: 4194.13 | J73: 4418.13 | K73: 4467.57 | L73: 4530.13 | M73: 4405 | N73: 4293 | O73: 1555375 | P73: -8.67%
A74: 64 | B74: Automobile | C74: EICHERMOT | D74: 2022-10-27 | E74: 3603.10 | F74: 3621.30 | G74: 3573.65 | H74: 3544.20 | I74: 3496.55 | J74: 3650.75 | K74: 3698.40 | L74: 3727.85 | M74: 3668.95 | N74: 3591.85 | O74: 3117450 | P74: -11.35%
A75: 65 | B75: Automobile | C75: ESCORTS | D75: 2022-10-27 | E75: 2096.50 | F75: 2086.88 | G75: 2039.47 | H75: 1982.43 | I75: 1935.02 | J75: 2143.92 | K75: 2191.33 | L75: 2248.37 | M75: 2134.3 | N75: 2029.85 | O75: 980650 | P75: -26.44%
A76: 66 | B76: Automobile | C76: EXIDEIND | D76: 2022-10-27 | E76: 155.35 | F76: 155.83 | G76: 153.67 | H76: 151.98 | I76: 149.82 | J76: 157.52 | K76: 159.68 | L76: 161.37 | M76: 158 | N76: 154.15 | O76: 24897600 | P76: -7.90%
A77: 67 | B77: Banking | C77: FEDERALBNK | D77: 2022-10-27 | E77: 113.45 | F77: 113.33 | G77: 111.77 | H77: 110.08 | I77: 108.52 | J77: 115.02 | K77: 116.58 | L77: 118.27 | M77: 114.9 | N77: 111.65 | O77: 89730000 | P77: -16.62%
A78: 68 | B78: Technology | C78: FSL | D78: 2022-10-27 | E78: 102.25 | F78: 101.30 | G78: 99.95 | H78: 97.65 | I78: 96.30 | J78: 103.60 | K78: 104.95 | L78: 107.25 | M78: 102.65 | N78: 99 | O78: 16218800 | P78: -17.18%
A79: 69 | B79: Oil_Gas | C79: GAIL | D79: 2022-10-27 | E79: 86.00 | F79: 86.03 | G79: 85.17 | H79: 84.33 | I79: 83.47 | J79: 86.87 | K79: 87.73 | L79: 88.57 | M79: 86.9 | N79: 85.2 | O79: 55586250 | P79: -4.99%
A80: 70 | B80: Pharma | C80: GLENMARK | D80: 2022-10-27 | E80: 389.10 | F80: 389.90 | G80: 384.35 | H80: 379.60 | I80: 374.05 | J80: 394.65 | K80: 400.20 | L80: 404.95 | M80: 395.45 | N80: 385.15 | O80: 7759050 | P80: 1.41%
A81: 71 | B81: Infrastructure | C81: GMRINFRA | D81: 2022-10-27 | E81: 35.10 | F81: 35.17 | G81: 34.43 | H81: 33.77 | I81: 33.03 | J81: 35.83 | K81: 36.57 | L81: 37.23 | M81: 35.9 | N81: 34.5 | O81: 128475000 | P81: -16.96%
A82: 72 | B82: Others | C82: GNFC | D82: 2022-10-27 | E82: 627.50 | F82: 631.02 | G82: 619.23 | H82: 610.97 | I82: 599.18 | J82: 639.28 | K82: 651.07 | L82: 659.33 | M82: 642.8 | N82: 622.75 | O82: 5193500 | P82: -14.53%
A83: 73 | B83: FMCG | C83: GODREJCP | D83: 2022-10-27 | E83: 912.80 | F83: 910.75 | G83: 899.50 | H83: 886.20 | I83: 874.95 | J83: 924.05 | K83: 935.30 | L83: 948.60 | M83: 922 | N83: 897.45 | O83: 5951000 | P83: -2.07%
A84: 74 | B84: Realty | C84: GODREJPROP | D84: 2022-10-27 | E84: 1165.45 | F84: 1167.28 | G84: 1143.07 | H84: 1120.68 | I84: 1096.47 | J84: 1189.67 | K84: 1213.88 | L84: 1236.27 | M84: 1191.5 | N84: 1144.9 | O84: 4346550 | P84: -7.68%
A85: 75 | B85: Pharma | C85: GRANULES | D85: 2022-10-27 | E85: 326.10 | F85: 326.02 | G85: 320.63 | H85: 315.17 | I85: 309.78 | J85: 331.48 | K85: 336.87 | L85: 342.33 | M85: 331.4 | N85: 320.55 | O85: 8772000 | P85: -10.27%
A86: 76 | B86: Cement | C86: GRASIM | D86: 2022-10-27 | E86: 1665.75 | F86: 1673.02 | G86: 1650.78 | H86: 1635.82 | I86: 1613.58 | J86: 1687.98 | K86: 1710.22 | L86: 1725.18 | M86: 1695.25 | N86: 1658.05 | O86: 7647500 | P86: -0.56%
A87: 77 | B87: Oil_Gas | C87: GSPL | D87: 2022-10-27 | E87: 230.80 | F87: 231.10 | G87: 227.75 | H87: 224.70 | I87: 221.35 | J87: 234.15 | K87: 237.50 | L87: 240.55 | M87: 234.45 | N87: 228.05 | O87: 3820000 | P87: -11.73%
A88: 78 | B88: Oil_Gas | C88: GUJGASLTD | D88: 2022-10-27 | E88: 502.80 | F88: 500.50 | G88: 496.25 | H88: 489.70 | I88: 485.45 | J88: 507.05 | K88: 511.30 | L88: 517.85 | M88: 504.75 | N88: 493.95 | O88: 6176250 | P88: -2.60%
A89: 79 | B89: Others | C89: HAL | D89: 2022-10-27 | E89: 2320.05 | F89: 2307.48 | G89: 2281.62 | H89: 2243.18 | I89: 2217.32 | J89: 2345.92 | K89: 2371.78 | L89: 2410.22 | M89: 2333.35 | N89: 2269.05 | O89: 3435675 | P89: -15.52%
A90: 80 | B90: Capital_Goods | C90: HAVELLS | D90: 2022-10-27 | E90: 1333.05 | F90: 1327.17 | G90: 1318.03 | H90: 1303.02 | I90: 1293.88 | J90: 1342.18 | K90: 1351.32 | L90: 1366.33 | M90: 1336.3 | N90: 1312.15 | O90: 3738500 | P90: -7.26%
A91: 81 | B91: Technology | C91: HCLTECH | D91: 2022-10-27 | E91: 916.50 | F91: 917.50 | G91: 909.70 | H91: 902.90 | I91: 895.10 | J91: 924.30 | K91: 932.10 | L91: 938.90 | M91: 925.3 | N91: 910.7 | O91: 16948400 | P91: -9.45%
A92: 82 | B92: Finance | C92: HDFC | D92: 2022-10-27 | E92: 2247.35 | F92: 2258.37 | G92: 2230.78 | H92: 2214.22 | I92: 2186.63 | J92: 2274.93 | K92: 2302.52 | L92: 2319.08 | M92: 2285.95 | N92: 2241.8 | O92: 17178600 | P92: -0.88%
A93: 83 | B93: Finance | C93: HDFCAMC | D93: 2022-10-27 | E93: 1867.00 | F93: 1868.42 | G93: 1844.18 | H93: 1821.37 | I93: 1797.13 | J93: 1891.23 | K93: 1915.47 | L93: 1938.28 | M93: 1892.65 | N93: 1845.6 | O93: 2288700 | P93: -12.54%
A94: 84 | B94: Banking | C94: HDFCBANK | D94: 2022-10-27 | E94: 1387.25 | F94: 1393.12 | G94: 1377.78 | H94: 1368.32 | I94: 1352.98 | J94: 1402.58 | K94: 1417.92 | L94: 1427.38 | M94: 1408.45 | N94: 1383.65 | O94: 55620950 | P94: -2.50%
A95: 85 | B95: Finance | C95: HDFCLIFE | D95: 2022-10-27 | E95: 529.55 | F95: 526.87 | G95: 522.73 | H95: 515.92 | I95: 511.78 | J95: 533.68 | K95: 537.82 | L95: 544.63 | M95: 531 | N95: 520.05 | O95: 21546800 | P95: -8.44%
A96: 86 | B96: Automobile | C96: HEROMOTOCO | D96: 2022-10-27 | E96: 2550.95 | F96: 2567.67 | G96: 2520.33 | H96: 2489.72 | I96: 2442.38 | J96: 2598.28 | K96: 2645.62 | L96: 2676.23 | M96: 2615 | N96: 2537.05 | O96: 2521800 | P96: -4.05%
A97: 87 | B97: Metals | C97: HINDALCO | D97: 2022-10-27 | E97: 373.20 | F97: 372.83 | G97: 367.62 | H97: 362.03 | I97: 356.82 | J97: 378.42 | K97: 383.63 | L97: 389.22 | M97: 378.05 | N97: 367.25 | O97: 29458225 | P97: -6.70%
A98: 88 | B98: Metals | C98: HINDCOPPER | D98: 2022-10-27 | E98: 103.60 | F98: 103.50 | G98: 102.10 | H98: 100.60 | I98: 99.20 | J98: 105.00 | K98: 106.40 | L98: 107.90 | M98: 104.9 | N98: 102 | O98: 18120200 | P98: -17.24%
A99: 89 | B99: Oil_Gas | C99: HINDPETRO | D99: 2022-10-27 | E99: 217.60 | F99: 217.92 | G99: 215.03 | H99: 212.47 | I99: 209.58 | J99: 220.48 | K99: 223.37 | L99: 225.93 | M99: 220.8 | N99: 215.35 | O99: 20498400 | P99: -1.71%
A100: 90 | B100: FMCG | C100: HINDUNILVR | D100: 2022-10-27 | E100: 2705.25 | F100: 2714.30 | G100: 2683.75 | H100: 2662.25 | I100: 2631.70 | J100: 2735.80 | K100: 2766.35 | L100: 2787.85 | M100: 2744.85 | N100: 2692.8 | O100: 7758300 | P100: -11.17%
A101: 91 | B101: Others | C101: HONAUT | D101: 2022-10-27 | E101: 39185.60 | F101: 39421.98 | G101: 38741.92 | H101: 38298.23 | I101: 37618.17 | J101: 39865.67 | K101: 40545.73 | L101: 40989.42 | M101: 40102.05 | N101: 38978.3 | O101: 19020 | P101: -0.78%
A102: 92 | B102: Finance | C102: IBULHSGFIN | D102: 2022-10-27 | E102: 115.75 | F102: 115.92 | G102: 113.08 | H102: 110.42 | I102: 107.58 | J102: 118.58 | K102: 121.42 | L102: 124.08 | M102: 118.75 | N102: 113.25 | O102: 36800000 | P102: -5.81%
A103: 93 | B103: Banking | C103: ICICIBANK | D103: 2022-10-27 | E103: 848.40 | F103: 853.27 | G103: 841.13 | H103: 833.87 | I103: 821.73 | J103: 860.53 | K103: 872.67 | L103: 879.93 | M103: 865.4 | N103: 846 | O103: 79136750 | P103: 1.02%
A104: 94 | B104: Finance | C104: ICICIGI | D104: 2022-10-27 | E104: 1166.20 | F104: 1166.25 | G104: 1152.25 | H104: 1138.30 | I104: 1124.30 | J104: 1180.20 | K104: 1194.20 | L104: 1208.15 | M104: 1180.25 | N104: 1152.3 | O104: 4216425 | P104: -3.50%
A105: 95 | B105: Finance | C105: ICICIPRULI | D105: 2022-10-27 | E105: 530.75 | F105: 530.65 | G105: 522.25 | H105: 513.75 | I105: 505.35 | J105: 539.15 | K105: 547.55 | L105: 556.05 | M105: 539.05 | N105: 522.15 | O105: 6376500 | P105: -9.90%
A106: 96 | B106: Telecom | C106: IDEA | D106: 2022-10-27 | E106: 8.55 | F106: 8.78 | G106: 8.27 | H106: 7.98 | I106: 7.47 | J106: 9.07 | K106: 9.58 | L106: 9.87 | M106: 9.3 | N106: 8.5 | O106: 336140000 | P106: -49.80%
A107: 97 | B107: Finance | C107: IDFC | D107: 2022-10-27 | E107: 64.85 | F107: 65.23 | G107: 64.12 | H107: 63.38 | I107: 62.27 | J107: 65.97 | K107: 67.08 | L107: 67.82 | M107: 66.35 | N107: 64.5 | O107: 119460000 | P107: -10.65%
A108: 98 | B108: Banking | C108: IDFCFIRSTB | D108: 2022-10-27 | E108: 48.00 | F108: 47.75 | G108: 47.25 | H108: 46.50 | I108: 46.00 | J108: 48.50 | K108: 49.00 | L108: 49.75 | M108: 48.25 | N108: 47 | O108: 161085000 | P108: -20.77%
A109: 99 | B109: Others | C109: IEX | D109: 2022-10-27 | E109: 140.30 | F109: 141.07 | G109: 138.83 | H109: 137.37 | I109: 135.13 | J109: 142.53 | K109: 144.77 | L109: 146.23 | M109: 143.3 | N109: 139.6 | O109: 53021250 | P109: -8.49%
A110: 100 | B110: Oil_Gas | C110: IGL | D110: 2022-10-27 | E110: 421.90 | F110: 423.12 | G110: 415.68 | H110: 409.47 | I110: 402.03 | J110: 429.33 | K110: 436.77 | L110: 442.98 | M110: 430.55 | N110: 416.9 | O110: 11169125 | P110: -4.09%
A111: 101 | B111: Infrastructure | C111: INDHOTEL | D111: 2022-10-27 | E111: 328.20 | F111: 327.90 | G111: 323.80 | H111: 319.40 | I111: 315.30 | J111: 332.30 | K111: 336.40 | L111: 340.80 | M111: 332 | N111: 323.5 | O111: 22740388 | P111: -10.79%
A112: 102 | B112: Cement | C112: INDIACEM | D112: 2022-10-27 | E112: 246.80 | F112: 247.10 | G112: 241.00 | H112: 235.20 | I112: 229.10 | J112: 252.90 | K112: 259.00 | L112: 264.80 | M112: 253.2 | N112: 241.3 | O112: 12884700 | P112: -10.30%
A113: 103 | B113: Others | C113: INDIAMART | D113: 2022-10-27 | E113: 4420.55 | F113: 4402.47 | G113: 4371.78 | H113: 4323.02 | I113: 4292.33 | J113: 4451.23 | K113: 4481.92 | L113: 4530.68 | M113: 4433.15 | N113: 4353.7 | O113: 213450 | P113: -15.40%
A114: 104 | B114: Others | C114: INDIGO | D114: 2022-10-27 | E114: 1834.80 | F114: 1834.77 | G114: 1816.58 | H114: 1798.37 | I114: 1780.18 | J114: 1852.98 | K114: 1871.17 | L114: 1889.38 | M114: 1852.95 | N114: 1816.55 | O114: 4075500 | P114: -7.38%
A115: 105 | B115: Banking | C115: INDUSINDBK | D115: 2022-10-27 | E115: 1149.40 | F115: 1157.62 | G115: 1135.88 | H115: 1122.37 | I115: 1100.63 | J115: 1171.13 | K115: 1192.87 | L115: 1206.38 | M115: 1179.35 | N115: 1144.1 | O115: 18432000 | P115: -9.70%
A116: 106 | B116: Telecom | C116: INDUSTOWER | D116: 2022-10-27 | E116: 186.30 | F116: 186.53 | G116: 183.82 | H116: 181.33 | I116: 178.62 | J116: 189.02 | K116: 191.73 | L116: 194.22 | M116: 189.25 | N116: 184.05 | O116: 15526000 | P116: -8.20%
A117: 107 | B117: Technology | C117: INFY | D117: 2022-10-27 | E117: 1387.45 | F117: 1389.97 | G117: 1378.93 | H117: 1370.42 | I117: 1359.38 | J117: 1398.48 | K117: 1409.52 | L117: 1418.03 | M117: 1401 | N117: 1381.45 | O117: 37089000 | P117: -6.63%
A118: 108 | B118: Technology | C118: INTELLECT | D118: 2022-10-27 | E118: 513.95 | F118: 523.50 | G118: 501.25 | H118: 488.55 | I118: 466.30 | J118: 536.20 | K118: 558.45 | L118: 571.15 | M118: 545.75 | N118: 510.8 | O118: 1652250 | P118: -11.06%
A119: 109 | B119: Oil_Gas | C119: IOC | D119: 2022-10-27 | E119: 65.95 | F119: 65.93 | G119: 65.42 | H119: 64.88 | I119: 64.37 | J119: 66.47 | K119: 66.98 | L119: 67.52 | M119: 66.45 | N119: 65.4 | O119: 112008000 | P119: -6.19%
A120: 110 | B120: Pharma | C120: IPCALAB | D120: 2022-10-27 | E120: 912.30 | F120: 907.35 | G120: 899.15 | H120: 886.00 | I120: 877.80 | J120: 920.50 | K120: 928.70 | L120: 941.85 | M120: 915.55 | N120: 894.2 | O120: 1169350 | P120: -10.27%
A121: 111 | B121: Others | C121: IRCTC | D121: 2022-10-27 | E121: 679.90 | F121: 680.53 | G121: 673.12 | H121: 666.33 | I121: 658.92 | J121: 687.32 | K121: 694.73 | L121: 701.52 | M121: 687.95 | N121: 673.75 | O121: 13461000 | P121: -6.66%
A122: 112 | B122: FMCG | C122: ITC | D122: 2022-10-27 | E122: 334.65 | F122: 333.35 | G122: 330.40 | H122: 326.15 | I122: 323.20 | J122: 337.60 | K122: 340.55 | L122: 344.80 | M122: 336.3 | N122: 329.1 | O122: 72851200 | P122: -8.66%
A123: 113 | B123: Metals | C123: JINDALSTEL | D123: 2022-10-27 | E123: 419.30 | F123: 417.22 | G123: 411.03 | H123: 402.77 | I123: 396.58 | J123: 425.48 | K123: 431.67 | L123: 439.93 | M123: 423.4 | N123: 408.95 | O123: 28253750 | P123: -1.53%
A124: 114 | B124: Cement | C124: JKCEMENT | D124: 2022-10-27 | E124: 2561.60 | F124: 2558.70 | G124: 2524.05 | H124: 2486.50 | I124: 2451.85 | J124: 2596.25 | K124: 2630.90 | L124: 2668.45 | M124: 2593.35 | N124: 2521.15 | O124: 351000 | P124: -3.51%
A125: 115 | B125: Metals | C125: JSWSTEEL | D125: 2022-10-27 | E125: 622.00 | F125: 624.33 | G125: 616.67 | H125: 611.33 | I125: 603.67 | J125: 629.67 | K125: 637.33 | L125: 642.67 | M125: 632 | N125: 619 | O125: 27510300 | P125: -2.10%
A126: 116 | B126: Others | C126: JUBLFOOD | D126: 2022-10-27 | E126: 607.35 | F126: 607.27 | G126: 598.63 | H126: 589.92 | I126: 581.28 | J126: 615.98 | K126: 624.62 | L126: 633.33 | M126: 615.9 | N126: 598.55 | O126: 9266250 | P126: -2.73%
A127: 117 | B127: Banking | C127: KOTAKBANK | D127: 2022-10-27 | E127: 1776.15 | F127: 1788.53 | G127: 1759.07 | H127: 1741.98 | I127: 1712.52 | J127: 1805.62 | K127: 1835.08 | L127: 1852.17 | M127: 1818 | N127: 1771.45 | O127: 21982800 | P127: -6.39%
A128: 118 | B128: Finance | C128: L&TFH | D128: 2022-10-27 | E128: 73.40 | F128: 73.22 | G128: 72.33 | H128: 71.27 | I128: 70.38 | J128: 74.28 | K128: 75.17 | L128: 76.23 | M128: 74.1 | N128: 72.15 | O128: 56444300 | P128: -10.95%
A129: 119 | B129: Others | C129: LALPATHLAB | D129: 2022-10-27 | E129: 2521.60 | F129: 2538.00 | G129: 2479.60 | H129: 2437.60 | I129: 2379.20 | J129: 2580.00 | K129: 2638.40 | L129: 2680.40 | M129: 2596.4 | N129: 2496 | O129: 1104000 | P129: -10.28%
A130: 120 | B130: Pharma | C130: LAURUSLABS | D130: 2022-10-27 | E130: 510.95 | F130: 511.02 | G130: 505.03 | H130: 499.12 | I130: 493.13 | J130: 516.93 | K130: 522.92 | L130: 528.83 | M130: 517 | N130: 505.1 | O130: 6417000 | P130: -3.54%
A131: 121 | B131: Finance | C131: LICHSGFIN | D131: 2022-10-27 | E131: 395.60 | F131: 397.60 | G131: 391.65 | H131: 387.70 | I131: 381.75 | J131: 401.55 | K131: 407.50 | L131: 411.45 | M131: 403.55 | N131: 393.65 | O131: 8976000 | P131: -31.56%
A132: 122 | B132: Capital_Goods | C132: LT | D132: 2022-10-27 | E132: 1823.90 | F132: 1829.58 | G132: 1799.32 | H132: 1774.73 | I132: 1744.47 | J132: 1854.17 | K132: 1884.43 | L132: 1909.02 | M132: 1859.85 | N132: 1805 | O132: 8727000 | P132: -4.78%
A133: 123 | B133: Technology | C133: LTI | D133: 2022-10-27 | E133: 4388.10 | F133: 4442.68 | G133: 4304.77 | H133: 4221.43 | I133: 4083.52 | J133: 4526.02 | K133: 4663.93 | L133: 4747.27 | M133: 4580.6 | N133: 4359.35 | O133: 1263750 | P133: 2.68%
A134: 124 | B134: Technology | C134: LTTS | D134: 2022-10-27 | E134: 3448.40 | F134: 3459.97 | G134: 3394.93 | H134: 3341.47 | I134: 3276.43 | J134: 3513.43 | K134: 3578.47 | L134: 3631.93 | M134: 3525 | N134: 3406.5 | O134: 887800 | P134: -10.88%
A135: 125 | B135: Pharma | C135: LUPIN | D135: 2022-10-27 | E135: 659.30 | F135: 661.72 | G135: 646.68 | H135: 634.07 | I135: 619.03 | J135: 674.33 | K135: 689.37 | L135: 701.98 | M135: 676.75 | N135: 649.1 | O135: 7790250 | P135: 0.59%
A136: 126 | B136: Automobile | C136: M&M | D136: 2022-10-27 | E136: 1265.80 | F136: 1263.37 | G136: 1254.83 | H136: 1243.87 | I136: 1235.33 | J136: 1274.33 | K136: 1282.87 | L136: 1293.83 | M136: 1271.9 | N136: 1252.4 | O136: 9558500 | P136: -7.10%
A137: 127 | B137: Finance | C137: M&MFIN | D137: 2022-10-27 | E137: 182.65 | F137: 181.50 | G137: 179.35 | H137: 176.05 | I137: 173.90 | J137: 184.80 | K137: 186.95 | L137: 190.25 | M137: 183.65 | N137: 178.2 | O137: 25028000 | P137: -15.10%
A138: 128 | B138: Finance | C138: MANAPPURAM | D138: 2022-10-27 | E138: 94.70 | F138: 94.80 | G138: 93.40 | H138: 92.10 | I138: 90.70 | J138: 96.10 | K138: 97.50 | L138: 98.80 | M138: 96.2 | N138: 93.5 | O138: 29244000 | P138: -12.39%
A139: 129 | B139: FMCG | C139: MARICO | D139: 2022-10-27 | E139: 539.85 | F139: 542.92 | G139: 531.78 | H139: 523.72 | I139: 512.58 | J139: 550.98 | K139: 562.12 | L139: 570.18 | M139: 554.05 | N139: 534.85 | O139: 8899200 | P139: -2.72%
A140: 130 | B140: Automobile | C140: MARUTI | D140: 2022-10-27 | E140: 8649.20 | F140: 8701.35 | G140: 8572.85 | H140: 8496.50 | I140: 8368.00 | J140: 8777.70 | K140: 8906.20 | L140: 8982.55 | M140: 8829.85 | N140: 8625 | O140: 3519700 | P140: -4.58%
A141: 131 | B141: FMCG | C141: MCDOWELL-N | D141: 2022-10-27 | E141: 842.30 | F141: 844.92 | G141: 827.53 | H141: 812.77 | I141: 795.38 | J141: 859.68 | K141: 877.07 | L141: 891.83 | M141: 862.3 | N141: 830.15 | O141: 18547500 | P141: 0.36%
A142: 132 | B142: Others | C142: MCX | D142: 2022-10-27 | E142: 1183.20 | F142: 1184.38 | G142: 1166.27 | H142: 1149.33 | I142: 1131.22 | J142: 1201.32 | K142: 1219.43 | L142: 1236.37 | M142: 1202.5 | N142: 1167.45 | O142: 2878800 | P142: -7.12%
A143: 133 | B143: Pharma | C143: METROPOLIS | D143: 2022-10-27 | E143: 1537.75 | F143: 1533.38 | G143: 1516.87 | H143: 1495.98 | I143: 1479.47 | J143: 1554.27 | K143: 1570.78 | L143: 1591.67 | M143: 1549.9 | N143: 1512.5 | O143: 687000 | P143: -11.82%
A144: 134 | B144: Finance | C144: MFSL | D144: 2022-10-27 | E144: 769.85 | F144: 764.97 | G144: 757.88 | H144: 745.92 | I144: 738.83 | J144: 776.93 | K144: 784.02 | L144: 795.98 | M144: 772.05 | N144: 753 | O144: 1550900 | P144: -24.33%
A145: 135 | B145: Oil_Gas | C145: MGL | D145: 2022-10-27 | E145: 879.15 | F145: 879.13 | G145: 870.02 | H145: 860.88 | I145: 851.77 | J145: 888.27 | K145: 897.38 | L145: 906.52 | M145: 888.25 | N145: 870 | O145: 2833600 | P145: -10.03%
A146: 136 | B146: Technology | C146: MINDTREE | D146: 2022-10-27 | E146: 3105.85 | F146: 3145.33 | G146: 3034.72 | H146: 2963.58 | I146: 2852.97 | J146: 3216.47 | K146: 3327.08 | L146: 3398.22 | M146: 3255.95 | N146: 3074.2 | O146: 2511400 | P146: 2.26%
A147: 137 | B147: Automobile | C147: MOTHERSON | D147: 2022-10-27 | E147: 106.00 | F147: 105.95 | G147: 102.95 | H147: 99.90 | I147: 96.90 | J147: 109.00 | K147: 112.00 | L147: 115.05 | M147: 108.95 | N147: 102.9 | O147: 46147500 | P147: -14.01%
A148: 138 | B148: Technology | C148: MPHASIS | D148: 2022-10-27 | E148: 2074.25 | F148: 2084.23 | G148: 2042.47 | H148: 2010.68 | I148: 1968.92 | J148: 2116.02 | K148: 2157.78 | L148: 2189.57 | M148: 2126 | N148: 2052.45 | O148: 1860600 | P148: -2.35%
A149: 139 | B149: Automobile | C149: MRF | D149: 2022-10-27 | E149: 79649.10 | F149: 80052.62 | G149: 78415.73 | H149: 77182.37 | I149: 75545.48 | J149: 81285.98 | K149: 82922.87 | L149: 84156.23 | M149: 81689.5 | N149: 78819.25 | O149: 54550 | P149: -5.95%
A150: 140 | B150: Finance | C150: MUTHOOTFIN | D150: 2022-10-27 | E150: 1013.85 | F150: 1017.73 | G150: 1001.62 | H150: 989.38 | I150: 973.27 | J150: 1029.97 | K150: 1046.08 | L150: 1058.32 | M150: 1033.85 | N150: 1005.5 | O150: 6545625 | P150: -9.39%
A151: 141 | B151: Metals | C151: NATIONALUM | D151: 2022-10-27 | E151: 68.15 | F151: 68.23 | G151: 67.32 | H151: 66.48 | I151: 65.57 | J151: 69.07 | K151: 69.98 | L151: 70.82 | M151: 69.15 | N151: 67.4 | O151: 64634000 | P151: -14.48%
A152: 142 | B152: Others | C152: NAUKRI | D152: 2022-10-27 | E152: 3915.75 | F152: 3903.00 | G152: 3857.50 | H152: 3799.25 | I152: 3753.75 | J152: 3961.25 | K152: 4006.75 | L152: 4065.00 | M152: 3948.5 | N152: 3844.75 | O152: 1624250 | P152: -6.21%
A153: 143 | B153: Chemical | C153: NAVINFLUOR | D153: 2022-10-27 | E153: 4478.80 | F153: 4482.98 | G153: 4425.97 | H153: 4373.13 | I153: 4316.12 | J153: 4535.82 | K153: 4592.83 | L153: 4645.67 | M153: 4540 | N153: 4430.15 | O153: 468900 | P153: -17.69%
A154: 144 | B154: FMCG | C154: NESTLEIND | D154: 2022-10-27 | E154: 19038.40 | F154: 19021.00 | G154: 18867.20 | H154: 18696.00 | I154: 18542.20 | J154: 19192.20 | K154: 19346.00 | L154: 19517.20 | M154: 19174.8 | N154: 18849.8 | O154: 237040 | P154: -19.59%
A155: 145 | B155: Metals | C155: NMDC | D155: 2022-10-27 | E155: 125.75 | F155: 125.05 | G155: 124.00 | H155: 122.25 | I155: 121.20 | J155: 126.80 | K155: 127.85 | L155: 129.60 | M155: 126.1 | N155: 123.3 | O155: 53023800 | P155: -11.85%
A156: 146 | B156: Power | C156: NTPC | D156: 2022-10-27 | E156: 160.20 | F156: 160.55 | G156: 159.00 | H156: 157.80 | I156: 156.25 | J156: 161.75 | K156: 163.30 | L156: 164.50 | M156: 162.1 | N156: 159.35 | O156: 57096900 | P156: -4.84%
A157: 147 | B157: Realty | C157: OBEROIRLTY | D157: 2022-10-27 | E157: 909.30 | F157: 905.52 | G157: 892.13 | H157: 874.97 | I157: 861.58 | J157: 922.68 | K157: 936.07 | L157: 953.23 | M157: 918.9 | N157: 888.35 | O157: 5448800 | P157: -4.75%
A158: 148 | B158: Technology | C158: OFSS | D158: 2022-10-27 | E158: 2961.40 | F158: 2960.67 | G158: 2935.78 | H158: 2910.17 | I158: 2885.28 | J158: 2986.28 | K158: 3011.17 | L158: 3036.78 | M158: 2985.55 | N158: 2935.05 | O158: 494200 | P158: -9.78%
A159: 149 | B159: Oil_Gas | C159: ONGC | D159: 2022-10-27 | E159: 126.85 | F159: 126.22 | G159: 124.58 | H159: 122.32 | I159: 120.68 | J159: 128.48 | K159: 130.12 | L159: 132.38 | M159: 127.85 | N159: 123.95 | O159: 36213100 | P159: -16.78%
A160: 150 | B160: Textile | C160: PAGEIND | D160: 2022-10-27 | E160: 50019.85 | F160: 50133.22 | G160: 49142.38 | H160: 48264.92 | I160: 47274.08 | J160: 51010.68 | K160: 52001.52 | L160: 52878.98 | M160: 51124.05 | N160: 49255.75 | O160: 83805 | P160: -5.42%
A161: 151 | B161: Pharma | C161: PEL | D161: 2022-10-27 | E161: 849.20 | F161: 854.07 | G161: 830.13 | H161: 811.07 | I161: 787.13 | J161: 873.13 | K161: 897.07 | L161: 916.13 | M161: 878 | N161: 835 | O161: 4819925 | P161: -20.60%
A162: 152 | B162: Technology | C162: PERSISTENT | D162: 2022-10-27 | E162: 3189.25 | F162: 3198.42 | G162: 3134.23 | H162: 3079.22 | I162: 3015.03 | J162: 3253.43 | K162: 3317.62 | L162: 3372.63 | M162: 3262.6 | N162: 3143.4 | O162: 594900 | P162: -14.21%
A163: 153 | B163: Oil_Gas | C163: PETRONET | D163: 2022-10-27 | E163: 200.85 | F163: 200.75 | G163: 198.15 | H163: 195.45 | I163: 192.85 | J163: 203.45 | K163: 206.05 | L163: 208.75 | M163: 203.35 | N163: 198.05 | O163: 13950000 | P163: -2.47%
A164: 154 | B164: Finance | C164: PFC | D164: 2022-10-27 | E164: 105.40 | F164: 105.40 | G164: 104.15 | H164: 102.90 | I164: 101.65 | J164: 106.65 | K164: 107.90 | L164: 109.15 | M164: 106.65 | N164: 104.15 | O164: 54026800 | P164: -8.05%
A165: 155 | B165: FMCG | C165: PIDILITIND | D165: 2022-10-27 | E165: 2714.35 | F165: 2734.92 | G165: 2663.28 | H165: 2612.22 | I165: 2540.58 | J165: 2785.98 | K165: 2857.62 | L165: 2908.68 | M165: 2806.55 | N165: 2683.85 | O165: 2308250 | P165: -3.11%
A166: 156 | B166: Chemical | C166: PIIND | D166: 2022-10-27 | E166: 3002.00 | F166: 3001.43 | G166: 2975.47 | H166: 2948.93 | I166: 2922.97 | J166: 3027.97 | K166: 3053.93 | L166: 3080.47 | M166: 3027.4 | N166: 2974.9 | O166: 1734750 | P166: -1.81%
A167: 157 | B167: Banking | C167: PNB | D167: 2022-10-27 | E167: 35.20 | F167: 35.20 | G167: 34.50 | H167: 33.80 | I167: 33.10 | J167: 35.90 | K167: 36.60 | L167: 37.30 | M167: 35.9 | N167: 34.5 | O167: 246000000 | P167: -5.23%
A168: 158 | B168: Others | C168: POLYCAB | D168: 2022-10-27 | E168: 2525.30 | F168: 2509.72 | G168: 2482.08 | H168: 2438.87 | I168: 2411.23 | J168: 2552.93 | K168: 2580.57 | L168: 2623.78 | M168: 2537.35 | N168: 2466.5 | O168: 874200 | P168: -6.36%
A169: 159 | B169: Power | C169: POWERGRID | D169: 2022-10-27 | E169: 208.80 | F169: 209.20 | G169: 206.00 | H169: 203.20 | I169: 200.00 | J169: 212.00 | K169: 215.20 | L169: 218.00 | M169: 212.4 | N169: 206.4 | O169: 48273300 | P169: -11.67%
A170: 160 | B170: Media | C170: PVR | D170: 2022-10-27 | E170: 1763.75 | F170: 1740.35 | G170: 1708.80 | H170: 1653.85 | I170: 1622.30 | J170: 1795.30 | K170: 1826.85 | L170: 1881.80 | M170: 1771.9 | N170: 1685.4 | O170: 3463163 | P170: -20.63%
A171: 161 | B171: Others | C171: RAIN | D171: 2022-10-27 | E171: 159.05 | F171: 160.45 | G171: 156.35 | H171: 153.65 | I171: 149.55 | J171: 163.15 | K171: 167.25 | L171: 169.95 | M171: 164.55 | N171: 157.75 | O171: 10496500 | P171: -22.77%
A172: 162 | B172: Cement | C172: RAMCOCEM | D172: 2022-10-27 | E172: 737.20 | F172: 734.62 | G172: 726.78 | H172: 716.37 | I172: 708.53 | J172: 745.03 | K172: 752.87 | L172: 763.28 | M172: 742.45 | N172: 724.2 | O172: 3027700 | P172: -6.24%
A173: 163 | B173: Banking | C173: RBLBANK | D173: 2022-10-27 | E173: 110.30 | F173: 112.02 | G173: 107.58 | H173: 104.87 | I173: 100.43 | J173: 114.73 | K173: 119.17 | L173: 121.88 | M173: 116.45 | N173: 109.3 | O173: 45430000 | P173: -3.84%
A174: 164 | B174: Power | C174: RECLTD | D174: 2022-10-27 | E174: 94.80 | F174: 95.20 | G174: 93.45 | H174: 92.10 | I174: 90.35 | J174: 96.55 | K174: 98.30 | L174: 99.65 | M174: 96.95 | N174: 93.85 | O174: 35088000 | P174: -3.52%
A175: 165 | B175: Oil_Gas | C175: RELIANCE | D175: 2022-10-27 | E175: 2336.95 | F175: 2344.87 | G175: 2313.48 | H175: 2290.02 | I175: 2258.63 | J175: 2368.33 | K175: 2399.72 | L175: 2423.18 | M175: 2376.25 | N175: 2321.4 | O175: 36894250 | P175: -5.88%
A176: 166 | B176: Metals | C176: SAIL | D176: 2022-10-27 | E176: 74.55 | F176: 74.88 | G176: 73.72 | H176: 72.88 | I176: 71.72 | J176: 75.72 | K176: 76.88 | L176: 77.72 | M176: 76.05 | N176: 74.05 | O176: 92040000 | P176: -3.46%
A177: 167 | B177: Banking | C177: SBICARD | D177: 2022-10-27 | E177: 905.60 | F177: 906.30 | G177: 894.65 | H177: 883.70 | I177: 872.05 | J177: 917.25 | K177: 928.90 | L177: 939.85 | M177: 917.95 | N177: 895.35 | O177: 4620800 | P177: 1.07%
A178: 168 | B178: Finance | C178: SBILIFE | D178: 2022-10-27 | E178: 1246.55 | F178: 1248.38 | G178: 1238.42 | H178: 1230.28 | I178: 1220.32 | J178: 1256.52 | K178: 1266.48 | L178: 1274.62 | M178: 1258.35 | N178: 1240.25 | O178: 5454750 | P178: -3.63%
A179: 169 | B179: Banking | C179: SBIN | D179: 2022-10-27 | E179: 524.90 | F179: 521.65 | G179: 505.70 | H179: 486.50 | I179: 470.55 | J179: 540.85 | K179: 556.80 | L179: 576.00 | M179: 537.6 | N179: 502.45 | O179: 47034000 | P179: -4.68%
A180: 170 | B180: Cement | C180: SHREECEM | D180: 2022-10-27 | E180: 21363.75 | F180: 21205.20 | G180: 20732.85 | H180: 20101.95 | I180: 19629.60 | J180: 21836.10 | K180: 22308.45 | L180: 22939.35 | M180: 21677.55 | N180: 20574.3 | O180: 333450 | P180: -30.03%
A181: 171 | B181: Capital_Goods | C181: SIEMENS | D181: 2022-10-27 | E181: 2740.70 | F181: 2733.63 | G181: 2714.82 | H181: 2688.93 | I181: 2670.12 | J181: 2759.52 | K181: 2778.33 | L181: 2804.22 | M181: 2752.45 | N181: 2707.75 | O181: 1632125 | P181: -6.33%
A182: 172 | B182: Textile | C182: SRF | D182: 2022-10-27 | E182: 2555.90 | F182: 2556.97 | G182: 2505.93 | H182: 2455.97 | I182: 2404.93 | J182: 2606.93 | K182: 2657.97 | L182: 2707.93 | M182: 2608 | N182: 2507 | O182: 3700125 | P182: -1.82%
A183: 173 | B183: Finance | C183: SRTRANSFIN | D183: 2022-10-27 | E183: 1183.95 | F183: 1184.73 | G183: 1162.07 | H183: 1140.18 | I183: 1117.52 | J183: 1206.62 | K183: 1229.28 | L183: 1251.17 | M183: 1207.4 | N183: 1162.85 | O183: 4054800 | P183: -5.39%
A184: 174 | B184: Pharma | C184: SUNPHARMA | D184: 2022-10-27 | E184: 936.25 | F184: 941.07 | G184: 923.98 | H184: 911.72 | I184: 894.63 | J184: 953.33 | K184: 970.42 | L184: 982.68 | M184: 958.15 | N184: 928.8 | O184: 23212700 | P184: -4.46%
A185: 175 | B185: Media | C185: SUNTV | D185: 2022-10-27 | E185: 502.35 | F185: 501.58 | G185: 496.82 | H185: 491.28 | I185: 486.52 | J185: 507.12 | K185: 511.88 | L185: 517.42 | M185: 506.35 | N185: 496.05 | O185: 10726500 | P185: -9.18%
A186: 176 | B186: Pharma | C186: SYNGENE | D186: 2022-10-27 | E186: 558.35 | F186: 556.32 | G186: 551.03 | H186: 543.72 | I186: 538.43 | J186: 563.63 | K186: 568.92 | L186: 576.23 | M186: 561.6 | N186: 549 | O186: 2066000 | P186: -42.64%
A187: 177 | B187: Chemical | C187: TATACHEM | D187: 2022-10-27 | E187: 1099.75 | F187: 1100.92 | G187: 1070.83 | H187: 1041.92 | I187: 1011.83 | J187: 1129.83 | K187: 1159.92 | L187: 1188.83 | M187: 1131 | N187: 1072 | O187: 7248000 | P187: 6.07%
A188: 178 | B188: Telecom | C188: TATACOMM | D188: 2022-10-27 | E188: 1125.70 | F188: 1129.40 | G188: 1109.65 | H188: 1093.60 | I188: 1073.85 | J188: 1145.45 | K188: 1165.20 | L188: 1181.25 | M188: 1149.15 | N188: 1113.35 | O188: 2565000 | P188: -5.68%
A189: 179 | B189: FMCG | C189: TATACONSUM | D189: 2022-10-27 | E189: 797.40 | F189: 799.85 | G189: 792.40 | H189: 787.40 | I189: 779.95 | J189: 804.85 | K189: 812.30 | L189: 817.30 | M189: 807.3 | N189: 794.85 | O189: 7471800 | P189: -6.00%
A190: 180 | B190: Automobile | C190: TATAMOTORS | D190: 2022-10-27 | E190: 402.85 | F190: 405.27 | G190: 397.53 | H190: 392.22 | I190: 384.48 | J190: 410.58 | K190: 418.32 | L190: 423.63 | M190: 413 | N190: 399.95 | O190: 66685725 | P190: -13.92%
A191: 181 | B191: Power | C191: TATAPOWER | D191: 2022-10-27 | E191: 213.20 | F191: 214.35 | G191: 209.85 | H191: 206.50 | I191: 202.00 | J191: 217.70 | K191: 222.20 | L191: 225.55 | M191: 218.85 | N191: 211 | O191: 104614875 | P191: -7.29%
A192: 182 | B192: Metals | C192: TATASTEEL | D192: 2022-10-27 | E192: 97.35 | F192: 97.55 | G192: 96.30 | H192: 95.25 | I192: 94.00 | J192: 98.60 | K192: 99.85 | L192: 100.90 | M192: 98.8 | N192: 96.5 | O192: 226911750 | P192: -9.60%
A193: 183 | B193: Technology | C193: TCS | D193: 2022-10-27 | E193: 3000.45 | F193: 3015.78 | G193: 2972.17 | H193: 2943.88 | I193: 2900.27 | J193: 3044.07 | K193: 3087.68 | L193: 3115.97 | M193: 3059.4 | N193: 2987.5 | O193: 12221550 | P193: -3.03%
A194: 184 | B194: Technology | C194: TECHM | D194: 2022-10-27 | E194: 1007.80 | F194: 1018.82 | G194: 992.43 | H194: 977.07 | I194: 950.68 | J194: 1034.18 | K194: 1060.57 | L194: 1075.93 | M194: 1045.2 | N194: 1003.45 | O194: 13452000 | P194: -8.05%
A195: 185 | B195: FMCG | C195: TITAN | D195: 2022-10-27 | E195: 2539.25 | F195: 2559.27 | G195: 2502.63 | H195: 2466.02 | I195: 2409.38 | J195: 2595.88 | K195: 2652.52 | L195: 2689.13 | M195: 2615.9 | N195: 2522.65 | O195: 4790250 | P195: -3.90%
A196: 186 | B196: Pharma | C196: TORNTPHARM | D196: 2022-10-27 | E196: 1553.55 | F196: 1539.87 | G196: 1519.73 | H196: 1485.92 | I196: 1465.78 | J196: 1573.68 | K196: 1593.82 | L196: 1627.63 | M196: 1560 | N196: 1506.05 | O196: 1586000 | P196: 11.42%
A197: 187 | B197: Power | C197: TORNTPOWER | D197: 2022-10-27 | E197: 485.00 | F197: 489.40 | G197: 476.85 | H197: 468.70 | I197: 456.15 | J197: 497.55 | K197: 510.10 | L197: 518.25 | M197: 501.95 | N197: 481.25 | O197: 3658500 | P197: -16.36%
A198: 188 | B198: Others | C198: TRENT | D198: 2022-10-27 | E198: 1402.95 | F198: 1396.42 | G198: 1381.38 | H198: 1359.82 | I198: 1344.78 | J198: 1417.98 | K198: 1433.02 | L198: 1454.58 | M198: 1411.45 | N198: 1374.85 | O198: 4037525 | P198: -1.76%
A199: 189 | B199: Automobile | C199: TVSMOTOR | D199: 2022-10-27 | E199: 1016.85 | F199: 1024.02 | G199: 1006.83 | H199: 996.82 | I199: 979.63 | J199: 1034.03 | K199: 1051.22 | L199: 1061.23 | M199: 1041.2 | N199: 1014 | O199: 5637800 | P199: -30.90%
A200: 190 | B200: FMCG | C200: UBL | D200: 2022-10-27 | E200: 1701.95 | F200: 1698.40 | G200: 1675.60 | H200: 1649.25 | I200: 1626.45 | J200: 1724.75 | K200: 1747.55 | L200: 1773.90 | M200: 1721.2 | N200: 1672.05 | O200: 927200 | P200: -19.79%
A201: 191 | B201: Cement | C201: ULTRACEMCO | D201: 2022-10-27 | E201: 6206.45 | F201: 6216.20 | G201: 6152.40 | H201: 6098.35 | I201: 6034.55 | J201: 6270.25 | K201: 6334.05 | L201: 6388.10 | M201: 6280 | N201: 6162.15 | O201: 1945700 | P201: -4.52%
A202: 192 | B202: Chemical | C202: UPL | D202: 2022-10-27 | E202: 660.65 | F202: 665.95 | G202: 652.80 | H202: 644.95 | I202: 631.80 | J202: 673.80 | K202: 686.95 | L202: 694.80 | M202: 679.1 | N202: 658.1 | O202: 24657100 | P202: -2.67%
A203: 193 | B203: Metals | C203: VEDL | D203: 2022-10-27 | E203: 260.70 | F203: 261.05 | G203: 257.00 | H203: 253.30 | I203: 249.25 | J203: 264.75 | K203: 268.80 | L203: 272.50 | M203: 265.1 | N203: 257.35 | O203: 32292700 | P203: -5.07%
A204: 194 | B204: Capital_Goods | C204: VOLTAS | D204: 2022-10-27 | E204: 902.70 | F204: 904.30 | G204: 896.10 | H204: 889.50 | I204: 881.30 | J204: 910.90 | K204: 919.10 | L204: 925.70 | M204: 912.5 | N204: 897.7 | O204: 4115500 | P204: -20.58%
A205: 195 | B205: Capital_Goods | C205: WHIRLPOOL | D205: 2022-10-27 | E205: 1644.90 | F205: 1645.35 | G205: 1625.75 | H205: 1606.60 | I205: 1587.00 | J205: 1664.50 | K205: 1684.10 | L205: 1703.25 | M205: 1664.95 | N205: 1626.2 | O205: 578200 | P205: -22.19%
A206: 196 | B206: Technology | C206: WIPRO | D206: 2022-10-27 | E206: 393.50 | F206: 396.30 | G206: 389.65 | H206: 385.80 | I206: 379.15 | J206: 400.15 | K206: 406.80 | L206: 410.65 | M206: 402.95 | N206: 392.45 | O206: 37467000 | P206: -6.60%
... 17 more rows

Sheet Cash Intra
M5: Back to Main Page
A6: FOR INTRA DAY TRADING | K6: =Main!B10 -> 2022-09-30
A8: Sr.no | C8: CLOSE RATE | D8: Pivot Point | E8: Supports | H8: Resistances
E9: S1 | F9: S2 | G9: S3 | H9: R1 | I9: R2 | J9: R3 | K9: HIGH | L9: LOW | M9: Total Trade Quanity in Lakhs
A10: 1 | B10: Nifty 50 | C10: 16818.10 | D10: 16877.58 | E10: 16729.12 | F10: 16640.13 | G10: 16491.67 | H10: 16966.57 | I10: 17115.03 | J10: 17204.02 | K10: 17026.05 | L10: 16788.60
A11: 2 | B11: Nifty Bank | C11: 37647.75 | D11: 37822.60 | E11: 37361.80 | F11: 37075.85 | G11: 36615.05 | H11: 38108.55 | I11: 38569.35 | J11: 38855.30 | K11: 38283.40 | L11: 37536.65
A12: 3 | B12: Nifty CPSE | C12: 2550.00 | D12: 2550.12 | E12: 2532.98 | F12: 2515.97 | G12: 2498.83 | H12: 2567.13 | I12: 2584.27 | J12: 2601.28 | K12: 2567.25 | L12: 2533.10
A13: 4 | B13: Nifty Infra | C13: 4867.45 | D13: 4874.52 | E13: 4833.53 | F13: 4799.62 | G13: 4758.63 | H13: 4908.43 | I13: 4949.42 | J13: 4983.33 | K13: 4915.50 | L13: 4840.60
A14: 5 | B14: Nifty IT | C14: 26819.05 | D14: 26947.00 | E14: 26594.00 | F14: 26368.95 | G14: 26015.95 | H14: 27172.05 | I14: 27525.05 | J14: 27750.10 | K14: 27300.00 | L14: 26721.95
A15: 6 | B15: Nifty PSE | C15: 3958.20 | D15: 3957.60 | E15: 3934.25 | F15: 3910.30 | G15: 3886.95 | H15: 3981.55 | I15: 4004.90 | J15: 4028.85 | K15: 3980.95 | L15: 3933.65
A16: 7 | B16: Nifty Midcap 50 | C16: 8179.60 | D16: 8180.35 | E16: 8111.90 | F16: 8044.20 | G16: 7975.75 | H16: 8248.05 | I16: 8316.50 | J16: 8384.20 | K16: 8248.80 | L16: 8112.65
A17: 8 | B17: ABB | C17: 2996.2 | D17: 3006.40 | E17: 2962.80 | F17: 2929.40 | G17: 2885.80 | H17: 3039.80 | I17: 3083.40 | J17: 3116.80 | K17: 3050 | L17: 2973 | M17: 2.91653
A18: 9 | B18: ACC | C18: 2374.05 | D18: 2360.12 | E18: 2335.23 | F18: 2296.42 | G18: 2271.53 | H18: 2398.93 | I18: 2423.82 | J18: 2462.63 | K18: 2385 | L18: 2321.3 | M18: 11.59023
A19: 10 | B19: AUBANK | C19: 600.4 | D19: 599.07 | E19: 589.98 | F19: 579.57 | G19: 570.48 | H19: 609.48 | I19: 618.57 | J19: 628.98 | K19: 608.15 | L19: 588.65 | M19: 27.72572
A20: 11 | B20: ABBOTINDIA | C20: 19181.1 | D20: 18900.90 | E20: 18502.80 | F20: 17824.50 | G20: 17426.40 | H20: 19579.20 | I20: 19977.30 | J20: 20655.60 | K20: 19299 | L20: 18222.6 | M20: 0.85444
A21: 12 | B21: ADANIENT | C21: 3470.7 | D21: 3526.35 | E21: 3387.95 | F21: 3305.20 | G21: 3166.80 | H21: 3609.10 | I21: 3747.50 | J21: 3830.25 | K21: 3664.75 | L21: 3443.6 | M21: 150.60223
A22: 13 | B22: ADANIGREEN | C22: 2004.05 | D22: 2042.73 | E22: 1947.47 | F22: 1890.88 | G22: 1795.62 | H22: 2099.32 | I22: 2194.58 | J22: 2251.17 | K22: 2138 | L22: 1986.15 | M22: 19.09893
A23: 14 | B23: ADANIPORTS | C23: 816.4 | D23: 825.65 | E23: 803.80 | F23: 791.20 | G23: 769.35 | H23: 838.25 | I23: 860.10 | J23: 872.70 | K23: 847.5 | L23: 813.05 | M23: 74.76709
A24: 15 | B24: ATGL | C24: 3372.25 | D24: 3416.82 | E24: 3258.83 | F24: 3145.42 | G24: 2987.43 | H24: 3530.23 | I24: 3688.22 | J24: 3801.63 | K24: 3574.8 | L24: 3303.4 | M24: 24.36698
A25: 16 | B25: ADANITRANS | C25: 3406.4 | D25: 3510.97 | E25: 3246.13 | F25: 3085.87 | G25: 2821.03 | H25: 3671.23 | I25: 3936.07 | J25: 4096.33 | K25: 3775.8 | L25: 3350.7 | M25: 8.87218
A26: 17 | B26: ABCAPITAL | C26: 109.7 | D26: 109.28 | E26: 108.17 | F26: 106.63 | G26: 105.52 | H26: 110.82 | I26: 111.93 | J26: 113.47 | K26: 110.4 | L26: 107.75 | M26: 29.29258
A27: 18 | B27: ABFRL | C27: 338.15 | D27: 336.38 | E27: 332.77 | F27: 327.38 | G27: 323.77 | H27: 341.77 | I27: 345.38 | J27: 350.77 | K27: 340 | L27: 331 | M27: 33.08639
A28: 19 | B28: APLLTD | C28: 599.8 | D28: 595.08 | E28: 582.47 | F28: 565.13 | G28: 552.52 | H28: 612.42 | I28: 625.03 | J28: 642.37 | K28: 607.7 | L28: 577.75 | M28: 1.68594
A29: 20 | B29: ALKEM | C29: 3259.85 | D29: 3255.30 | E29: 3190.60 | F29: 3121.35 | G29: 3056.65 | H29: 3324.55 | I29: 3389.25 | J29: 3458.50 | K29: 3320 | L29: 3186.05 | M29: 2.87666
A30: 21 | B30: AMBUJACEM | C30: 506.35 | D30: 506.85 | E30: 494.70 | F30: 483.05 | G30: 470.90 | H30: 518.50 | I30: 530.65 | J30: 542.30 | K30: 519 | L30: 495.2 | M30: 112.97808
A31: 22 | B31: APOLLOHOSP | C31: 4391.7 | D31: 4360.43 | E31: 4316.22 | F31: 4240.73 | G31: 4196.52 | H31: 4435.92 | I31: 4480.13 | J31: 4555.62 | K31: 4404.65 | L31: 4284.95 | M31: 6.31907
A32: 23 | B32: APOLLOTYRE | C32: 270.75 | D32: 272.75 | E32: 267.60 | F32: 264.45 | G32: 259.30 | H32: 275.90 | I32: 281.05 | J32: 284.20 | K32: 277.9 | L32: 269.6 | M32: 36.9648
A33: 24 | B33: ASHOKLEY | C33: 149.35 | D33: 150.20 | E33: 147.90 | F33: 146.45 | G33: 144.15 | H33: 151.65 | I33: 153.95 | J33: 155.40 | K33: 152.5 | L33: 148.75 | M33: 119.01521
A34: 25 | B34: ASIANPAINT | C34: 3384.8 | D34: 3440.22 | E34: 3316.98 | F34: 3249.17 | G34: 3125.93 | H34: 3508.03 | I34: 3631.27 | J34: 3699.08 | K34: 3563.45 | L34: 3372.4 | M34: 26.24894
A35: 26 | B35: ASTRAL | C35: 2155.65 | D35: 2179.97 | E35: 2121.08 | F35: 2086.52 | G35: 2027.63 | H35: 2214.53 | I35: 2273.42 | J35: 2307.98 | K35: 2238.85 | L35: 2145.4 | M35: 5.78343
A36: 27 | B36: AUROPHARMA | C36: 509.7 | D36: 507.93 | E36: 504.97 | F36: 500.23 | G36: 497.27 | H36: 512.67 | I36: 515.63 | J36: 520.37 | K36: 510.9 | L36: 503.2 | M36: 19.50903
A37: 28 | B37: DMART | C37: 4240.55 | D37: 4292.53 | E37: 4168.12 | F37: 4095.68 | G37: 3971.27 | H37: 4364.97 | I37: 4489.38 | J37: 4561.82 | K37: 4416.95 | L37: 4220.1 | M37: 5.18364
A38: 29 | B38: AXISBANK | C38: 719 | D38: 720.27 | E38: 709.73 | F38: 700.47 | G38: 689.93 | H38: 729.53 | I38: 740.07 | J38: 749.33 | K38: 730.8 | L38: 711 | M38: 120.90981
A39: 30 | B39: BAJAJ-AUTO | C39: 3476.7 | D39: 3501.87 | E39: 3439.88 | F39: 3403.07 | G39: 3341.08 | H39: 3538.68 | I39: 3600.67 | J39: 3637.48 | K39: 3563.85 | L39: 3465.05 | M39: 3.50931
A40: 31 | B40: BAJFINANCE | C40: 7104.75 | D40: 7169.90 | E40: 7022.90 | F40: 6941.05 | G40: 6794.05 | H40: 7251.75 | I40: 7398.75 | J40: 7480.60 | K40: 7316.9 | L40: 7088.05 | M40: 9.69632
A41: 32 | B41: BAJAJFINSV | C41: 1635.9 | D41: 1649.63 | E41: 1614.27 | F41: 1592.63 | G41: 1557.27 | H41: 1671.27 | I41: 1706.63 | J41: 1728.27 | K41: 1685 | L41: 1628 | M41: 24.18856
A42: 33 | B42: BAJAJHLDNG | C42: 6302.45 | D42: 6392.87 | E42: 6049.58 | F42: 5796.72 | G42: 5453.43 | H42: 6645.73 | I42: 6989.02 | J42: 7241.88 | K42: 6736.15 | L42: 6140 | M42: 1.49105
A43: 34 | B43: BALKRISIND | C43: 1844.05 | D43: 1860.27 | E43: 1821.83 | F43: 1799.62 | G43: 1761.18 | H43: 1882.48 | I43: 1920.92 | J43: 1943.13 | K43: 1898.7 | L43: 1838.05 | M43: 4.11001
A44: 35 | B44: BANDHANBNK | C44: 260.75 | D44: 258.98 | E44: 255.97 | F44: 251.18 | G44: 248.17 | H44: 263.77 | I44: 266.78 | J44: 271.57 | K44: 262 | L44: 254.2 | M44: 64.35805
A45: 36 | B45: BANKBARODA | C45: 127.45 | D45: 127.55 | E45: 124.90 | F45: 122.35 | G45: 119.70 | H45: 130.10 | I45: 132.75 | J45: 135.30 | K45: 130.2 | L45: 125 | M45: 261.09674
A46: 37 | B46: BANKINDIA | C46: 48.2 | D46: 47.93 | E46: 46.12 | F46: 44.03 | G46: 42.22 | H46: 50.02 | I46: 51.83 | J46: 53.92 | K46: 49.75 | L46: 45.85 | M46: 40.34029
A47: 38 | B47: BATAINDIA | C47: 1787.1 | D47: 1782.93 | E47: 1760.72 | F47: 1734.33 | G47: 1712.12 | H47: 1809.32 | I47: 1831.53 | J47: 1857.92 | K47: 1805.15 | L47: 1756.55 | M47: 1.98449
A48: 39 | B48: BERGEPAINT | C48: 620.3 | D48: 622.48 | E48: 610.27 | F48: 600.23 | G48: 588.02 | H48: 632.52 | I48: 644.73 | J48: 654.77 | K48: 634.7 | L48: 612.45 | M48: 10.73403
A49: 40 | B49: BEL | C49: 99 | D49: 99.35 | E49: 98.00 | F49: 97.00 | G49: 95.65 | H49: 100.35 | I49: 101.70 | J49: 102.70 | K49: 100.7 | L49: 98.35 | M49: 744.76855
A50: 41 | B50: BHARATFORG | C50: 686.7 | D50: 690.02 | E50: 674.03 | F50: 661.37 | G50: 645.38 | H50: 702.68 | I50: 718.67 | J50: 731.33 | K50: 706 | L50: 677.35 | M50: 19.39514
A51: 42 | B51: BHEL | C51: 58.5 | D51: 58.22 | E51: 57.68 | F51: 56.87 | G51: 56.33 | H51: 59.03 | I51: 59.57 | J51: 60.38 | K51: 58.75 | L51: 57.4 | M51: 220.08219
A52: 43 | B52: BPCL | C52: 303.25 | D52: 304.83 | E52: 300.92 | F52: 298.58 | G52: 294.67 | H52: 307.17 | I52: 311.08 | J52: 313.42 | K52: 308.75 | L52: 302.5 | M52: 32.66251
A53: 44 | B53: BHARTIARTL | C53: 764.65 | D53: 764.32 | E53: 759.63 | F53: 754.62 | G53: 749.93 | H53: 769.33 | I53: 774.02 | J53: 779.03 | K53: 769 | L53: 759.3 | M53: 54.13233
A54: 45 | B54: BIOCON | C54: 286.85 | D54: 286.60 | E54: 284.50 | F54: 282.15 | G54: 280.05 | H54: 288.95 | I54: 291.05 | J54: 293.40 | K54: 288.7 | L54: 284.25 | M54: 15.41227
A55: 46 | B55: BOSCHLTD | C55: 15670.45 | D55: 15621.82 | E55: 15348.63 | F55: 15026.82 | G55: 14753.63 | H55: 15943.63 | I55: 16216.82 | J55: 16538.63 | K55: 15895 | L55: 15300 | M55: 0.57959
A56: 47 | B56: BRITANNIA | C56: 3864.5 | D56: 3849.17 | E56: 3825.33 | F56: 3786.17 | G56: 3762.33 | H56: 3888.33 | I56: 3912.17 | J56: 3951.33 | K56: 3873 | L56: 3810 | M56: 4.50207
A57: 48 | B57: CANBK | C57: 215.4 | D57: 215.78 | E57: 212.22 | F57: 209.03 | G57: 205.47 | H57: 218.97 | I57: 222.53 | J57: 225.72 | K57: 219.35 | L57: 212.6 | M57: 159.1844
A58: 49 | B58: CHOLAFIN | C58: 727.65 | D58: 726.35 | E58: 717.40 | F58: 707.15 | G58: 698.20 | H58: 736.60 | I58: 745.55 | J58: 755.80 | K58: 735.3 | L58: 716.1 | M58: 12.28777
A59: 50 | B59: CIPLA | C59: 1115.85 | D59: 1108.53 | E59: 1095.42 | F59: 1074.98 | G59: 1061.87 | H59: 1128.97 | I59: 1142.08 | J59: 1162.52 | K59: 1121.65 | L59: 1088.1 | M59: 20.93772
A60: 51 | B60: CLEAN | C60: 1722.1 | D60: 1726.03 | E60: 1704.07 | F60: 1686.03 | G60: 1664.07 | H60: 1744.07 | I60: 1766.03 | J60: 1784.07 | K60: 1748 | L60: 1708 | M60: 0.3373
A61: 52 | B61: COALINDIA | C61: 213.9 | D61: 213.23 | E61: 211.32 | F61: 208.73 | G61: 206.82 | H61: 215.82 | I61: 217.73 | J61: 220.32 | K61: 215.15 | L61: 210.65 | M61: 89.62595
A62: 53 | B62: COFORGE | C62: 3363.85 | D62: 3401.42 | E62: 3313.43 | F62: 3263.02 | G62: 3175.03 | H62: 3451.83 | I62: 3539.82 | J62: 3590.23 | K62: 3489.4 | L62: 3351 | M62: 2.84959
A63: 54 | B63: COLPAL | C63: 1604.9 | D63: 1597.63 | E63: 1584.32 | F63: 1563.73 | G63: 1550.42 | H63: 1618.22 | I63: 1631.53 | J63: 1652.12 | K63: 1610.95 | L63: 1577.05 | M63: 2.51687
A64: 55 | B64: CONCOR | C64: 695.8 | D64: 693.02 | E64: 687.78 | F64: 679.77 | G64: 674.53 | H64: 701.03 | I64: 706.27 | J64: 714.28 | K64: 698.25 | L64: 685 | M64: 10.57787
A65: 56 | B65: COROMANDEL | C65: 987.75 | D65: 986.27 | E65: 972.03 | F65: 956.32 | G65: 942.08 | H65: 1001.98 | I65: 1016.22 | J65: 1031.93 | K65: 1000.5 | L65: 970.55 | M65: 2.14512
A66: 57 | B66: CROMPTON | C66: 414.15 | D66: 411.30 | E66: 405.00 | F66: 395.85 | G66: 389.55 | H66: 420.45 | I66: 426.75 | J66: 435.90 | K66: 417.6 | L66: 402.15 | M66: 21.74638
A67: 58 | B67: CUMMINSIND | C67: 1181.25 | D67: 1181.27 | E67: 1158.98 | F67: 1136.72 | G67: 1114.43 | H67: 1203.53 | I67: 1225.82 | J67: 1248.08 | K67: 1203.55 | L67: 1159 | M67: 4.8428
A68: 59 | B68: DLF | C68: 350.6 | D68: 350.38 | E68: 345.27 | F68: 339.93 | G68: 334.82 | H68: 355.72 | I68: 360.83 | J68: 366.17 | K68: 355.5 | L68: 345.05 | M68: 59.05469
A69: 60 | B69: DABUR | C69: 575.75 | D69: 572.60 | E69: 567.05 | F69: 558.35 | G69: 552.80 | H69: 581.30 | I69: 586.85 | J69: 595.55 | K69: 578.15 | L69: 563.9 | M69: 23.09452
A70: 61 | B70: DALBHARAT | C70: 1550.25 | D70: 1540.75 | E70: 1525.45 | F70: 1500.65 | G70: 1485.35 | H70: 1565.55 | I70: 1580.85 | J70: 1605.65 | K70: 1556.05 | L70: 1515.95 | M70: 1.25438
A71: 62 | B71: DEEPAKNTR | C71: 2010.3 | D71: 2038.83 | E71: 1968.67 | F71: 1927.03 | G71: 1856.87 | H71: 2080.47 | I71: 2150.63 | J71: 2192.27 | K71: 2109 | L71: 1997.2 | M71: 16.49759
A72: 63 | B72: DIVISLAB | C72: 3693.65 | D72: 3703.20 | E72: 3655.40 | F72: 3617.15 | G72: 3569.35 | H72: 3741.45 | I72: 3789.25 | J72: 3827.50 | K72: 3751 | L72: 3664.95 | M72: 7.95614
A73: 64 | B73: DIXON | C73: 4263.15 | D73: 4272.75 | E73: 4220.40 | F73: 4177.65 | G73: 4125.30 | H73: 4315.50 | I73: 4367.85 | J73: 4410.60 | K73: 4325.1 | L73: 4230 | M73: 1.6852
A74: 65 | B74: LALPATHLAB | C74: 2591.4 | D74: 2623.13 | E74: 2528.27 | F74: 2465.13 | G74: 2370.27 | H74: 2686.27 | I74: 2781.13 | J74: 2844.27 | K74: 2718 | L74: 2560 | M74: 4.34567
A75: 66 | B75: DRREDDY | C75: 4360.7 | D75: 4351.23 | E75: 4295.47 | F75: 4230.23 | G75: 4174.47 | H75: 4416.47 | I75: 4472.23 | J75: 4537.47 | K75: 4407 | L75: 4286 | M75: 10.88558
A76: 67 | B76: EICHERMOT | C76: 3624.1 | D76: 3635.78 | E76: 3593.32 | F76: 3562.53 | G76: 3520.07 | H76: 3666.57 | I76: 3709.03 | J76: 3739.82 | K76: 3678.25 | L76: 3605 | M76: 5.78779
A77: 68 | B77: EMAMILTD | C77: 504.4 | D77: 504.42 | E77: 498.88 | F77: 493.37 | G77: 487.83 | H77: 509.93 | I77: 515.47 | J77: 520.98 | K77: 509.95 | L77: 498.9 | M77: 1.62773
A78: 69 | B78: ESCORTS | C78: 2092.9 | D78: 2090.13 | E78: 2046.27 | F78: 1999.63 | G78: 1955.77 | H78: 2136.77 | I78: 2180.63 | J78: 2227.27 | K78: 2134 | L78: 2043.5 | M78: 12.89351
A79: 70 | B79: EXIDEIND | C79: 154.5 | D79: 155.20 | E79: 152.85 | F79: 151.20 | G79: 148.85 | H79: 156.85 | I79: 159.20 | J79: 160.85 | K79: 157.55 | L79: 153.55 | M79: 25.00303
A80: 71 | B80: NYKAA | C80: 1284.8 | D80: 1300.52 | E80: 1251.13 | F80: 1217.47 | G80: 1168.08 | H80: 1334.18 | I80: 1383.57 | J80: 1417.23 | K80: 1349.9 | L80: 1266.85 | M80: 9.74421
A81: 72 | B81: FEDERALBNK | C81: 113 | D81: 112.85 | E81: 111.15 | F81: 109.30 | G81: 107.60 | H81: 114.70 | I81: 116.40 | J81: 118.25 | K81: 114.55 | L81: 111 | M81: 122.97229
A82: 73 | B82: FORTIS | C82: 261.7 | D82: 262.23 | E82: 258.47 | F82: 255.23 | G82: 251.47 | H82: 265.47 | I82: 269.23 | J82: 272.47 | K82: 266 | L82: 259 | M82: 15.12602
A83: 74 | B83: GAIL | C83: 85.9 | D83: 85.97 | E83: 85.18 | F83: 84.47 | G83: 83.68 | H83: 86.68 | I83: 87.47 | J83: 88.18 | K83: 86.75 | L83: 85.25 | M83: 126.73874
A84: 75 | B84: GLAND | C84: 2087.85 | D84: 2089.07 | E84: 2060.13 | F84: 2032.42 | G84: 2003.48 | H84: 2116.78 | I84: 2145.72 | J84: 2173.43 | K84: 2118 | L84: 2061.35 | M84: 5.19378
A85: 76 | B85: GLENMARK | C85: 387 | D85: 387.43 | E85: 382.02 | F85: 377.03 | G85: 371.62 | H85: 392.42 | I85: 397.83 | J85: 402.82 | K85: 392.85 | L85: 382.45 | M85: 26.83576
A86: 77 | B86: GODREJCP | C86: 907.6 | D86: 906.00 | E86: 892.60 | F86: 877.60 | G86: 864.20 | H86: 921.00 | I86: 934.40 | J86: 949.40 | K86: 919.4 | L86: 891 | M86: 16.77066
A87: 78 | B87: GODREJPROP | C87: 1162 | D87: 1163.47 | E87: 1139.53 | F87: 1117.07 | G87: 1093.13 | H87: 1185.93 | I87: 1209.87 | J87: 1232.33 | K87: 1187.4 | L87: 1141 | M87: 7.79808
A88: 79 | B88: GRASIM | C88: 1655.8 | D88: 1665.65 | E88: 1641.45 | F88: 1627.10 | G88: 1602.90 | H88: 1680.00 | I88: 1704.20 | J88: 1718.55 | K88: 1689.85 | L88: 1651.3 | M88: 5.4178
A89: 80 | B89: GUJGASLTD | C89: 516.3 | D89: 515.80 | E89: 510.65 | F89: 505.00 | G89: 499.85 | H89: 521.45 | I89: 526.60 | J89: 532.25 | K89: 520.95 | L89: 510.15 | M89: 11.45848
A90: 81 | B90: GSPL | C90: 229.55 | D90: 230.20 | E90: 226.65 | F90: 223.75 | G90: 220.20 | H90: 233.10 | I90: 236.65 | J90: 239.55 | K90: 233.75 | L90: 227.3 | M90: 6.00186
A91: 82 | B91: HCLTECH | C91: 923.05 | D91: 923.55 | E91: 916.10 | F91: 909.15 | G91: 901.70 | H91: 930.50 | I91: 937.95 | J91: 944.90 | K91: 931 | L91: 916.6 | M91: 29.2836
A92: 83 | B92: HDFCAMC | C92: 1867.15 | D92: 1866.23 | E92: 1841.57 | F92: 1815.98 | G92: 1791.32 | H92: 1891.82 | I92: 1916.48 | J92: 1942.07 | K92: 1890.9 | L92: 1840.65 | M92: 6.26467
A93: 84 | B93: HDFCBANK | C93: 1382.35 | D93: 1387.78 | E93: 1373.37 | F93: 1364.38 | G93: 1349.97 | H93: 1396.77 | I93: 1411.18 | J93: 1420.17 | K93: 1402.2 | L93: 1378.8 | M93: 72.05194
A94: 85 | B94: HDFCLIFE | C94: 528 | D94: 524.92 | E94: 520.08 | F94: 512.17 | G94: 507.33 | H94: 532.83 | I94: 537.67 | J94: 545.58 | K94: 529.75 | L94: 517 | M94: 54.28542
A95: 86 | B95: HAVELLS | C95: 1333.5 | D95: 1326.67 | E95: 1316.83 | F95: 1300.17 | G95: 1290.33 | H95: 1343.33 | I95: 1353.17 | J95: 1369.83 | K95: 1336.5 | L95: 1310 | M95: 7.15783
A96: 87 | B96: HEROMOTOCO | C96: 2536.3 | D96: 2555.22 | E96: 2506.08 | F96: 2475.87 | G96: 2426.73 | H96: 2585.43 | I96: 2634.57 | J96: 2664.78 | K96: 2604.35 | L96: 2525 | M96: 10.57406
A97: 88 | B97: HINDALCO | C97: 371.2 | D97: 371.37 | E97: 365.83 | F97: 360.47 | G97: 354.93 | H97: 376.73 | I97: 382.27 | J97: 387.63 | K97: 376.9 | L97: 366 | M97: 140.20084
A98: 89 | B98: HAL | C98: 2314.8 | D98: 2301.62 | E98: 2274.58 | F98: 2234.37 | G98: 2207.33 | H98: 2341.83 | I98: 2368.87 | J98: 2409.08 | K98: 2328.65 | L98: 2261.4 | M98: 17.81183
A99: 90 | B99: HINDPETRO | C99: 216.45 | D99: 217.22 | E99: 213.58 | F99: 210.72 | G99: 207.08 | H99: 220.08 | I99: 223.72 | J99: 226.58 | K99: 220.85 | L99: 214.35 | M99: 41.43743
A100: 91 | B100: HINDUNILVR | C100: 2700.55 | D100: 2706.22 | E100: 2685.43 | F100: 2670.32 | G100: 2649.53 | H100: 2721.33 | I100: 2742.12 | J100: 2757.23 | K100: 2727 | L100: 2691.1 | M100: 20.19666
A101: 92 | B101: HINDZINC | C101: 267.85 | D101: 268.82 | E101: 265.18 | F101: 262.52 | G101: 258.88 | H101: 271.48 | I101: 275.12 | J101: 277.78 | K101: 272.45 | L101: 266.15 | M101: 2.15429
A102: 93 | B102: HONAUT | C102: 38918.9 | D102: 39149.05 | E102: 38499.10 | F102: 38079.30 | G102: 37429.35 | H102: 39568.85 | I102: 40218.80 | J102: 40638.60 | K102: 39799 | L102: 38729.25 | M102: 0.08651
A103: 94 | B103: HDFC | C103: 2237.5 | D103: 2247.32 | E103: 2221.18 | F103: 2204.87 | G103: 2178.73 | H103: 2263.63 | I103: 2289.77 | J103: 2306.08 | K103: 2273.45 | L103: 2231 | M103: 27.87261
A104: 95 | B104: ICICIBANK | C104: 843.9 | D104: 848.87 | E104: 836.13 | F104: 828.37 | G104: 815.63 | H104: 856.63 | I104: 869.37 | J104: 877.13 | K104: 861.6 | L104: 841.1 | M104: 138.03629
A105: 96 | B105: ICICIGI | C105: 1165.95 | D105: 1163.95 | E105: 1150.80 | F105: 1135.65 | G105: 1122.50 | H105: 1179.10 | I105: 1192.25 | J105: 1207.40 | K105: 1177.1 | L105: 1148.8 | M105: 8.24143
A106: 97 | B106: ICICIPRULI | C106: 529.9 | D106: 529.78 | E106: 520.32 | F106: 510.73 | G106: 501.27 | H106: 539.37 | I106: 548.83 | J106: 558.42 | K106: 539.25 | L106: 520.2 | M106: 12.14269
A107: 98 | B107: ISEC | C107: 506.2 | D107: 512.15 | E107: 494.30 | F107: 482.40 | G107: 464.55 | H107: 524.05 | I107: 541.90 | J107: 553.80 | K107: 530 | L107: 500.25 | M107: 1.79062
A108: 99 | B108: IDBI | C108: 40.15 | D108: 40.27 | E108: 39.78 | F108: 39.42 | G108: 38.93 | H108: 40.63 | I108: 41.12 | J108: 41.48 | K108: 40.75 | L108: 39.9 | M108: 42.84973
A109: 100 | B109: IDFCFIRSTB | C109: 47.75 | D109: 47.53 | E109: 47.07 | F109: 46.38 | G109: 45.92 | H109: 48.22 | I109: 48.68 | J109: 49.37 | K109: 48 | L109: 46.85 | M109: 303.49292
A110: 101 | B110: ITC | C110: 333.05 | D110: 331.90 | E110: 328.90 | F110: 324.75 | G110: 321.75 | H110: 336.05 | I110: 339.05 | J110: 343.20 | K110: 334.9 | L110: 327.75 | M110: 182.81337
A111: 102 | B111: INDIAMART | C111: 4411.45 | D111: 4396.08 | E111: 4370.62 | F111: 4329.78 | G111: 4304.32 | H111: 4436.92 | I111: 4462.38 | J111: 4503.22 | K111: 4421.55 | L111: 4355.25 | M111: 0.7176
A112: 103 | B112: INDIANB | C112: 194.05 | D112: 193.18 | E112: 189.07 | F112: 184.08 | G112: 179.97 | H112: 198.17 | I112: 202.28 | J112: 207.27 | K112: 197.3 | L112: 188.2 | M112: 14.88416
A113: 104 | B113: IEX | C113: 139.75 | D113: 140.58 | E113: 138.37 | F113: 136.98 | G113: 134.77 | H113: 141.97 | I113: 144.18 | J113: 145.57 | K113: 142.8 | L113: 139.2 | M113: 48.3007
A114: 105 | B114: INDHOTEL | C114: 326.9 | D114: 326.17 | E114: 322.43 | F114: 317.97 | G114: 314.23 | H114: 330.63 | I114: 334.37 | J114: 338.83 | K114: 329.9 | L114: 321.7 | M114: 45.92766
A115: 106 | B115: IOC | C115: 65.9 | D115: 66.13 | E115: 64.97 | F115: 64.03 | G115: 62.87 | H115: 67.07 | I115: 68.23 | J115: 69.17 | K115: 67.3 | L115: 65.2 | M115: 245.60255
A116: 107 | B116: IRCTC | C116: 707 | D116: 701.17 | E116: 690.33 | F116: 673.67 | G116: 662.83 | H116: 717.83 | I116: 728.67 | J116: 745.33 | K116: 712 | L116: 684.5 | M116: 58.46347
A117: 108 | B117: IGL | C117: 419.95 | D117: 420.93 | E117: 413.27 | F117: 406.58 | G117: 398.92 | H117: 427.62 | I117: 435.28 | J117: 441.97 | K117: 428.6 | L117: 414.25 | M117: 25.00772
A118: 109 | B118: INDUSTOWER | C118: 185.9 | D118: 186.23 | E118: 183.67 | F118: 181.43 | G118: 178.87 | H118: 188.47 | I118: 191.03 | J118: 193.27 | K118: 188.8 | L118: 184 | M118: 31.7099
A119: 110 | B119: INDUSINDBK | C119: 1142.25 | D119: 1151.45 | E119: 1128.10 | F119: 1113.95 | G119: 1090.60 | H119: 1165.60 | I119: 1188.95 | J119: 1203.10 | K119: 1174.8 | L119: 1137.3 | M119: 49.98273
A120: 111 | B120: NAUKRI | C120: 3906.15 | D120: 3889.23 | E120: 3847.92 | F120: 3789.68 | G120: 3748.37 | H120: 3947.47 | I120: 3988.78 | J120: 4047.02 | K120: 3930.55 | L120: 3831 | M120: 3.27996
A121: 112 | B121: INFY | C121: 1398.65 | D121: 1400.50 | E121: 1391.15 | F121: 1383.65 | G121: 1374.30 | H121: 1408.00 | I121: 1417.35 | J121: 1424.85 | K121: 1409.85 | L121: 1393 | M121: 61.19965
A122: 113 | B122: INDIGO | C122: 1827.3 | D122: 1826.43 | E122: 1807.92 | F122: 1788.53 | G122: 1770.02 | H122: 1845.82 | I122: 1864.33 | J122: 1883.72 | K122: 1844.95 | L122: 1807.05 | M122: 3.70229
A123: 114 | B123: IPCALAB | C123: 909.4 | D123: 906.10 | E123: 899.45 | F123: 889.50 | G123: 882.85 | H123: 916.05 | I123: 922.70 | J123: 932.65 | K123: 912.75 | L123: 896.15 | M123: 2.70063
A124: 115 | B124: JSWENERGY | C124: 299.05 | D124: 295.80 | E124: 289.60 | F124: 280.15 | G124: 273.95 | H124: 305.25 | I124: 311.45 | J124: 320.90 | K124: 302 | L124: 286.35 | M124: 11.67601
A125: 116 | B125: JSWSTEEL | C125: 618.25 | D125: 621.10 | E125: 614.20 | F125: 610.15 | G125: 603.25 | H125: 625.15 | I125: 632.05 | J125: 636.10 | K125: 628 | L125: 617.05 | M125: 35.77828
A126: 117 | B126: JINDALSTEL | C126: 418.2 | D126: 416.45 | E126: 410.90 | F126: 403.60 | G126: 398.05 | H126: 423.75 | I126: 429.30 | J126: 436.60 | K126: 422 | L126: 409.15 | M126: 69.98654
A127: 118 | B127: JUBLFOOD | C127: 603.6 | D127: 604.87 | E127: 595.73 | F127: 587.87 | G127: 578.73 | H127: 612.73 | I127: 621.87 | J127: 629.73 | K127: 614 | L127: 597 | M127: 72.4074
A128: 119 | B128: KOTAKBANK | C128: 1765.3 | D128: 1778.35 | E128: 1746.70 | F128: 1728.10 | G128: 1696.45 | H128: 1796.95 | I128: 1828.60 | J128: 1847.20 | K128: 1810 | L128: 1759.75 | M128: 27.99627
A129: 120 | B129: L&TFH | C129: 73.15 | D129: 73.05 | E129: 72.10 | F129: 71.05 | G129: 70.10 | H129: 74.10 | I129: 75.05 | J129: 76.10 | K129: 74 | L129: 72 | M129: 53.08871
A130: 121 | B130: LTTS | C130: 3520.25 | D130: 3513.77 | E130: 3461.48 | F130: 3402.72 | G130: 3350.43 | H130: 3572.53 | I130: 3624.82 | J130: 3683.58 | K130: 3566.05 | L130: 3455 | M130: 2.37531
A131: 122 | B131: LICHSGFIN | C131: 394.95 | D131: 396.12 | E131: 391.28 | F131: 387.62 | G131: 382.78 | H131: 399.78 | I131: 404.62 | J131: 408.28 | K131: 400.95 | L131: 392.45 | M131: 23.4854
A132: 123 | B132: LTI | C132: 4440.25 | D132: 4474.80 | E132: 4352.95 | F132: 4265.65 | G132: 4143.80 | H132: 4562.10 | I132: 4683.95 | J132: 4771.25 | K132: 4596.65 | L132: 4387.5 | M132: 4.66182
A133: 124 | B133: LT | C133: 1815.5 | D133: 1823.43 | E133: 1789.47 | F133: 1763.43 | G133: 1729.47 | H133: 1849.47 | I133: 1883.43 | J133: 1909.47 | K133: 1857.4 | L133: 1797.4 | M133: 23.77718
A134: 125 | B134: LAURUSLABS | C134: 509.45 | D134: 509.10 | E134: 502.85 | F134: 496.25 | G134: 490.00 | H134: 515.70 | I134: 521.95 | J134: 528.55 | K134: 515.35 | L134: 502.5 | M134: 10.31255
A135: 126 | B135: LUPIN | C135: 654.8 | D135: 657.90 | E135: 641.70 | F135: 628.60 | G135: 612.40 | H135: 671.00 | I135: 687.20 | J135: 700.30 | K135: 674.1 | L135: 644.8 | M135: 44.10562
A136: 127 | B136: MRF | C136: 79622 | D136: 80120.27 | E136: 78301.73 | F136: 76981.47 | G136: 75162.93 | H136: 81440.53 | I136: 83259.07 | J136: 84579.33 | K136: 81938.8 | L136: 78800 | M136: 0.16538
A137: 128 | B137: M&MFIN | C137: 181.8 | D137: 180.68 | E137: 178.47 | F137: 175.13 | G137: 172.92 | H137: 184.02 | I137: 186.23 | J137: 189.57 | K137: 182.9 | L137: 177.35 | M137: 77.29261
A138: 129 | B138: M&M | C138: 1258.35 | D138: 1257.33 | E138: 1246.72 | F138: 1235.08 | G138: 1224.47 | H138: 1268.97 | I138: 1279.58 | J138: 1291.22 | K138: 1267.95 | L138: 1245.7 | M138: 34.74302
A139: 130 | B139: MANAPPURAM | C139: 94.15 | D139: 94.42 | E139: 92.93 | F139: 91.72 | G139: 90.23 | H139: 95.63 | I139: 97.12 | J139: 98.33 | K139: 95.9 | L139: 93.2 | M139: 53.31532
A140: 131 | B140: MARICO | C140: 538.4 | D140: 540.95 | E140: 529.45 | F140: 520.50 | G140: 509.00 | H140: 549.90 | I140: 561.40 | J140: 570.35 | K140: 552.45 | L140: 532 | M140: 23.84651
A141: 132 | B141: MARUTI | C141: 8624.85 | D141: 8676.32 | E141: 8552.63 | F141: 8480.42 | G141: 8356.73 | H141: 8748.53 | I141: 8872.22 | J141: 8944.43 | K141: 8800 | L141: 8604.1 | M141: 8.17007
A142: 133 | B142: MFSL | C142: 769.85 | D142: 766.28 | E142: 753.57 | F142: 737.28 | G142: 724.57 | H142: 782.57 | I142: 795.28 | J142: 811.57 | K142: 779 | L142: 750 | M142: 3.37497
A143: 134 | B143: MAXHEALTH | C143: 402.75 | D143: 401.28 | E143: 389.57 | F143: 376.38 | G143: 364.67 | H143: 414.47 | I143: 426.18 | J143: 439.37 | K143: 413 | L143: 388.1 | M143: 25.0604
A144: 135 | B144: METROPOLIS | C144: 1538.1 | D144: 1533.12 | E144: 1515.23 | F144: 1492.37 | G144: 1474.48 | H144: 1555.98 | I144: 1573.87 | J144: 1596.73 | K144: 1551 | L144: 1510.25 | M144: 3.36169
A145: 136 | B145: MINDTREE | C145: 3089.2 | D145: 3130.95 | E145: 3013.25 | F145: 2937.30 | G145: 2819.60 | H145: 3206.90 | I145: 3324.60 | J145: 3400.55 | K145: 3248.65 | L145: 3055 | M145: 17.81719
A146: 137 | B146: MPHASIS | C146: 2075.95 | D146: 2078.57 | E146: 2048.63 | F146: 2021.32 | G146: 1991.38 | H146: 2105.88 | I146: 2135.82 | J146: 2163.13 | K146: 2108.5 | L146: 2051.25 | M146: 15.43877
A147: 138 | B147: MUTHOOTFIN | C147: 1033.35 | D147: 1037.22 | E147: 1016.43 | F147: 999.52 | G147: 978.73 | H147: 1054.13 | I147: 1074.92 | J147: 1091.83 | K147: 1058 | L147: 1020.3 | M147: 13.82613
A148: 139 | B148: NMDC | C148: 125.15 | D148: 124.55 | E148: 123.40 | F148: 121.65 | G148: 120.50 | H148: 126.30 | I148: 127.45 | J148: 129.20 | K148: 125.7 | L148: 122.8 | M148: 71.80927
A149: 140 | B149: NTPC | C149: 159.55 | D149: 159.75 | E149: 157.80 | F149: 156.05 | G149: 154.10 | H149: 161.50 | I149: 163.45 | J149: 165.20 | K149: 161.7 | L149: 158 | M149: 176.23352
A150: 141 | B150: NATIONALUM | C150: 67.75 | D150: 67.95 | E150: 67.05 | F150: 66.35 | G150: 65.45 | H150: 68.65 | I150: 69.55 | J150: 70.25 | K150: 68.85 | L150: 67.25 | M150: 104.59007
A151: 142 | B151: NAVINFLUOR | C151: 4463.25 | D151: 4464.08 | E151: 4410.17 | F151: 4357.08 | G151: 4303.17 | H151: 4517.17 | I151: 4571.08 | J151: 4624.17 | K151: 4518 | L151: 4411 | M151: 1.62204
A152: 143 | B152: NESTLEIND | C152: 18979.15 | D152: 18966.80 | E152: 18803.60 | F152: 18628.05 | G152: 18464.85 | H152: 19142.35 | I152: 19305.55 | J152: 19481.10 | K152: 19130 | L152: 18791.25 | M152: 0.87195
A153: 144 | B153: NAM-INDIA | C153: 267.05 | D153: 267.63 | E153: 264.42 | F153: 261.78 | G153: 258.57 | H153: 270.27 | I153: 273.48 | J153: 276.12 | K153: 270.85 | L153: 265 | M153: 1.93099
A154: 145 | B154: OBEROIRLTY | C154: 906.9 | D154: 901.77 | E154: 890.13 | F154: 873.37 | G154: 861.73 | H154: 918.53 | I154: 930.17 | J154: 946.93 | K154: 913.4 | L154: 885 | M154: 7.40877
A155: 146 | B155: ONGC | C155: 126.65 | D155: 126.12 | E155: 124.03 | F155: 121.42 | G155: 119.33 | H155: 128.73 | I155: 130.82 | J155: 133.43 | K155: 128.2 | L155: 123.5 | M155: 205.97761
A156: 147 | B156: OIL | C156: 175.7 | D156: 174.17 | E156: 171.83 | F156: 167.97 | G156: 165.63 | H156: 178.03 | I156: 180.37 | J156: 184.23 | K156: 176.5 | L156: 170.3 | M156: 24.69924
A157: 148 | B157: PAYTM | C157: 632.15 | D157: 638.90 | E157: 622.80 | F157: 613.45 | G157: 597.35 | H157: 648.25 | I157: 664.35 | J157: 673.70 | K157: 655 | L157: 629.55 | M157: 6.49589
A158: 149 | B158: OFSS | C158: 2949.9 | D158: 2954.25 | E158: 2923.50 | F158: 2897.10 | G158: 2866.35 | H158: 2980.65 | I158: 3011.40 | J158: 3037.80 | K158: 2985 | L158: 2927.85 | M158: 0.86801
A159: 150 | B159: POLICYBZR | C159: 467.2 | D159: 471.70 | E159: 460.50 | F159: 453.80 | G159: 442.60 | H159: 478.40 | I159: 489.60 | J159: 496.30 | K159: 482.9 | L159: 465 | M159: 3.38411
A160: 151 | B160: PIIND | C160: 2989.6 | D160: 2986.95 | E160: 2957.90 | F160: 2926.20 | G160: 2897.15 | H160: 3018.65 | I160: 3047.70 | J160: 3079.40 | K160: 3016 | L160: 2955.25 | M160: 2.42782
A161: 152 | B161: PAGEIND | C161: 49664.9 | D161: 49780.30 | E161: 48860.60 | F161: 48056.30 | G161: 47136.60 | H161: 50584.60 | I161: 51504.30 | J161: 52308.60 | K161: 50700 | L161: 48976 | M161: 0.26371
A162: 153 | B162: PERSISTENT | C162: 3223.6 | D162: 3228.67 | E162: 3157.33 | F162: 3091.07 | G162: 3019.73 | H162: 3294.93 | I162: 3366.27 | J162: 3432.53 | K162: 3300 | L162: 3162.4 | M162: 6.3259
A163: 154 | B163: PETRONET | C163: 199.95 | D163: 199.52 | E163: 197.48 | F163: 195.02 | G163: 192.98 | H163: 201.98 | I163: 204.02 | J163: 206.48 | K163: 201.55 | L163: 197.05 | M163: 17.617
A164: 155 | B164: PIDILITIND | C164: 2704.2 | D164: 2720.73 | E164: 2653.47 | F164: 2602.73 | G164: 2535.47 | H164: 2771.47 | I164: 2838.73 | J164: 2889.47 | K164: 2788 | L164: 2670 | M164: 7.81261
A165: 156 | B165: PEL | C165: 843.25 | D165: 848.13 | E165: 826.27 | F165: 809.28 | G165: 787.42 | H165: 865.12 | I165: 886.98 | J165: 903.97 | K165: 870 | L165: 831.15 | M165: 14.51592
A166: 157 | B166: POLYCAB | C166: 2586.6 | D166: 2571.20 | E166: 2535.40 | F166: 2484.20 | G166: 2448.40 | H166: 2622.40 | I166: 2658.20 | J166: 2709.40 | K166: 2607 | L166: 2520 | M166: 4.19989
A167: 158 | B167: PFC | C167: 104.75 | D167: 104.97 | E167: 103.58 | F167: 102.42 | G167: 101.03 | H167: 106.13 | I167: 107.52 | J167: 108.68 | K167: 106.35 | L167: 103.8 | M167: 44.8589
A168: 159 | B168: POWERGRID | C168: 208 | D168: 208.72 | E168: 205.33 | F168: 202.67 | G168: 199.28 | H168: 211.38 | I168: 214.77 | J168: 217.43 | K168: 212.1 | L168: 206.05 | M168: 275.71402
A169: 160 | B169: PRESTIGE | C169: 448.8 | D169: 444.88 | E169: 437.92 | F169: 427.03 | G169: 420.07 | H169: 455.77 | I169: 462.73 | J169: 473.62 | K169: 451.85 | L169: 434 | M169: 5.75372
A170: 161 | B170: PGHH | C170: 13598.3 | D170: 13816.10 | E170: 13282.20 | F170: 12966.10 | G170: 12432.20 | H170: 14132.20 | I170: 14666.10 | J170: 14982.20 | K170: 14350 | L170: 13500 | M170: 0.2472
A171: 162 | B171: PNB | C171: 34.9 | D171: 34.97 | E171: 34.18 | F171: 33.47 | G171: 32.68 | H171: 35.68 | I171: 36.47 | J171: 37.18 | K171: 35.75 | L171: 34.25 | M171: 1168.39087
A172: 163 | B172: RECLTD | C172: 94.25 | D172: 94.72 | E172: 92.83 | F172: 91.42 | G172: 89.53 | H172: 96.13 | I172: 98.02 | J172: 99.43 | K172: 96.6 | L172: 93.3 | M172: 89.61792
A173: 164 | B173: RELIANCE | C173: 2325.3 | D173: 2335.27 | E173: 2303.03 | F173: 2280.77 | G173: 2248.53 | H173: 2357.53 | I173: 2389.77 | J173: 2412.03 | K173: 2367.5 | L173: 2313 | M173: 67.71046
A174: 165 | B174: SBICARD | C174: 903.4 | D174: 902.68 | E174: 892.42 | F174: 881.43 | G174: 871.17 | H174: 913.67 | I174: 923.93 | J174: 934.92 | K174: 912.95 | L174: 891.7 | M174: 12.11541
A175: 166 | B175: SBILIFE | C175: 1239.8 | D175: 1242.27 | E175: 1233.53 | F175: 1227.27 | G175: 1218.53 | H175: 1248.53 | I175: 1257.27 | J175: 1263.53 | K175: 1251 | L175: 1236 | M175: 13.82993
A176: 167 | B176: SRF | C176: 2543.85 | D176: 2544.05 | E176: 2493.10 | F176: 2442.35 | G176: 2391.40 | H176: 2594.80 | I176: 2645.75 | J176: 2696.50 | K176: 2595 | L176: 2493.3 | M176: 11.69528
A177: 168 | B177: SHREECEM | C177: 21287.05 | D177: 21178.38 | E177: 20768.77 | F177: 20250.48 | G177: 19840.87 | H177: 21696.67 | I177: 22106.28 | J177: 22624.57 | K177: 21588 | L177: 20660.1 | M177: 6.55229
A178: 169 | B178: SRTRANSFIN | C178: 1209.25 | D178: 1202.97 | E178: 1193.28 | F178: 1177.32 | G178: 1167.63 | H178: 1218.93 | I178: 1228.62 | J178: 1244.58 | K178: 1212.65 | L178: 1187 | M178: 17.72644
A179: 170 | B179: SIEMENS | C179: 2733.9 | D179: 2725.37 | E179: 2708.53 | F179: 2683.17 | G179: 2666.33 | H179: 2750.73 | I179: 2767.57 | J179: 2792.93 | K179: 2742.2 | L179: 2700 | M179: 2.43408
A180: 171 | B180: SONACOMS | C180: 468.85 | D180: 468.23 | E180: 464.12 | F180: 459.38 | G180: 455.27 | H180: 472.97 | I180: 477.08 | J180: 481.82 | K180: 472.35 | L180: 463.5 | M180: 7.66933
A181: 172 | B181: SBIN | C181: 521.75 | D181: 525.67 | E181: 515.63 | F181: 509.52 | G181: 499.48 | H181: 531.78 | I181: 541.82 | J181: 547.93 | K181: 535.7 | L181: 519.55 | M181: 173.10168
A182: 173 | B182: SAIL | C182: 74.05 | D182: 74.42 | E182: 73.18 | F182: 72.32 | G182: 71.08 | H182: 75.28 | I182: 76.52 | J182: 77.38 | K182: 75.65 | L182: 73.55 | M182: 310.48983
A183: 174 | B183: SUNPHARMA | C183: 930.7 | D183: 937.10 | E183: 918.70 | F183: 906.70 | G183: 888.30 | H183: 949.10 | I183: 967.50 | J183: 979.50 | K183: 955.5 | L183: 925.1 | M183: 85.19098
A184: 175 | B184: SUNTV | C184: 500.65 | D184: 499.45 | E184: 494.90 | F184: 489.15 | G184: 484.60 | H184: 505.20 | I184: 509.75 | J184: 515.50 | K184: 504 | L184: 493.7 | M184: 5.89545
A185: 176 | B185: SYNGENE | C185: 556.4 | D185: 553.92 | E185: 548.18 | F185: 539.97 | G185: 534.23 | H185: 562.13 | I185: 567.87 | J185: 576.08 | K185: 559.65 | L185: 545.7 | M185: 4.78621
A186: 177 | B186: TVSMOTOR | C186: 1011.9 | D186: 1019.53 | E186: 1002.07 | F186: 992.23 | G186: 974.77 | H186: 1029.37 | I186: 1046.83 | J186: 1056.67 | K186: 1037 | L186: 1009.7 | M186: 10.56799
A187: 178 | B187: TATACHEM | C187: 1093 | D187: 1096.38 | E187: 1067.77 | F187: 1042.53 | G187: 1013.92 | H187: 1121.62 | I187: 1150.23 | J187: 1175.47 | K187: 1125 | L187: 1071.15 | M187: 57.90446
A188: 179 | B188: TATACOMM | C188: 1121.9 | D188: 1126.47 | E188: 1104.48 | F188: 1087.07 | G188: 1065.08 | H188: 1143.88 | I188: 1165.87 | J188: 1183.28 | K188: 1148.45 | L188: 1109.05 | M188: 3.89319
A189: 180 | B189: TCS | C189: 2997.3 | D189: 3014.38 | E189: 2972.92 | F189: 2948.53 | G189: 2907.07 | H189: 3038.77 | I189: 3080.23 | J189: 3104.62 | K189: 3055.85 | L189: 2990 | M189: 24.93902
A190: 181 | B190: TATACONSUM | C190: 792.6 | D190: 795.53 | E190: 787.37 | F190: 782.13 | G190: 773.97 | H190: 800.77 | I190: 808.93 | J190: 814.17 | K190: 803.7 | L190: 790.3 | M190: 11.36839
A191: 182 | B191: TATAELXSI | C191: 8428.6 | D191: 8442.18 | E191: 8326.42 | F191: 8224.23 | G191: 8108.47 | H191: 8544.37 | I191: 8660.13 | J191: 8762.32 | K191: 8557.95 | L191: 8340 | M191: 1.47171
A192: 183 | B192: TATAMOTORS | C192: 402.25 | D192: 405.03 | E192: 396.82 | F192: 391.38 | G192: 383.17 | H192: 410.47 | I192: 418.68 | J192: 424.12 | K192: 413.25 | L192: 399.6 | M192: 207.25995
A193: 184 | B193: TATAPOWER | C193: 212.25 | D193: 213.58 | E193: 209.17 | F193: 206.08 | G193: 201.67 | H193: 216.67 | I193: 221.08 | J193: 224.17 | K193: 218 | L193: 210.5 | M193: 187.36174
A194: 185 | B194: TATASTEEL | C194: 96.85 | D194: 97.17 | E194: 96.08 | F194: 95.32 | G194: 94.23 | H194: 97.93 | I194: 99.02 | J194: 99.78 | K194: 98.25 | L194: 96.4 | M194: 608.84592
A195: 186 | B195: TECHM | C195: 1007.1 | D195: 1017.75 | E195: 991.00 | F195: 974.90 | G195: 948.15 | H195: 1033.85 | I195: 1060.60 | J195: 1076.70 | K195: 1044.5 | L195: 1001.65 | M195: 31.7631
A196: 187 | B196: RAMCOCEM | C196: 749.1 | D196: 750.47 | E196: 740.18 | F196: 731.27 | G196: 720.98 | H196: 759.38 | I196: 769.67 | J196: 778.58 | K196: 760.75 | L196: 741.55 | M196: 5.56512
A197: 188 | B197: TITAN | C197: 2531.5 | D197: 2551.63 | E197: 2497.22 | F197: 2462.93 | G197: 2408.52 | H197: 2585.92 | I197: 2640.33 | J197: 2674.62 | K197: 2606.05 | L197: 2517.35 | M197: 11.77076
A198: 189 | B198: TORNTPHARM | C198: 1545.8 | D198: 1534.32 | E198: 1513.83 | F198: 1481.87 | G198: 1461.38 | H198: 1566.28 | I198: 1586.77 | J198: 1618.73 | K198: 1554.8 | L198: 1502.35 | M198: 7.02076
A199: 190 | B199: TORNTPOWER | C199: 482.9 | D199: 486.92 | E199: 473.98 | F199: 465.07 | G199: 452.13 | H199: 495.83 | I199: 508.77 | J199: 517.68 | K199: 499.85 | L199: 478 | M199: 4.45651
A200: 191 | B200: TRENT | C200: 1397.65 | D200: 1392.30 | E200: 1375.45 | F200: 1353.25 | G200: 1336.40 | H200: 1414.50 | I200: 1431.35 | J200: 1453.55 | K200: 1409.15 | L200: 1370.1 | M200: 5.13074
A201: 192 | B201: TRIDENT | C201: 36.1 | D201: 36.17 | E201: 35.73 | F201: 35.37 | G201: 34.93 | H201: 36.53 | I201: 36.97 | J201: 37.33 | K201: 36.6 | L201: 35.8 | M201: 35.60393
A202: 193 | B202: UPL | C202: 656.8 | D202: 662.08 | E202: 648.72 | F202: 640.63 | G202: 627.27 | H202: 670.17 | I202: 683.53 | J202: 691.62 | K202: 675.45 | L202: 654 | M202: 21.21416
A203: 194 | B203: ULTRACEMCO | C203: 6175.9 | D203: 6194.58 | E203: 6126.32 | F203: 6076.73 | G203: 6008.47 | H203: 6244.17 | I203: 6312.43 | J203: 6362.02 | K203: 6262.85 | L203: 6145 | M203: 4.07574
A204: 195 | B204: UNIONBANK | C204: 43.65 | D204: 43.37 | E204: 42.28 | F204: 40.92 | G204: 39.83 | H204: 44.73 | I204: 45.82 | J204: 47.18 | K204: 44.45 | L204: 42 | M204: 73.24329
A205: 196 | B205: UBL | C205: 1699.7 | D205: 1694.20 | E205: 1671.40 | F205: 1643.10 | G205: 1620.30 | H205: 1722.50 | I205: 1745.30 | J205: 1773.60 | K205: 1717 | L205: 1665.9 | M205: 2.6355
... 29 more rows

Sheet MidCap Intra
L5: Back To Main Page
A6: FOR INTRA DAY TRADING | K6: =Main!B10 -> 2022-09-30
A9: Sr.no | B9: Scrip | C9: CLOSE RATE | D9: Pivot Point | E9: Supports | H9: Resistances
E10: S1 | F10: S2 | G10: S3 | H10: R1 | I10: R2 | J10: R3 | K10: HIGH | L10: LOW | M10: Total Trade Quanity in Lakhs
A11: 1 | B11: 3MINDIA | C11: 24086.55 | D11: 23864.02 | E11: 23503.03 | F11: 22919.52 | G11: 22558.53 | H11: 24447.53 | I11: 24808.52 | J11: 25392.03 | K11: 24225 | L11: 23280.5 | M11: 0.04076
A12: 2 | B12: ABB | C12: 2996.2 | D12: 3006.40 | E12: 2962.80 | F12: 2929.40 | G12: 2885.80 | H12: 3039.80 | I12: 3083.40 | J12: 3116.80 | K12: 3050 | L12: 2973 | M12: 2.91653
A13: 3 | B13: ACC | C13: 2374.05 | D13: 2360.12 | E13: 2335.23 | F13: 2296.42 | G13: 2271.53 | H13: 2398.93 | I13: 2423.82 | J13: 2462.63 | K13: 2385 | L13: 2321.3 | M13: 11.59023
A14: 4 | B14: AIAENG | C14: 2505.7 | D14: 2493.23 | E14: 2437.47 | F14: 2369.23 | G14: 2313.47 | H14: 2561.47 | I14: 2617.23 | J14: 2685.47 | K14: 2549 | L14: 2425 | M14: 0.36971
A15: 5 | B15: APLAPOLLO | C15: 1017.85 | D15: 1025.62 | E15: 998.78 | F15: 979.72 | G15: 952.88 | H15: 1044.68 | I15: 1071.52 | J15: 1090.58 | K15: 1052.45 | L15: 1006.55 | M15: 4.20577
A16: 6 | B16: AUBANK | C16: 600.4 | D16: 599.07 | E16: 589.98 | F16: 579.57 | G16: 570.48 | H16: 609.48 | I16: 618.57 | J16: 628.98 | K16: 608.15 | L16: 588.65 | M16: 27.72572
A17: 7 | B17: AARTIDRUGS | C17: 463.9 | D17: 459.95 | E17: 452.90 | F17: 441.90 | G17: 434.85 | H17: 470.95 | I17: 478.00 | J17: 489.00 | K17: 467 | L17: 448.95 | M17: 1.43733
A18: 8 | B18: AAVAS | C18: 2161.5 | D18: 2172.18 | E18: 2119.37 | F18: 2077.23 | G18: 2024.42 | H18: 2214.32 | I18: 2267.13 | J18: 2309.27 | K18: 2225 | L18: 2130.05 | M18: 0.8596
A19: 9 | B19: ABBOTINDIA | C19: 19181.1 | D19: 18900.90 | E19: 18502.80 | F19: 17824.50 | G19: 17426.40 | H19: 19579.20 | I19: 19977.30 | J19: 20655.60 | K19: 19299 | L19: 18222.6 | M19: 0.85444
A20: 10 | B20: ADANIENT | C20: 3470.7 | D20: 3526.35 | E20: 3387.95 | F20: 3305.20 | G20: 3166.80 | H20: 3609.10 | I20: 3747.50 | J20: 3830.25 | K20: 3664.75 | L20: 3443.6 | M20: 150.60223
A21: 11 | B21: ADANIGREEN | C21: 2004.05 | D21: 2042.73 | E21: 1947.47 | F21: 1890.88 | G21: 1795.62 | H21: 2099.32 | I21: 2194.58 | J21: 2251.17 | K21: 2138 | L21: 1986.15 | M21: 19.09893
A22: 12 | B22: ADANIPORTS | C22: 816.4 | D22: 825.65 | E22: 803.80 | F22: 791.20 | G22: 769.35 | H22: 838.25 | I22: 860.10 | J22: 872.70 | K22: 847.5 | L22: 813.05 | M22: 74.76709
A23: 13 | B23: ATGL | C23: 3372.25 | D23: 3416.82 | E23: 3258.83 | F23: 3145.42 | G23: 2987.43 | H23: 3530.23 | I23: 3688.22 | J23: 3801.63 | K23: 3574.8 | L23: 3303.4 | M23: 24.36698
A24: 14 | B24: ADANITRANS | C24: 3406.4 | D24: 3510.97 | E24: 3246.13 | F24: 3085.87 | G24: 2821.03 | H24: 3671.23 | I24: 3936.07 | J24: 4096.33 | K24: 3775.8 | L24: 3350.7 | M24: 8.87218
A25: 15 | B25: ABCAPITAL | C25: 109.7 | D25: 109.28 | E25: 108.17 | F25: 106.63 | G25: 105.52 | H25: 110.82 | I25: 111.93 | J25: 113.47 | K25: 110.4 | L25: 107.75 | M25: 29.29258
A26: 16 | B26: ABFRL | C26: 338.15 | D26: 336.38 | E26: 332.77 | F26: 327.38 | G26: 323.77 | H26: 341.77 | I26: 345.38 | J26: 350.77 | K26: 340 | L26: 331 | M26: 33.08639
A27: 17 | B27: ABSLAMC | C27: 453.75 | D27: 455.07 | E27: 451.18 | F27: 448.62 | G27: 444.73 | H27: 457.63 | I27: 461.52 | J27: 464.08 | K27: 458.95 | L27: 452.5 | M27: 0.29996
A28: 18 | B28: ADVENZYMES | C28: 271.9 | D28: 275.13 | E28: 266.87 | F28: 261.83 | G28: 253.57 | H28: 280.17 | I28: 288.43 | J28: 293.47 | K28: 283.4 | L28: 270.1 | M28: 2.61613
A29: 19 | B29: AEGISCHEM | C29: 262.8 | D29: 264.18 | E29: 259.87 | F29: 256.93 | G29: 252.62 | H29: 267.12 | I29: 271.43 | J29: 274.37 | K29: 268.5 | L29: 261.25 | M29: 2.84992
A30: 20 | B30: AFFLE | C30: 1209.6 | D30: 1207.48 | E30: 1188.22 | F30: 1166.83 | G30: 1147.57 | H30: 1228.87 | I30: 1248.13 | J30: 1269.52 | K30: 1226.75 | L30: 1186.1 | M30: 1.28137
A31: 21 | B31: AJANTPHARM | C31: 1272.95 | D31: 1266.33 | E31: 1247.62 | F31: 1222.28 | G31: 1203.57 | H31: 1291.67 | I31: 1310.38 | J31: 1335.72 | K31: 1285.05 | L31: 1241 | M31: 0.21439
A32: 22 | B32: APLLTD | C32: 599.8 | D32: 595.08 | E32: 582.47 | F32: 565.13 | G32: 552.52 | H32: 612.42 | I32: 625.03 | J32: 642.37 | K32: 607.7 | L32: 577.75 | M32: 1.68594
A33: 23 | B33: ALKEM | C33: 3259.85 | D33: 3255.30 | E33: 3190.60 | F33: 3121.35 | G33: 3056.65 | H33: 3324.55 | I33: 3389.25 | J33: 3458.50 | K33: 3320 | L33: 3186.05 | M33: 2.87666
A34: 24 | B34: ALKYLAMINE | C34: 2882.5 | D34: 2881.15 | E34: 2851.95 | F34: 2821.40 | G34: 2792.20 | H34: 2911.70 | I34: 2940.90 | J34: 2971.45 | K34: 2910.35 | L34: 2850.6 | M34: 0.2771
A35: 25 | B35: ALLCARGO | C35: 422.15 | D35: 417.90 | E35: 410.80 | F35: 399.45 | G35: 392.35 | H35: 429.25 | I35: 436.35 | J35: 447.70 | K35: 425 | L35: 406.55 | M35: 24.69025
A36: 26 | B36: ALOKINDS | C36: 17.9 | D36: 17.98 | E36: 17.67 | F36: 17.43 | G36: 17.12 | H36: 18.22 | I36: 18.53 | J36: 18.77 | K36: 18.3 | L36: 17.75 | M36: 17.60582
A37: 27 | B37: AMARAJABAT | C37: 483.55 | D37: 486.02 | E37: 478.53 | F37: 473.52 | G37: 466.03 | H37: 491.03 | I37: 498.52 | J37: 503.53 | K37: 493.5 | L37: 481 | M37: 4.11714
A38: 28 | B38: AMBER | C38: 2296.85 | D38: 2275.00 | E38: 2245.00 | F38: 2193.15 | G38: 2163.15 | H38: 2326.85 | I38: 2356.85 | J38: 2408.70 | K38: 2305 | L38: 2223.15 | M38: 0.38099
A39: 29 | B39: AMBUJACEM | C39: 506.35 | D39: 506.85 | E39: 494.70 | F39: 483.05 | G39: 470.90 | H39: 518.50 | I39: 530.65 | J39: 542.30 | K39: 519 | L39: 495.2 | M39: 112.97808
A40: 30 | B40: ANGELONE | C40: 1329.3 | D40: 1334.60 | E40: 1310.20 | F40: 1291.10 | G40: 1266.70 | H40: 1353.70 | I40: 1378.10 | J40: 1397.20 | K40: 1359 | L40: 1315.5 | M40: 2.67681
A41: 31 | B41: ANURAS | C41: 746.2 | D41: 759.07 | E41: 731.13 | F41: 716.07 | G41: 688.13 | H41: 774.13 | I41: 802.07 | J41: 817.13 | K41: 787 | L41: 744 | M41: 2.2974
A42: 32 | B42: APOLLOHOSP | C42: 4391.7 | D42: 4360.43 | E42: 4316.22 | F42: 4240.73 | G42: 4196.52 | H42: 4435.92 | I42: 4480.13 | J42: 4555.62 | K42: 4404.65 | L42: 4284.95 | M42: 6.31907
A43: 33 | B43: APOLLOTYRE | C43: 270.75 | D43: 272.75 | E43: 267.60 | F43: 264.45 | G43: 259.30 | H43: 275.90 | I43: 281.05 | J43: 284.20 | K43: 277.9 | L43: 269.6 | M43: 36.9648
A44: 34 | B44: APTUS | C44: 303.65 | D44: 306.52 | E44: 299.13 | F44: 294.62 | G44: 287.23 | H44: 311.03 | I44: 318.42 | J44: 322.93 | K44: 313.9 | L44: 302 | M44: 3.48767
A45: 35 | B45: ASAHIINDIA | C45: 632.25 | D45: 628.03 | E45: 617.27 | F45: 602.28 | G45: 591.52 | H45: 643.02 | I45: 653.78 | J45: 668.77 | K45: 638.8 | L45: 613.05 | M45: 3.94787
A46: 36 | B46: ASHOKLEY | C46: 149.35 | D46: 150.20 | E46: 147.90 | F46: 146.45 | G46: 144.15 | H46: 151.65 | I46: 153.95 | J46: 155.40 | K46: 152.5 | L46: 148.75 | M46: 119.01521
A47: 37 | B47: ASIANPAINT | C47: 3384.8 | D47: 3440.22 | E47: 3316.98 | F47: 3249.17 | G47: 3125.93 | H47: 3508.03 | I47: 3631.27 | J47: 3699.08 | K47: 3563.45 | L47: 3372.4 | M47: 26.24894
A48: 38 | B48: ASTERDM | C48: 254.9 | D48: 256.30 | E48: 250.20 | F48: 245.50 | G48: 239.40 | H48: 261.00 | I48: 267.10 | J48: 271.80 | K48: 262.4 | L48: 251.6 | M48: 11.68128
A49: 39 | B49: ASTRAZEN | C49: 3002.25 | D49: 3017.60 | E49: 2930.45 | F49: 2858.65 | G49: 2771.50 | H49: 3089.40 | I49: 3176.55 | J49: 3248.35 | K49: 3104.75 | L49: 2945.8 | M49: 0.10199
A50: 40 | B50: ASTRAL | C50: 2155.65 | D50: 2179.97 | E50: 2121.08 | F50: 2086.52 | G50: 2027.63 | H50: 2214.53 | I50: 2273.42 | J50: 2307.98 | K50: 2238.85 | L50: 2145.4 | M50: 5.78343
A51: 41 | B51: ATUL | C51: 8923.65 | D51: 8871.62 | E51: 8793.33 | F51: 8663.02 | G51: 8584.73 | H51: 9001.93 | I51: 9080.22 | J51: 9210.53 | K51: 8949.9 | L51: 8741.3 | M51: 0.35141
A52: 42 | B52: AUROPHARMA | C52: 509.7 | D52: 507.93 | E52: 504.97 | F52: 500.23 | G52: 497.27 | H52: 512.67 | I52: 515.63 | J52: 520.37 | K52: 510.9 | L52: 503.2 | M52: 19.50903
A53: 43 | B53: AVANTIFEED | C53: 466.05 | D53: 470.68 | E53: 460.37 | F53: 454.68 | G53: 444.37 | H53: 476.37 | I53: 486.68 | J53: 492.37 | K53: 481 | L53: 465 | M53: 0.98231
A54: 44 | B54: DMART | C54: 4240.55 | D54: 4292.53 | E54: 4168.12 | F54: 4095.68 | G54: 3971.27 | H54: 4364.97 | I54: 4489.38 | J54: 4561.82 | K54: 4416.95 | L54: 4220.1 | M54: 5.18364
A55: 45 | B55: AXISBANK | C55: 719 | D55: 720.27 | E55: 709.73 | F55: 700.47 | G55: 689.93 | H55: 729.53 | I55: 740.07 | J55: 749.33 | K55: 730.8 | L55: 711 | M55: 120.90981
A56: 46 | B56: BASF | C56: 2990.35 | D56: 2983.23 | E56: 2957.17 | F56: 2923.98 | G56: 2897.92 | H56: 3016.42 | I56: 3042.48 | J56: 3075.67 | K56: 3009.3 | L56: 2950.05 | M56: 0.51225
A57: 47 | B57: BSE | C57: 600.9 | D57: 603.30 | E57: 592.60 | F57: 584.30 | G57: 573.60 | H57: 611.60 | I57: 622.30 | J57: 630.60 | K57: 614 | L57: 595 | M57: 4.3884
A58: 48 | B58: BAJAJ-AUTO | C58: 3476.7 | D58: 3501.87 | E58: 3439.88 | F58: 3403.07 | G58: 3341.08 | H58: 3538.68 | I58: 3600.67 | J58: 3637.48 | K58: 3563.85 | L58: 3465.05 | M58: 3.50931
A59: 49 | B59: BAJAJELEC | C59: 1136.35 | D59: 1127.42 | E59: 1104.83 | F59: 1073.32 | G59: 1050.73 | H59: 1158.93 | I59: 1181.52 | J59: 1213.03 | K59: 1150 | L59: 1095.9 | M59: 1.2807
A60: 50 | B60: BAJFINANCE | C60: 7104.75 | D60: 7169.90 | E60: 7022.90 | F60: 6941.05 | G60: 6794.05 | H60: 7251.75 | I60: 7398.75 | J60: 7480.60 | K60: 7316.9 | L60: 7088.05 | M60: 9.69632
A61: 51 | B61: BAJAJFINSV | C61: 1635.9 | D61: 1649.63 | E61: 1614.27 | F61: 1592.63 | G61: 1557.27 | H61: 1671.27 | I61: 1706.63 | J61: 1728.27 | K61: 1685 | L61: 1628 | M61: 24.18856
A62: 52 | B62: BAJAJHLDNG | C62: 6302.45 | D62: 6392.87 | E62: 6049.58 | F62: 5796.72 | G62: 5453.43 | H62: 6645.73 | I62: 6989.02 | J62: 7241.88 | K62: 6736.15 | L62: 6140 | M62: 1.49105
A63: 53 | B63: BALAMINES | C63: 3214.25 | D63: 3243.70 | E63: 3170.55 | F63: 3126.85 | G63: 3053.70 | H63: 3287.40 | I63: 3360.55 | J63: 3404.25 | K63: 3316.85 | L63: 3200 | M63: 0.50969
A64: 54 | B64: BALKRISIND | C64: 1844.05 | D64: 1860.27 | E64: 1821.83 | F64: 1799.62 | G64: 1761.18 | H64: 1882.48 | I64: 1920.92 | J64: 1943.13 | K64: 1898.7 | L64: 1838.05 | M64: 4.11001
A65: 55 | B65: BALRAMCHIN | C65: 341.75 | D65: 343.92 | E65: 336.83 | F65: 331.92 | G65: 324.83 | H65: 348.83 | I65: 355.92 | J65: 360.83 | K65: 351 | L65: 339 | M65: 11.24765
A66: 56 | B66: BANDHANBNK | C66: 260.75 | D66: 258.98 | E66: 255.97 | F66: 251.18 | G66: 248.17 | H66: 263.77 | I66: 266.78 | J66: 271.57 | K66: 262 | L66: 254.2 | M66: 64.35805
A67: 57 | B67: BANKBARODA | C67: 127.45 | D67: 127.55 | E67: 124.90 | F67: 122.35 | G67: 119.70 | H67: 130.10 | I67: 132.75 | J67: 135.30 | K67: 130.2 | L67: 125 | M67: 261.09674
A68: 58 | B68: BANKINDIA | C68: 48.2 | D68: 47.93 | E68: 46.12 | F68: 44.03 | G68: 42.22 | H68: 50.02 | I68: 51.83 | J68: 53.92 | K68: 49.75 | L68: 45.85 | M68: 40.34029
A69: 59 | B69: MAHABANK | C69: 17.45 | D69: 17.37 | E69: 16.98 | F69: 16.52 | G69: 16.13 | H69: 17.83 | I69: 18.22 | J69: 18.68 | K69: 17.75 | L69: 16.9 | M69: 40.51089
A70: 60 | B70: BATAINDIA | C70: 1787.1 | D70: 1782.93 | E70: 1760.72 | F70: 1734.33 | G70: 1712.12 | H70: 1809.32 | I70: 1831.53 | J70: 1857.92 | K70: 1805.15 | L70: 1756.55 | M70: 1.98449
A71: 61 | B71: BAYERCROP | C71: 4863.4 | D71: 4840.47 | E71: 4802.93 | F71: 4742.47 | G71: 4704.93 | H71: 4900.93 | I71: 4938.47 | J71: 4998.93 | K71: 4878 | L71: 4780 | M71: 0.07882
A72: 62 | B72: BERGEPAINT | C72: 620.3 | D72: 622.48 | E72: 610.27 | F72: 600.23 | G72: 588.02 | H72: 632.52 | I72: 644.73 | J72: 654.77 | K72: 634.7 | L72: 612.45 | M72: 10.73403
A73: 63 | B73: BDL | C73: 869.25 | D73: 860.55 | E73: 844.10 | F73: 818.95 | G73: 802.50 | H73: 885.70 | I73: 902.15 | J73: 927.30 | K73: 877 | L73: 835.4 | M73: 13.74704
A74: 64 | B74: BEL | C74: 99 | D74: 99.35 | E74: 98.00 | F74: 97.00 | G74: 95.65 | H74: 100.35 | I74: 101.70 | J74: 102.70 | K74: 100.7 | L74: 98.35 | M74: 744.76855
A75: 65 | B75: BHARATFORG | C75: 686.7 | D75: 690.02 | E75: 674.03 | F75: 661.37 | G75: 645.38 | H75: 702.68 | I75: 718.67 | J75: 731.33 | K75: 706 | L75: 677.35 | M75: 19.39514
A76: 66 | B76: BHEL | C76: 58.5 | D76: 58.22 | E76: 57.68 | F76: 56.87 | G76: 56.33 | H76: 59.03 | I76: 59.57 | J76: 60.38 | K76: 58.75 | L76: 57.4 | M76: 220.08219
A77: 67 | B77: BPCL | C77: 303.25 | D77: 304.83 | E77: 300.92 | F77: 298.58 | G77: 294.67 | H77: 307.17 | I77: 311.08 | J77: 313.42 | K77: 308.75 | L77: 302.5 | M77: 32.66251
A78: 68 | B78: BHARTIARTL | C78: 764.65 | D78: 764.32 | E78: 759.63 | F78: 754.62 | G78: 749.93 | H78: 769.33 | I78: 774.02 | J78: 779.03 | K78: 769 | L78: 759.3 | M78: 54.13233
A79: 69 | B79: BIOCON | C79: 286.85 | D79: 286.60 | E79: 284.50 | F79: 282.15 | G79: 280.05 | H79: 288.95 | I79: 291.05 | J79: 293.40 | K79: 288.7 | L79: 284.25 | M79: 15.41227
A80: 70 | B80: BIRLACORPN | C80: 975.1 | D80: 985.73 | E80: 960.47 | F80: 945.83 | G80: 920.57 | H80: 1000.37 | I80: 1025.63 | J80: 1040.27 | K80: 1011 | L80: 971.1 | M80: 0.6781
A81: 71 | B81: BSOFT | C81: 280.8 | D81: 283.67 | E81: 276.53 | F81: 272.27 | G81: 265.13 | H81: 287.93 | I81: 295.07 | J81: 299.33 | K81: 290.8 | L81: 279.4 | M81: 21.25356
A82: 72 | B82: BLUEDART | C82: 8710.9 | D82: 8756.67 | E82: 8624.33 | F82: 8537.77 | G82: 8405.43 | H82: 8843.23 | I82: 8975.57 | J82: 9062.13 | K82: 8889 | L82: 8670.1 | M82: 0.3767
A83: 73 | B83: BLUESTARCO | C83: 1097.05 | D83: 1098.35 | E83: 1086.75 | F83: 1076.45 | G83: 1064.85 | H83: 1108.65 | I83: 1120.25 | J83: 1130.55 | K83: 1109.95 | L83: 1088.05 | M83: 0.98605
A84: 74 | B84: BBTC | C84: 915.25 | D84: 919.90 | E84: 909.35 | F84: 903.45 | G84: 892.90 | H84: 925.80 | I84: 936.35 | J84: 942.25 | K84: 930.45 | L84: 914 | M84: 0.20512
A85: 75 | B85: BORORENEW | C85: 582.85 | D85: 586.52 | E85: 575.33 | F85: 567.82 | G85: 556.63 | H85: 594.03 | I85: 605.22 | J85: 612.73 | K85: 597.7 | L85: 579 | M85: 1.90199
A86: 76 | B86: BOSCHLTD | C86: 15670.45 | D86: 15621.82 | E86: 15348.63 | F86: 15026.82 | G86: 14753.63 | H86: 15943.63 | I86: 16216.82 | J86: 16538.63 | K86: 15895 | L86: 15300 | M86: 0.57959
A87: 77 | B87: BRIGADE | C87: 504.4 | D87: 507.85 | E87: 493.70 | F87: 483.00 | G87: 468.85 | H87: 518.55 | I87: 532.70 | J87: 543.40 | K87: 522 | L87: 497.15 | M87: 2.37071
A88: 78 | B88: BCG | C88: 32.15 | D88: 32.40 | E88: 31.55 | F88: 30.95 | G88: 30.10 | H88: 33.00 | I88: 33.85 | J88: 34.45 | K88: 33.25 | L88: 31.8 | M88: 117.6512
A89: 79 | B89: BRITANNIA | C89: 3864.5 | D89: 3849.17 | E89: 3825.33 | F89: 3786.17 | G89: 3762.33 | H89: 3888.33 | I89: 3912.17 | J89: 3951.33 | K89: 3873 | L89: 3810 | M89: 4.50207
A90: 80 | B90: MAPMYINDIA | C90: 1359.8 | D90: 1350.03 | E90: 1331.27 | F90: 1302.73 | G90: 1283.97 | H90: 1378.57 | I90: 1397.33 | J90: 1425.87 | K90: 1368.8 | L90: 1321.5 | M90: 0.84151
A91: 81 | B91: CCL | C91: 497.9 | D91: 500.33 | E91: 490.72 | F91: 483.53 | G91: 473.92 | H91: 507.52 | I91: 517.13 | J91: 524.32 | K91: 509.95 | L91: 493.15 | M91: 0.9517
A92: 82 | B92: CESC | C92: 78.05 | D92: 77.98 | E92: 77.37 | F92: 76.68 | G92: 76.07 | H92: 78.67 | I92: 79.28 | J92: 79.97 | K92: 78.6 | L92: 77.3 | M92: 17.86709
A93: 83 | B93: CGPOWER | C93: 236.45 | D93: 235.75 | E93: 232.60 | F93: 228.75 | G93: 225.60 | H93: 239.60 | I93: 242.75 | J93: 246.60 | K93: 238.9 | L93: 231.9 | M93: 50.09594
A94: 84 | B94: CRISIL | C94: 3164.25 | D94: 3145.30 | E94: 3091.80 | F94: 3019.35 | G94: 2965.85 | H94: 3217.75 | I94: 3271.25 | J94: 3343.70 | K94: 3198.8 | L94: 3072.85 | M94: 0.16258
A95: 85 | B95: CSBBANK | C95: 220.5 | D95: 220.80 | E95: 217.80 | F95: 215.10 | G95: 212.10 | H95: 223.50 | I95: 226.50 | J95: 229.20 | K95: 223.8 | L95: 218.1 | M95: 2.12084
A96: 86 | B96: CANFINHOME | C96: 470.55 | D96: 471.18 | E96: 464.37 | F96: 458.18 | G96: 451.37 | H96: 477.37 | I96: 484.18 | J96: 490.37 | K96: 478 | L96: 465 | M96: 40.95077
A97: 87 | B97: CANBK | C97: 215.4 | D97: 215.78 | E97: 212.22 | F97: 209.03 | G97: 205.47 | H97: 218.97 | I97: 222.53 | J97: 225.72 | K97: 219.35 | L97: 212.6 | M97: 159.1844
A98: 88 | B98: CAPLIPOINT | C98: 728.95 | D98: 733.62 | E98: 720.33 | F98: 711.72 | G98: 698.43 | H98: 742.23 | I98: 755.52 | J98: 764.13 | K98: 746.9 | L98: 725 | M98: 0.25587
A99: 89 | B99: CGCL | C99: 730.3 | D99: 733.40 | E99: 723.90 | F99: 717.50 | G99: 708.00 | H99: 739.80 | I99: 749.30 | J99: 755.70 | K99: 742.9 | L99: 727 | M99: 1.11678
A100: 90 | B100: CARBORUNIV | C100: 850.45 | D100: 848.13 | E100: 843.12 | F100: 835.78 | G100: 830.77 | H100: 855.47 | I100: 860.48 | J100: 867.82 | K100: 853.15 | L100: 840.8 | M100: 0.74832
A101: 91 | B101: CASTROLIND | C101: 111.35 | D101: 111.45 | E101: 110.50 | F101: 109.65 | G101: 108.70 | H101: 112.30 | I101: 113.25 | J101: 114.10 | K101: 112.4 | L101: 110.6 | M101: 3.67194
A102: 92 | B102: CEATLTD | C102: 1521.2 | D102: 1533.40 | E102: 1502.80 | F102: 1484.40 | G102: 1453.80 | H102: 1551.80 | I102: 1582.40 | J102: 1600.80 | K102: 1564 | L102: 1515 | M102: 0.80451
A103: 93 | B103: CENTRALBK | C103: 19.75 | D103: 19.78 | E103: 19.17 | F103: 18.58 | G103: 17.97 | H103: 20.37 | I103: 20.98 | J103: 21.57 | K103: 20.4 | L103: 19.2 | M103: 40.77261
A104: 94 | B104: CDSL | C104: 1226.55 | D104: 1235.45 | E104: 1216.10 | F104: 1205.65 | G104: 1186.30 | H104: 1245.90 | I104: 1265.25 | J104: 1275.70 | K104: 1254.8 | L104: 1225 | M104: 2.88298
A105: 95 | B105: CENTURYPLY | C105: 648.85 | D105: 647.45 | E105: 641.75 | F105: 634.65 | G105: 628.95 | H105: 654.55 | I105: 660.25 | J105: 667.35 | K105: 653.15 | L105: 640.35 | M105: 0.95215
A106: 96 | B106: CENTURYTEX | C106: 823 | D106: 827.70 | E106: 815.40 | F106: 807.80 | G106: 795.50 | H106: 835.30 | I106: 847.60 | J106: 855.20 | K106: 840 | L106: 820.1 | M106: 0.65518
A107: 97 | B107: CERA | C107: 5471.35 | D107: 5488.83 | E107: 5342.67 | F107: 5213.98 | G107: 5067.82 | H107: 5617.52 | I107: 5763.68 | J107: 5892.37 | K107: 5635 | L107: 5360.15 | M107: 0.25325
A108: 98 | B108: CHALET | C108: 340.1 | D108: 339.90 | E108: 336.50 | F108: 332.90 | G108: 329.50 | H108: 343.50 | I108: 346.90 | J108: 350.50 | K108: 343.3 | L108: 336.3 | M108: 1.24219
A109: 99 | B109: CHAMBLFERT | C109: 309.35 | D109: 308.62 | E109: 304.03 | F109: 298.72 | G109: 294.13 | H109: 313.93 | I109: 318.52 | J109: 323.83 | K109: 313.2 | L109: 303.3 | M109: 15.17525
A110: 100 | B110: CHEMPLASTS | C110: 415.65 | D110: 418.20 | E110: 405.55 | F110: 395.45 | G110: 382.80 | H110: 428.30 | I110: 440.95 | J110: 451.05 | K110: 430.85 | L110: 408.1 | M110: 0.64355
A111: 101 | B111: CHOLAHLDNG | C111: 629.55 | D111: 630.57 | E111: 620.08 | F111: 610.62 | G111: 600.13 | H111: 640.03 | I111: 650.52 | J111: 659.98 | K111: 641.05 | L111: 621.1 | M111: 0.54862
A112: 102 | B112: CHOLAFIN | C112: 727.65 | D112: 726.35 | E112: 717.40 | F112: 707.15 | G112: 698.20 | H112: 736.60 | I112: 745.55 | J112: 755.80 | K112: 735.3 | L112: 716.1 | M112: 12.28777
A113: 103 | B113: CIPLA | C113: 1115.85 | D113: 1108.53 | E113: 1095.42 | F113: 1074.98 | G113: 1061.87 | H113: 1128.97 | I113: 1142.08 | J113: 1162.52 | K113: 1121.65 | L113: 1088.1 | M113: 20.93772
A114: 104 | B114: CUB | C114: 171.75 | D114: 171.55 | E114: 168.25 | F114: 164.75 | G114: 161.45 | H114: 175.05 | I114: 178.35 | J114: 181.85 | K114: 174.85 | L114: 168.05 | M114: 45.18964
A115: 105 | B115: CLEAN | C115: 1722.1 | D115: 1726.03 | E115: 1704.07 | F115: 1686.03 | G115: 1664.07 | H115: 1744.07 | I115: 1766.03 | J115: 1784.07 | K115: 1748 | L115: 1708 | M115: 0.3373
A116: 106 | B116: COALINDIA | C116: 213.9 | D116: 213.23 | E116: 211.32 | F116: 208.73 | G116: 206.82 | H116: 215.82 | I116: 217.73 | J116: 220.32 | K116: 215.15 | L116: 210.65 | M116: 89.62595
A117: 107 | B117: COCHINSHIP | C117: 432.85 | D117: 432.55 | E117: 424.30 | F117: 415.75 | G117: 407.50 | H117: 441.10 | I117: 449.35 | J117: 457.90 | K117: 440.8 | L117: 424 | M117: 14.04545
A118: 108 | B118: COFORGE | C118: 3363.85 | D118: 3401.42 | E118: 3313.43 | F118: 3263.02 | G118: 3175.03 | H118: 3451.83 | I118: 3539.82 | J118: 3590.23 | K118: 3489.4 | L118: 3351 | M118: 2.84959
A119: 109 | B119: COLPAL | C119: 1604.9 | D119: 1597.63 | E119: 1584.32 | F119: 1563.73 | G119: 1550.42 | H119: 1618.22 | I119: 1631.53 | J119: 1652.12 | K119: 1610.95 | L119: 1577.05 | M119: 2.51687
A120: 110 | B120: CAMS | C120: 2498.2 | D120: 2494.57 | E120: 2469.63 | F120: 2441.07 | G120: 2416.13 | H120: 2523.13 | I120: 2548.07 | J120: 2576.63 | K120: 2519.5 | L120: 2466 | M120: 1.23
A121: 111 | B121: CONCOR | C121: 695.8 | D121: 693.02 | E121: 687.78 | F121: 679.77 | G121: 674.53 | H121: 701.03 | I121: 706.27 | J121: 714.28 | K121: 698.25 | L121: 685 | M121: 10.57787
A122: 112 | B122: COROMANDEL | C122: 987.75 | D122: 986.27 | E122: 972.03 | F122: 956.32 | G122: 942.08 | H122: 1001.98 | I122: 1016.22 | J122: 1031.93 | K122: 1000.5 | L122: 970.55 | M122: 2.14512
A123: 113 | B123: CREDITACC | C123: 1000.5 | D123: 1000.80 | E123: 983.55 | F123: 966.60 | G123: 949.35 | H123: 1017.75 | I123: 1035.00 | J123: 1051.95 | K123: 1018.05 | L123: 983.85 | M123: 1.38941
A124: 114 | B124: CROMPTON | C124: 414.15 | D124: 411.30 | E124: 405.00 | F124: 395.85 | G124: 389.55 | H124: 420.45 | I124: 426.75 | J124: 435.90 | K124: 417.6 | L124: 402.15 | M124: 21.74638
A125: 115 | B125: CUMMINSIND | C125: 1181.25 | D125: 1181.27 | E125: 1158.98 | F125: 1136.72 | G125: 1114.43 | H125: 1203.53 | I125: 1225.82 | J125: 1248.08 | K125: 1203.55 | L125: 1159 | M125: 4.8428
A126: 116 | B126: CYIENT | C126: 783.15 | D126: 787.42 | E126: 769.23 | F126: 755.32 | G126: 737.13 | H126: 801.33 | I126: 819.52 | J126: 833.43 | K126: 805.6 | L126: 773.5 | M126: 2.27859
A127: 117 | B127: DCMSHRIRAM | C127: 1003.35 | D127: 1009.65 | E127: 989.45 | F127: 975.55 | G127: 955.35 | H127: 1023.55 | I127: 1043.75 | J127: 1057.65 | K127: 1029.85 | L127: 995.75 | M127: 0.59389
A128: 118 | B128: DLF | C128: 350.6 | D128: 350.38 | E128: 345.27 | F128: 339.93 | G128: 334.82 | H128: 355.72 | I128: 360.83 | J128: 366.17 | K128: 355.5 | L128: 345.05 | M128: 59.05469
A129: 119 | B129: DABUR | C129: 575.75 | D129: 572.60 | E129: 567.05 | F129: 558.35 | G129: 552.80 | H129: 581.30 | I129: 586.85 | J129: 595.55 | K129: 578.15 | L129: 563.9 | M129: 23.09452
A130: 120 | B130: DALBHARAT | C130: 1550.25 | D130: 1540.75 | E130: 1525.45 | F130: 1500.65 | G130: 1485.35 | H130: 1565.55 | I130: 1580.85 | J130: 1605.65 | K130: 1556.05 | L130: 1515.95 | M130: 1.25438
A131: 121 | B131: DEEPAKNTR | C131: 2010.3 | D131: 2038.83 | E131: 1968.67 | F131: 1927.03 | G131: 1856.87 | H131: 2080.47 | I131: 2150.63 | J131: 2192.27 | K131: 2109 | L131: 1997.2 | M131: 16.49759
A132: 122 | B132: DELTACORP | C132: 193.85 | D132: 195.12 | E132: 190.73 | F132: 187.62 | G132: 183.23 | H132: 198.23 | I132: 202.62 | J132: 205.73 | K132: 199.5 | L132: 192 | M132: 28.56724
A133: 123 | B133: DEVYANI | C133: 192 | D133: 192.50 | E133: 190.50 | F133: 189.00 | G133: 187.00 | H133: 194.00 | I133: 196.00 | J133: 197.50 | K133: 194.5 | L133: 191 | M133: 16.82134
A134: 124 | B134: DHANI | C134: 47.2 | D134: 47.38 | E134: 46.32 | F134: 45.43 | G134: 44.37 | H134: 48.27 | I134: 49.33 | J134: 50.22 | K134: 48.45 | L134: 46.5 | M134: 8.0237
A135: 125 | B135: DBL | C135: 212.45 | D135: 214.12 | E135: 209.33 | F135: 206.22 | G135: 201.43 | H135: 217.23 | I135: 222.02 | J135: 225.13 | K135: 218.9 | L135: 211 | M135: 1.56025
A136: 126 | B136: DIVISLAB | C136: 3693.65 | D136: 3703.20 | E136: 3655.40 | F136: 3617.15 | G136: 3569.35 | H136: 3741.45 | I136: 3789.25 | J136: 3827.50 | K136: 3751 | L136: 3664.95 | M136: 7.95614
A137: 127 | B137: DIXON | C137: 4263.15 | D137: 4272.75 | E137: 4220.40 | F137: 4177.65 | G137: 4125.30 | H137: 4315.50 | I137: 4367.85 | J137: 4410.60 | K137: 4325.1 | L137: 4230 | M137: 1.6852
A138: 128 | B138: LALPATHLAB | C138: 2591.4 | D138: 2623.13 | E138: 2528.27 | F138: 2465.13 | G138: 2370.27 | H138: 2686.27 | I138: 2781.13 | J138: 2844.27 | K138: 2718 | L138: 2560 | M138: 4.34567
A139: 129 | B139: DRREDDY | C139: 4360.7 | D139: 4351.23 | E139: 4295.47 | F139: 4230.23 | G139: 4174.47 | H139: 4416.47 | I139: 4472.23 | J139: 4537.47 | K139: 4407 | L139: 4286 | M139: 10.88558
A140: 130 | B140: EIDPARRY | C140: 578.3 | D140: 580.20 | E140: 561.80 | F140: 545.30 | G140: 526.90 | H140: 596.70 | I140: 615.10 | J140: 631.60 | K140: 598.6 | L140: 563.7 | M140: 11.03705
A141: 131 | B141: EIHOTEL | C141: 184.85 | D141: 186.98 | E141: 180.97 | F141: 177.08 | G141: 171.07 | H141: 190.87 | I141: 196.88 | J141: 200.77 | K141: 193 | L141: 183.1 | M141: 5.17555
A142: 132 | B142: EPL | C142: 170.2 | D142: 169.52 | E142: 167.83 | F142: 165.47 | G142: 163.78 | H142: 171.88 | I142: 173.57 | J142: 175.93 | K142: 171.2 | L142: 167.15 | M142: 2.4037
A143: 133 | B143: EASEMYTRIP | C143: 373.4 | D143: 375.98 | E143: 368.77 | F143: 364.13 | G143: 356.92 | H143: 380.62 | I143: 387.83 | J143: 392.47 | K143: 383.2 | L143: 371.35 | M143: 7.31641
A144: 134 | B144: EDELWEISS | C144: 58.85 | D144: 59.15 | E144: 58.00 | F144: 57.15 | G144: 56.00 | H144: 60.00 | I144: 61.15 | J144: 62.00 | K144: 60.3 | L144: 58.3 | M144: 8.64127
A145: 135 | B145: EICHERMOT | C145: 3624.1 | D145: 3635.78 | E145: 3593.32 | F145: 3562.53 | G145: 3520.07 | H145: 3666.57 | I145: 3709.03 | J145: 3739.82 | K145: 3678.25 | L145: 3605 | M145: 5.78779
A146: 136 | B146: ELGIEQUIP | C146: 416.4 | D146: 418.10 | E146: 408.30 | F146: 400.20 | G146: 390.40 | H146: 426.20 | I146: 436.00 | J146: 444.10 | K146: 427.9 | L146: 410 | M146: 5.71561
A147: 137 | B147: EMAMILTD | C147: 504.4 | D147: 504.42 | E147: 498.88 | F147: 493.37 | G147: 487.83 | H147: 509.93 | I147: 515.47 | J147: 520.98 | K147: 509.95 | L147: 498.9 | M147: 1.62773
A148: 138 | B148: ENDURANCE | C148: 1428.75 | D148: 1420.55 | E148: 1404.30 | F148: 1379.85 | G148: 1363.60 | H148: 1445.00 | I148: 1461.25 | J148: 1485.70 | K148: 1436.8 | L148: 1396.1 | M148: 0.27501
A149: 139 | B149: ENGINERSIN | C149: 63.45 | D149: 63.57 | E149: 62.68 | F149: 61.92 | G149: 61.03 | H149: 64.33 | I149: 65.22 | J149: 65.98 | K149: 64.45 | L149: 62.8 | M149: 5.68374
A150: 140 | B150: EQUITAS | C150: 93.6 | D150: 94.35 | E150: 89.60 | F150: 85.60 | G150: 80.85 | H150: 98.35 | I150: 103.10 | J150: 107.10 | K150: 99.1 | L150: 90.35 | M150: 12.80256
A151: 141 | B151: EQUITASBNK | C151: 47.7 | D151: 47.93 | E151: 47.27 | F151: 46.83 | G151: 46.17 | H151: 48.37 | I151: 49.03 | J151: 49.47 | K151: 48.6 | L151: 47.5 | M151: 3.33064
A152: 142 | B152: ERIS | C152: 700 | D152: 700.90 | E152: 691.45 | F152: 682.90 | G152: 673.45 | H152: 709.45 | I152: 718.90 | J152: 727.45 | K152: 710.35 | L152: 692.35 | M152: 0.54653
A153: 143 | B153: ESCORTS | C153: 2092.9 | D153: 2090.13 | E153: 2046.27 | F153: 1999.63 | G153: 1955.77 | H153: 2136.77 | I153: 2180.63 | J153: 2227.27 | K153: 2134 | L153: 2043.5 | M153: 12.89351
A154: 144 | B154: EXIDEIND | C154: 154.5 | D154: 155.20 | E154: 152.85 | F154: 151.20 | G154: 148.85 | H154: 156.85 | I154: 159.20 | J154: 160.85 | K154: 157.55 | L154: 153.55 | M154: 25.00303
A155: 145 | B155: FDC | C155: 262.35 | D155: 260.18 | E155: 256.62 | F155: 250.88 | G155: 247.32 | H155: 265.92 | I155: 269.48 | J155: 275.22 | K155: 263.75 | L155: 254.45 | M155: 1.02863
A156: 146 | B156: NYKAA | C156: 1284.8 | D156: 1300.52 | E156: 1251.13 | F156: 1217.47 | G156: 1168.08 | H156: 1334.18 | I156: 1383.57 | J156: 1417.23 | K156: 1349.9 | L156: 1266.85 | M156: 9.74421
A157: 147 | B157: FEDERALBNK | C157: 113 | D157: 112.85 | E157: 111.15 | F157: 109.30 | G157: 107.60 | H157: 114.70 | I157: 116.40 | J157: 118.25 | K157: 114.55 | L157: 111 | M157: 122.97229
A158: 148 | B158: FACT | C158: 106.55 | D158: 106.70 | E158: 104.55 | F158: 102.55 | G158: 100.40 | H158: 108.70 | I158: 110.85 | J158: 112.85 | K158: 108.85 | L158: 104.7 | M158: 1.29531
A159: 149 | B159: FINEORG | C159: 6890.85 | D159: 6995.62 | E159: 6745.13 | F159: 6599.42 | G159: 6348.93 | H159: 7141.33 | I159: 7391.82 | J159: 7537.53 | K159: 7246.1 | L159: 6849.9 | M159: 0.54276
A160: 150 | B160: FINCABLES | C160: 472.15 | D160: 473.67 | E160: 457.48 | F160: 442.82 | G160: 426.63 | H160: 488.33 | I160: 504.52 | J160: 519.18 | K160: 489.85 | L160: 459 | M160: 12.35876
A161: 151 | B161: FINPIPE | C161: 138.1 | D161: 138.68 | E161: 136.22 | F161: 134.33 | G161: 131.87 | H161: 140.57 | I161: 143.03 | J161: 144.92 | K161: 141.15 | L161: 136.8 | M161: 4.77356
A162: 152 | B162: FSL | C162: 103.85 | D162: 103.25 | E162: 102.25 | F162: 100.65 | G162: 99.65 | H162: 104.85 | I162: 105.85 | J162: 107.45 | K162: 104.25 | L162: 101.65 | M162: 25.09346
A163: 153 | B163: FORTIS | C163: 261.7 | D163: 262.23 | E163: 258.47 | F163: 255.23 | G163: 251.47 | H163: 265.47 | I163: 269.23 | J163: 272.47 | K163: 266 | L163: 259 | M163: 15.12602
A164: 154 | B164: GRINFRA | C164: 1224.8 | D164: 1224.77 | E164: 1204.98 | F164: 1185.17 | G164: 1165.38 | H164: 1244.58 | I164: 1264.37 | J164: 1284.18 | K164: 1244.55 | L164: 1204.95 | M164: 0.24846
A165: 155 | B165: GAIL | C165: 85.9 | D165: 85.97 | E165: 85.18 | F165: 84.47 | G165: 83.68 | H165: 86.68 | I165: 87.47 | J165: 88.18 | K165: 86.75 | L165: 85.25 | M165: 126.73874
A166: 156 | B166: GMMPFAUDLR | C166: 1880.3 | D166: 1891.77 | E166: 1843.53 | F166: 1806.77 | G166: 1758.53 | H166: 1928.53 | I166: 1976.77 | J166: 2013.53 | K166: 1940 | L166: 1855 | M166: 0.81966
A167: 157 | B167: GMRINFRA | C167: 35.45 | D167: 35.32 | E167: 34.48 | F167: 33.52 | G167: 32.68 | H167: 36.28 | I167: 37.12 | J167: 38.08 | K167: 36.15 | L167: 34.35 | M167: 112.59415
A168: 158 | B168: GALAXYSURF | C168: 2966.2 | D168: 2983.53 | E168: 2928.67 | F168: 2891.13 | G168: 2836.27 | H168: 3021.07 | I168: 3075.93 | J168: 3113.47 | K168: 3038.4 | L168: 2946 | M168: 0.11452
A169: 159 | B169: GARFIBRES | C169: 3379.9 | D169: 3380.85 | E169: 3341.80 | F169: 3303.70 | G169: 3264.65 | H169: 3418.95 | I169: 3458.00 | J169: 3496.10 | K169: 3419.9 | L169: 3342.75 | M169: 0.07773
A170: 160 | B170: GICRE | C170: 121.45 | D170: 120.77 | E170: 119.48 | F170: 117.52 | G170: 116.23 | H170: 122.73 | I170: 124.02 | J170: 125.98 | K170: 122.05 | L170: 118.8 | M170: 2.06326
A171: 161 | B171: GLAND | C171: 2087.85 | D171: 2089.07 | E171: 2060.13 | F171: 2032.42 | G171: 2003.48 | H171: 2116.78 | I171: 2145.72 | J171: 2173.43 | K171: 2118 | L171: 2061.35 | M171: 5.19378
A172: 162 | B172: GLAXO | C172: 1446.8 | D172: 1436.65 | E172: 1409.30 | F172: 1371.80 | G172: 1344.45 | H172: 1474.15 | I172: 1501.50 | J172: 1539.00 | K172: 1464 | L172: 1399.15 | M172: 0.80832
A173: 163 | B173: GLS | C173: 380.4 | D173: 382.75 | E173: 372.65 | F173: 364.90 | G173: 354.80 | H173: 390.50 | I173: 400.60 | J173: 408.35 | K173: 392.85 | L173: 375 | M173: 0.94674
A174: 164 | B174: GLENMARK | C174: 387 | D174: 387.43 | E174: 382.02 | F174: 377.03 | G174: 371.62 | H174: 392.42 | I174: 397.83 | J174: 402.82 | K174: 392.85 | L174: 382.45 | M174: 26.83576
A175: 165 | B175: GOCOLORS | C175: 1336.65 | D175: 1337.50 | E175: 1300.40 | F175: 1264.15 | G175: 1227.05 | H175: 1373.75 | I175: 1410.85 | J175: 1447.10 | K175: 1374.6 | L175: 1301.25 | M175: 2.16544
A176: 166 | B176: GODFRYPHLP | C176: 1133.5 | D176: 1135.47 | E176: 1127.98 | F176: 1122.47 | G176: 1114.98 | H176: 1140.98 | I176: 1148.47 | J176: 1153.98 | K176: 1142.95 | L176: 1129.95 | M176: 0.12633
A177: 167 | B177: GODREJAGRO | C177: 509.5 | D177: 509.58 | E177: 506.32 | F177: 503.13 | G177: 499.87 | H177: 512.77 | I177: 516.03 | J177: 519.22 | K177: 512.85 | L177: 506.4 | M177: 0.47201
A178: 168 | B178: GODREJCP | C178: 907.6 | D178: 906.00 | E178: 892.60 | F178: 877.60 | G178: 864.20 | H178: 921.00 | I178: 934.40 | J178: 949.40 | K178: 919.4 | L178: 891 | M178: 16.77066
A179: 169 | B179: GODREJIND | C179: 441.9 | D179: 442.92 | E179: 436.88 | F179: 431.87 | G179: 425.83 | H179: 447.93 | I179: 453.97 | J179: 458.98 | K179: 448.95 | L179: 437.9 | M179: 0.81527
A180: 170 | B180: GODREJPROP | C180: 1162 | D180: 1163.47 | E180: 1139.53 | F180: 1117.07 | G180: 1093.13 | H180: 1185.93 | I180: 1209.87 | J180: 1232.33 | K180: 1187.4 | L180: 1141 | M180: 7.79808
A181: 171 | B181: GRANULES | C181: 324.3 | D181: 324.28 | E181: 319.27 | F181: 314.23 | G181: 309.22 | H181: 329.32 | I181: 334.33 | J181: 339.37 | K181: 329.3 | L181: 319.25 | M181: 29.85532
A182: 172 | B182: GRAPHITE | C182: 357.05 | D182: 357.97 | E182: 354.08 | F182: 351.12 | G182: 347.23 | H182: 360.93 | I182: 364.82 | J182: 367.78 | K182: 361.85 | L182: 355 | M182: 2.84524
A183: 173 | B183: GRASIM | C183: 1655.8 | D183: 1665.65 | E183: 1641.45 | F183: 1627.10 | G183: 1602.90 | H183: 1680.00 | I183: 1704.20 | J183: 1718.55 | K183: 1689.85 | L183: 1651.3 | M183: 5.4178
A184: 174 | B184: GESHIP | C184: 524.75 | D184: 523.32 | E184: 519.48 | F184: 514.22 | G184: 510.38 | H184: 528.58 | I184: 532.42 | J184: 537.68 | K184: 527.15 | L184: 518.05 | M184: 1.70863
A185: 175 | B185: GRINDWELL | C185: 2051.7 | D185: 2055.78 | E185: 2018.12 | F185: 1984.53 | G185: 1946.87 | H185: 2089.37 | I185: 2127.03 | J185: 2160.62 | K185: 2093.45 | L185: 2022.2 | M185: 0.3028
A186: 176 | B186: GUJALKALI | C186: 832.65 | D186: 835.78 | E186: 824.42 | F186: 816.18 | G186: 804.82 | H186: 844.02 | I186: 855.38 | J186: 863.62 | K186: 847.15 | L186: 827.55 | M186: 1.36905
A187: 177 | B187: GAEL | C187: 282 | D187: 279.67 | E187: 275.33 | F187: 268.67 | G187: 264.33 | H187: 286.33 | I187: 290.67 | J187: 297.33 | K187: 284 | L187: 273 | M187: 5.14914
A188: 178 | B188: FLUOROCHEM | C188: 3912.35 | D188: 3891.28 | E188: 3838.17 | F188: 3763.98 | G188: 3710.87 | H188: 3965.47 | I188: 4018.58 | J188: 4092.77 | K188: 3944.4 | L188: 3817.1 | M188: 1.57729
A189: 179 | B189: GUJGASLTD | C189: 516.3 | D189: 515.80 | E189: 510.65 | F189: 505.00 | G189: 499.85 | H189: 521.45 | I189: 526.60 | J189: 532.25 | K189: 520.95 | L189: 510.15 | M189: 11.45848
A190: 180 | B190: GNFC | C190: 624.4 | D190: 628.27 | E190: 616.38 | F190: 608.37 | G190: 596.48 | H190: 636.28 | I190: 648.17 | J190: 656.18 | K190: 640.15 | L190: 620.25 | M190: 19.06135
A191: 181 | B191: GPPL | C191: 92.15 | D191: 92.08 | E191: 91.32 | F191: 90.48 | G191: 89.72 | H191: 92.92 | I191: 93.68 | J191: 94.52 | K191: 92.85 | L191: 91.25 | M191: 8.90367
A192: 182 | B192: GSFC | C192: 130.65 | D192: 130.57 | E192: 128.63 | F192: 126.62 | G192: 124.68 | H192: 132.58 | I192: 134.52 | J192: 136.53 | K192: 132.5 | L192: 128.55 | M192: 13.89167
A193: 183 | B193: GSPL | C193: 229.55 | D193: 230.20 | E193: 226.65 | F193: 223.75 | G193: 220.20 | H193: 233.10 | I193: 236.65 | J193: 239.55 | K193: 233.75 | L193: 227.3 | M193: 6.00186
A194: 184 | B194: HEG | C194: 1038.25 | D194: 1046.50 | E194: 1025.75 | F194: 1013.25 | G194: 992.50 | H194: 1059.00 | I194: 1079.75 | J194: 1092.25 | K194: 1067.25 | L194: 1034 | M194: 0.77854
A195: 185 | B195: HCLTECH | C195: 923.05 | D195: 923.55 | E195: 916.10 | F195: 909.15 | G195: 901.70 | H195: 930.50 | I195: 937.95 | J195: 944.90 | K195: 931 | L195: 916.6 | M195: 29.2836
A196: 186 | B196: HDFCAMC | C196: 1867.15 | D196: 1866.23 | E196: 1841.57 | F196: 1815.98 | G196: 1791.32 | H196: 1891.82 | I196: 1916.48 | J196: 1942.07 | K196: 1890.9 | L196: 1840.65 | M196: 6.26467
A197: 187 | B197: HDFCBANK | C197: 1382.35 | D197: 1387.78 | E197: 1373.37 | F197: 1364.38 | G197: 1349.97 | H197: 1396.77 | I197: 1411.18 | J197: 1420.17 | K197: 1402.2 | L197: 1378.8 | M197: 72.05194
A198: 188 | B198: HDFCLIFE | C198: 528 | D198: 524.92 | E198: 520.08 | F198: 512.17 | G198: 507.33 | H198: 532.83 | I198: 537.67 | J198: 545.58 | K198: 529.75 | L198: 517 | M198: 54.28542
A199: 189 | B199: HFCL | C199: 72.4 | D199: 72.27 | E199: 71.13 | F199: 69.87 | G199: 68.73 | H199: 73.53 | I199: 74.67 | J199: 75.93 | K199: 73.4 | L199: 71 | M199: 74.498
A200: 190 | B200: HLEGLAS | C200: 3425.15 | D200: 3460.52 | E200: 3366.73 | F200: 3308.32 | G200: 3214.53 | H200: 3518.93 | I200: 3612.72 | J200: 3671.13 | K200: 3554.3 | L200: 3402.1 | M200: 0.10117
A201: 191 | B201: HAPPSTMNDS | C201: 990.8 | D201: 993.85 | E201: 979.20 | F201: 967.60 | G201: 952.95 | H201: 1005.45 | I201: 1020.10 | J201: 1031.70 | K201: 1008.5 | L201: 982.25 | M201: 2.09211
A202: 192 | B202: HATHWAY | C202: 15.75 | D202: 15.85 | E202: 15.50 | F202: 15.25 | G202: 14.90 | H202: 16.10 | I202: 16.45 | J202: 16.70 | K202: 16.2 | L202: 15.6 | M202: 19.54086
A203: 193 | B203: HATSUN | C203: 1055.5 | D203: 1044.72 | E203: 1019.28 | F203: 983.07 | G203: 957.63 | H203: 1080.93 | I203: 1106.37 | J203: 1142.58 | K203: 1070.15 | L203: 1008.5 | M203: 0.21268
A204: 194 | B204: HAVELLS | C204: 1333.5 | D204: 1326.67 | E204: 1316.83 | F204: 1300.17 | G204: 1290.33 | H204: 1343.33 | I204: 1353.17 | J204: 1369.83 | K204: 1336.5 | L204: 1310 | M204: 7.15783
A205: 195 | B205: HEMIPROP | C205: 94.35 | D205: 94.92 | E205: 92.93 | F205: 91.52 | G205: 89.53 | H205: 96.33 | I205: 98.32 | J205: 99.73 | K205: 96.9 | L205: 93.5 | M205: 4.99761
A206: 196 | B206: HEROMOTOCO | C206: 2536.3 | D206: 2555.22 | E206: 2506.08 | F206: 2475.87 | G206: 2426.73 | H206: 2585.43 | I206: 2634.57 | J206: 2664.78 | K206: 2604.35 | L206: 2525 | M206: 10.57406
... 319 more rows

Sheet Bulk Deals
E6: Back To Main Page
A7: Subject : | B7: BULK DEAL | D7: =Main!B10 -> 2022-09-30
A9: Date | B9: Scrip code | C9: Scrip Name | D9: Client Name | E9: Buy / Sell | F9: Quantity Traded | G9: Trade Price / Wt.Avg.trade price | H9: Exchange
A10: 2022-09-29 | B10: 520123 | C10: ABCINDQ | D10: ABC FINANCIAL SERVICES PRIVATE LIMITED | E10: BUY | F10: 35,806 | G10: 93 | H10: BSE
A11: 2022-09-29 | B11: 520123 | C11: ABCINDQ | D11: RAGHUPATI SINGHANIA | E11: SELL | F11: 30,000 | G11: 93.32 | H11: BSE
A12: 2022-09-29 | B12: 538351 | C12: AFEL | D12: MULTIPLIER SHARE & STOCK ADVISORS PRIVATE LIMITED | E12: BUY | F12: 135,368 | G12: 12.35 | H12: BSE
A13: 2022-09-29 | B13: 538351 | C13: AFEL | D13: MULTIPLIER SHARE & STOCK ADVISORS PRIVATE LIMITED | E13: SELL | F13: 48,441 | G13: 12.71 | H13: BSE
A14: 2022-09-29 | B14: 538351 | C14: AFEL | D14: AMIT GUPTA | E14: SELL | F14: 200,000 | G14: 12.35 | H14: BSE
A15: 2022-09-29 | B15: 539545 | C15: APOORVA | D15: KD STOCK BROKING PRIVATE LIMITED | E15: SELL | F15: 115,000 | G15: 43.03 | H15: BSE
A16: 2022-09-29 | B16: 540788 | C16: ASPIRA | D16: YASHRAJ BIOTECHNOLOGY LIMITED | E16: SELL | F16: 60,000 | G16: 41.51 | H16: BSE
A17: 2022-09-29 | B17: 509053 | C17: BANASFN | D17: JR SEAMLESS PRIVATE LIMITED | E17: BUY | F17: 304,100 | G17: 16.89 | H17: BSE
A18: 2022-09-29 | B18: 539621 | C18: BCLENTERPR | D18: VIPIN KIZHEPPATT | E18: SELL | F18: 716,005 | G18: 1.71 | H18: BSE
A19: 2022-09-29 | B19: 539621 | C19: BCLENTERPR | D19: SIMARPREET SINGH BHATIA | E19: BUY | F19: 824,941 | G19: 1.79 | H19: BSE
A20: 2022-09-29 | B20: 530427 | C20: CHOKSI | D20: GUTTIKONDA VARA LAKSHMI | E20: BUY | F20: 20,000 | G20: 51.5 | H20: BSE
A21: 2022-09-29 | B21: 540023 | C21: COLORCHIPS | D21: BHAVISHYA ECOMMERCE PRIVATE LIMITED | E21: BUY | F21: 103,910 | G21: 105.4 | H21: BSE
A22: 2022-09-29 | B22: 540023 | C22: COLORCHIPS | D22: BHAVISHYA ECOMMERCE PRIVATE LIMITED | E22: SELL | F22: 93,481 | G22: 105.5 | H22: BSE
A23: 2022-09-29 | B23: 540023 | C23: COLORCHIPS | D23: VINIATO ADVISORS PRIVATE LIMITED | E23: SELL | F23: 100,000 | G23: 105.5 | H23: BSE
A24: 2022-09-29 | B24: 538868 | C24: CSL | D24: TAARUSH TRADECOM LLP | E24: SELL | F24: 31,000 | G24: 46 | H24: BSE
A25: 2022-09-29 | B25: 538868 | C25: CSL | D25: MUKESH MADANLAL GADGE | E25: BUY | F25: 21,700 | G25: 46.07 | H25: BSE
A26: 2022-09-29 | B26: 524752 | C26: DECIPHER | D26: MULTIPLIER SHARE & STOCK ADVISORS PRIVATE LIMITED | E26: BUY | F26: 210,655 | G26: 33.25 | H26: BSE
A27: 2022-09-29 | B27: 524752 | C27: DECIPHER | D27: MULTIPLIER SHARE & STOCK ADVISORS PRIVATE LIMITED | E27: SELL | F27: 126,470 | G27: 33.4 | H27: BSE
A28: 2022-09-29 | B28: 542906 | C28: EASUN | D28: DESIRE TRADES PRIVATE LIMITED | E28: SELL | F28: 40,000 | G28: 29.5 | H28: BSE
A29: 2022-09-29 | B29: 540204 | C29: EIKO | D29: LENUS FINVEST PRIVATE LIMITED | E29: BUY | F29: 100,000 | G29: 48.9 | H29: BSE
A30: 2022-09-29 | B30: 540204 | C30: EIKO | D30: ARMS SECURITIES PVT LTD | E30: SELL | F30: 100,000 | G30: 48.9 | H30: BSE
A31: 2022-09-29 | B31: 537707 | C31: ETT | D31: MANISH MISHRA | E31: SELL | F31: 109,515 | G31: 53.75 | H31: BSE
A32: 2022-09-29 | B32: 537707 | C32: ETT | D32: MANISH MISHRA | E32: BUY | F32: 73,357 | G32: 53.45 | H32: BSE
A33: 2022-09-29 | B33: 521137 | C33: EUREKAI | D33: BHUPENDRA NANJIBHAI CHAVDA | E33: SELL | F33: 50,000 | G33: 9.76 | H33: BSE
A34: 2022-09-29 | B34: 542802 | C34: GALACTICO | D34: AMRISH VINOD MEHTA | E34: SELL | F34: 780,057 | G34: 16.65 | H34: BSE
A35: 2022-09-29 | B35: 542802 | C35: GALACTICO | D35: AMRISH VINOD MEHTA | E35: BUY | F35: 780,057 | G35: 16.6 | H35: BSE
A36: 2022-09-29 | B36: 542802 | C36: GALACTICO | D36: RITURAHUL MEHTA | E36: BUY | F36: 754,363 | G36: 16.64 | H36: BSE
A37: 2022-09-29 | B37: 542802 | C37: GALACTICO | D37: RITURAHUL MEHTA | E37: SELL | F37: 754,363 | G37: 16.64 | H37: BSE
A38: 2022-09-29 | B38: 533212 | C38: GKB | D38: MABLE RAJESH | E38: BUY | F38: 26,665 | G38: 110.36 | H38: BSE
A39: 2022-09-29 | B39: 530663 | C39: GOYALASS | D39: RAGHURAM REDDY BHEEMIDI | E39: SELL | F39: 646,600 | G39: 1.57 | H39: BSE
A40: 2022-09-29 | B40: 543286 | C40: JETMALL | D40: KUSHBU LODHA | E40: SELL | F40: 42,000 | G40: 17.5 | H40: BSE
A41: 2022-09-29 | B41: 543286 | C41: JETMALL | D41: KUSHBU LODHA | E41: BUY | F41: 6,000 | G41: 17.25 | H41: BSE
A42: 2022-09-29 | B42: 543286 | C42: JETMALL | D42: PADMAWATI REALCON PRIVATE LIMITED | E42: BUY | F42: 60,000 | G42: 17.45 | H42: BSE
A43: 2022-09-29 | B43: 533602 | C43: LESHAIND | D43: PREETI JAIN | E43: BUY | F43: 374,204 | G43: 9.47 | H43: BSE
A44: 2022-09-29 | B44: 533602 | C44: LESHAIND | D44: PREETI JAIN | E44: SELL | F44: 752,998 | G44: 9.06 | H44: BSE
A45: 2022-09-29 | B45: 540360 | C45: LLFICL | D45: SKSE SECURITIES LIMITED CORP CM/TM PROP A/C | E45: BUY | F45: 254,508 | G45: 14.7 | H45: BSE
A46: 2022-09-29 | B46: 540360 | C46: LLFICL | D46: SKSE SECURITIES LIMITED CORP CM/TM PROP A/C | E46: SELL | F46: 338,730 | G46: 14.75 | H46: BSE
A47: 2022-09-29 | B47: 511688 | C47: MATHEWE | D47: N L RUNGTA HUF | E47: SELL | F47: 1,153 | G47: 6.53 | H47: BSE
A48: 2022-09-29 | B48: 511688 | C48: MATHEWE | D48: N L RUNGTA HUF | E48: BUY | F48: 37,000 | G48: 6.34 | H48: BSE
A49: 2022-09-29 | B49: 511688 | C49: MATHEWE | D49: VORA VILPABEN PRANAVBHAI | E49: SELL | F49: 44,038 | G49: 6.34 | H49: BSE
A50: 2022-09-29 | B50: 506543 | C50: MPAGI | D50: D. C. CORPORATION | E50: BUY | F50: 51,700 | G50: 12.5 | H50: BSE
A51: 2022-09-29 | B51: 506543 | C51: MPAGI | D51: HABIBUNISHA ABDULRAZAK DHANANI | E51: SELL | F51: 51,700 | G51: 12.5 | H51: BSE
A52: 2022-09-29 | B52: 530557 | C52: NCLRESE | D52: TOPGAIN FINANCE PRIVATE LIMITED | E52: BUY | F52: 5,754,629 | G52: 0.49 | H52: BSE
A53: 2022-09-29 | B53: 530557 | C53: NCLRESE | D53: TOPGAIN FINANCE PRIVATE LIMITED | E53: SELL | F53: 5,250,000 | G53: 0.49 | H53: BSE
A54: 2022-09-29 | B54: 506122 | C54: PANKAJPIYUS | D54: GUTTIKONDA RAJASEKHAR | E54: BUY | F54: 3,000 | G54: 89.05 | H54: BSE
A55: 2022-09-29 | B55: 506122 | C55: PANKAJPIYUS | D55: TARUN AGGARWAL | E55: SELL | F55: 4,000 | G55: 89.05 | H55: BSE
A56: 2022-09-29 | B56: 540727 | C56: POOJA | D56: TRANSPARENT SHARES LLP | E56: SELL | F56: 100,000 | G56: 36.65 | H56: BSE
A57: 2022-09-29 | B57: 540727 | C57: POOJA | D57: PARVESH SAHIB SINGH | E57: BUY | F57: 83,497 | G57: 36.65 | H57: BSE
A58: 2022-09-29 | B58: 511557 | C58: PROFINC | D58: RAJKUMAR PRABHU DAMANI HUF | E58: BUY | F58: 1,375,259 | G58: 1.9 | H58: BSE
A59: 2022-09-29 | B59: 543375 | C59: PROMAX | D59: DARSHAN TRADING COMPANY | E59: BUY | F59: 65,000 | G59: 22.47 | H59: BSE
A60: 2022-09-29 | B60: 543375 | C60: PROMAX | D60: ANSARI NAMRA FIRDAUS AAMIR ANJUM | E60: SELL | F60: 80,000 | G60: 22.54 | H60: BSE
A61: 2022-09-29 | B61: 539760 | C61: RELICAB | D61: NIRBHAY FANCY VASSA | E61: BUY | F61: 36,540 | G61: 40.99 | H61: BSE
A62: 2022-09-29 | B62: 539760 | C62: RELICAB | D62: OVERSKUD MULTI ASSET MANAGEMENT PRIVATE LIMITED | E62: BUY | F62: 52,200 | G62: 41 | H62: BSE
A63: 2022-09-29 | B63: 539760 | C63: RELICAB | D63: NIRBHAY FANCY VASSA | E63: SELL | F63: 10,440 | G63: 42.03 | H63: BSE
A64: 2022-09-29 | B64: 539760 | C64: RELICAB | D64: MEENAL SARWANKUMAR SARAF | E64: SELL | F64: 31,320 | G64: 40.88 | H64: BSE
A65: 2022-09-29 | B65: 539760 | C65: RELICAB | D65: SARWANKUMAR DEVIDUTT SAFAF | E65: SELL | F65: 36,540 | G65: 41 | H65: BSE
A66: 2022-09-29 | B66: 539760 | C66: RELICAB | D66: SWETA SARWANKUMAR SARAF | E66: SELL | F66: 36,540 | G66: 41.01 | H66: BSE
A67: 2022-09-29 | B67: 539760 | C67: RELICAB | D67: SUNITA SARWANKUMAR SARAF | E67: SELL | F67: 31,320 | G67: 41.78 | H67: BSE
A68: 2022-09-29 | B68: 538875 | C68: SELLWIN | D68: VISAGAR FINANCIAL SERVICES LIMITED | E68: SELL | F68: 5,000 | G68: 20.2 | H68: BSE
A69: 2022-09-29 | B69: 538875 | C69: SELLWIN | D69: VISAGAR FINANCIAL SERVICES LIMITED | E69: BUY | F69: 51,763 | G69: 20.05 | H69: BSE
A70: 2022-09-29 | B70: 538875 | C70: SELLWIN | D70: MEGHSHREE CREDIT PVT LTD | E70: SELL | F70: 96,800 | G70: 20.08 | H70: BSE
A71: 2022-09-29 | B71: 538923 | C71: SOFCOM | D71: KISHORE MEHTA | E71: SELL | F71: 100,000 | G71: 41.79 | H71: BSE
A72: 2022-09-29 | B72: 540738 | C72: STL | D72: ANTARA INDIA EVERGREEN FUND LTD | E72: BUY | F72: 60,000 | G72: 305 | H72: BSE
A73: 2022-09-29 | B73: 530611 | C73: STURDY | D73: GREENWAY ADVISORS PRIVATE LIMITED | E73: SELL | F73: 1,472,783 | G73: 0.92 | H73: BSE
A74: 2022-09-29 | B74: 521113 | C74: SUDTIND-B | D74: CRONY VYAPAR PVT LTD | E74: SELL | F74: 123,331 | G74: 30.51 | H74: BSE
A75: 2022-09-29 | B75: 521113 | C75: SUDTIND-B | D75: CRONY VYAPAR PVT LTD | E75: BUY | F75: 12,957 | G75: 30.65 | H75: BSE
A76: 2022-09-29 | B76: 539835 | C76: SUPERIOR | D76: RAMANLAL AGRAWAL | E76: SELL | F76: 910,959 | G76: 2.63 | H76: BSE
A77: 2022-09-29 | B77: 539835 | C77: SUPERIOR | D77: DOLF LEASING LIMITED | E77: BUY | F77: 911,000 | G77: 2.63 | H77: BSE
A78: 2022-09-29 | B78: 530677 | C78: SUPREME | D78: FALCON TRUST | E78: SELL | F78: 200,000 | G78: 152 | H78: BSE
A79: 2022-09-29 | B79: 539278 | C79: SYMBIOX | D79: BP EQUITIES PVT. LTD. | E79: SELL | F79: 359,067 | G79: 8.02 | H79: BSE
A80: 2022-09-29 | B80: 539278 | C80: SYMBIOX | D80: BP EQUITIES PVT. LTD. | E80: BUY | F80: 294,057 | G80: 8.03 | H80: BSE
A81: 2022-09-29 | B81: 539278 | C81: SYMBIOX | D81: SKSE SECURITIES LIMITED CORP CM/TM PROP A/C | E81: BUY | F81: 791,123 | G81: 8.02 | H81: BSE
A82: 2022-09-29 | B82: 539278 | C82: SYMBIOX | D82: SKSE SECURITIES LIMITED CORP CM/TM PROP A/C | E82: SELL | F82: 1,191,102 | G82: 8.03 | H82: BSE
A83: 2022-09-29 | B83: 539310 | C83: THINKINK | D83: VIKRAM JAYANTILAL LODHA | E83: SELL | F83: 165,000 | G83: 71.87 | H83: BSE
A84: 2022-09-29 | B84: 539310 | C84: THINKINK | D84: KIRAN CHANDRAKANT DARDA | E84: SELL | F84: 287,000 | G84: 72.75 | H84: BSE
A85: 2022-09-29 | B85: 536264 | C85: TIGERLOGS | D85: SAMARKAND ESTATES PRIVATE LIMITED | E85: BUY | F85: 166,568 | G85: 219.65 | H85: BSE
A86: 2022-09-29 | B86: 536264 | C86: TIGERLOGS | D86: SURJEET KAUR MALHOTRA | E86: SELL | F86: 168,000 | G86: 219.65 | H86: BSE
A87: 2022-09-29 | B87: 503663 | C87: TILAK | D87: MULTIPLIER SHARE & STOCK ADVISORS PRIVATE LIMITED | E87: BUY | F87: 1,783,061 | G87: 4.88 | H87: BSE
A88: 2022-09-29 | B88: 503663 | C88: TILAK | D88: MULTIPLIER SHARE & STOCK ADVISORS PRIVATE LIMITED | E88: SELL | F88: 1,189,639 | G88: 4.9 | H88: BSE
A89: 2022-09-29 | B89: 521005 | C89: TITANIN | D89: VAIDYANATHAN RADHAKRISHNAN | E89: SELL | F89: 20,000 | G89: 28.25 | H89: BSE
A90: 2022-09-29 | B90: 541735 | C90: VIVANTA | D90: PARTH HEMANT PARIKH | E90: SELL | F90: 143,142 | G90: 28.41 | H90: BSE
A91: 2022-09-29 | B91: AKASH | C91: Akash Infra-Projects Ltd | D91: TANGO COMMOSALES LLP | E91: BUY | F91: 8,482 | G91: 36.47 | H91: NSE
A92: 2022-09-29 | B92: AKASH | C92: Akash Infra-Projects Ltd | D92: NIRAJ RAJNIKANT SHAH | E92: BUY | F92: 200,000 | G92: 38.7 | H92: NSE
A93: 2022-09-29 | B93: APOLLO | C93: Apollo Micro Systems Ltd | D93: GRAVITON RESEARCH CAPITAL LLP | E93: BUY | F93: 126,665 | G93: 176.41 | H93: NSE
A94: 2022-09-29 | B94: CENTENKA | C94: Century Enka Ltd | D94: XTX MARKETS LLP | E94: BUY | F94: 141,889 | G94: 476.34 | H94: NSE
A95: 2022-09-29 | B95: CENTENKA | C95: Century Enka Ltd | D95: GRAVITON RESEARCH CAPITAL LLP | E95: BUY | F95: 216,507 | G95: 476.65 | H95: NSE
A96: 2022-09-29 | B96: CENTENKA | C96: Century Enka Ltd | D96: NK SECURITIES RESEARCH PRIVATE LIMITED | E96: BUY | F96: 134,492 | G96: 475.65 | H96: NSE
A97: 2022-09-29 | B97: JTLINFRA | C97: JTL Infra Ltd | D97: LAXMI KANT | E97: BUY | F97: 200,000 | G97: 253.91 | H97: NSE
A98: 2022-09-29 | B98: JTLINFRA | C98: JTL Infra Ltd | D98: SAJJAN BHAJANKA | E98: BUY | F98: 300,000 | G98: 235 | H98: NSE
A99: 2022-09-29 | B99: JTLINFRA | C99: JTL Infra Ltd | D99: SANJAY AGARWAL | E99: BUY | F99: 300,000 | G99: 235 | H99: NSE
A100: 2022-09-29 | B100: JTLINFRA | C100: JTL Infra Ltd | D100: RENU SWAMI | E100: BUY | F100: 323,763 | G100: 266.88 | H100: NSE
A101: 2022-09-29 | B101: KBCGLOBAL | C101: KBC Global Limited | D101: ABDUL AZEES | E101: BUY | F101: 700,000 | G101: 2.43 | H101: NSE
A102: 2022-09-29 | B102: KORE | C102: Jay Jalaram Techno Ltd | D102: CREDENT ASSET MANAGEMENT SERVICES PRIVATE LIMITED | E102: BUY | F102: 60,000 | G102: 62.62 | H102: NSE
A103: 2022-09-29 | B103: LIBERTSHOE | C103: Liberty Shoes Ltd | D103: XTX MARKETS LLP | E103: BUY | F103: 109,209 | G103: 291.07 | H103: NSE
A104: 2022-09-29 | B104: LIBERTSHOE | C104: Liberty Shoes Ltd | D104: MATHISYS ADVISORS LLP | E104: BUY | F104: 85,174 | G104: 291.94 | H104: NSE
A105: 2022-09-29 | B105: LIBERTSHOE | C105: Liberty Shoes Ltd | D105: KAMESH KUMAR KHAITAN | E105: BUY | F105: 90,000 | G105: 296.68 | H105: NSE
A106: 2022-09-29 | B106: SUULD | C106: Suumaya Industries Ltd | D106: NAYSAA SECURITIES LIMITED | E106: BUY | F106: 250,019 | G106: 45.27 | H106: NSE
A107: 2022-09-29 | B107: VAISHALI | C107: Vaishali Pharma Limited | D107: VIKRAMKUMAR KARANRAJ SAKARIA HUF DAKSH CORPORATION | E107: BUY | F107: 218 | G107: 97.3 | H107: NSE
A108: 2022-09-29 | B108: AKASH | C108: Akash Infra-Projects Ltd | D108: TANGO COMMOSALES LLP | E108: SELL | F108: 206,466 | G108: 38.66 | H108: NSE
A109: 2022-09-29 | B109: AKASH | C109: Akash Infra-Projects Ltd | D109: NIRAJ RAJNIKANT SHAH | E109: SELL | F109: 20,000 | G109: 36.79 | H109: NSE
A110: 2022-09-29 | B110: APOLLO | C110: Apollo Micro Systems Ltd | D110: GRAVITON RESEARCH CAPITAL LLP | E110: SELL | F110: 126,665 | G110: 176.07 | H110: NSE
A111: 2022-09-29 | B111: CENTENKA | C111: Century Enka Ltd | D111: GRAVITON RESEARCH CAPITAL LLP | E111: SELL | F111: 216,507 | G111: 477.21 | H111: NSE
A112: 2022-09-29 | B112: CENTENKA | C112: Century Enka Ltd | D112: NK SECURITIES RESEARCH PRIVATE LIMITED | E112: SELL | F112: 134,492 | G112: 475.95 | H112: NSE
A113: 2022-09-29 | B113: CENTENKA | C113: Century Enka Ltd | D113: XTX MARKETS LLP | E113: SELL | F113: 142,293 | G113: 476.88 | H113: NSE
A114: 2022-09-29 | B114: CLOUD | C114: Varanium Cloud Limited | D114: SKY WANDERERS LLP | E114: SELL | F114: 140,000 | G114: 134.08 | H114: NSE
A115: 2022-09-29 | B115: CLOUD | C115: Varanium Cloud Limited | D115: SUNRISE GILTS & SECURITIES PVT LTD | E115: SELL | F115: 95,000 | G115: 131.35 | H115: NSE
A116: 2022-09-29 | B116: CMICABLES | C116: CMI Limited | D116: JAIN HIMANI | E116: SELL | F116: 132,943 | G116: 18.54 | H116: NSE
A117: 2022-09-29 | B117: EXCEL | C117: Excel Realty N Infra Ltd | D117: RANJANA LAKHMENDRA KHURANA | E117: SELL | F117: 6,120,000 | G117: 0.7 | H117: NSE
A118: 2022-09-29 | B118: EXCEL | C118: Excel Realty N Infra Ltd | D118: LAKHMENDRA CHAMANLAL KHURANA | E118: SELL | F118: 6,070,000 | G118: 0.7 | H118: NSE
A119: 2022-09-29 | B119: JTLINFRA | C119: JTL Infra Ltd | D119: RENU SWAMI | E119: SELL | F119: 775,132 | G119: 235 | H119: NSE
A120: 2022-09-29 | B120: JTLINFRA | C120: JTL Infra Ltd | D120: LAXMI KANT | E120: SELL | F120: 660,811 | G120: 235.92 | H120: NSE
A121: 2022-09-29 | B121: KBCGLOBAL | C121: KBC Global Limited | D121: ABDUL AZEES | E121: SELL | F121: 4,106,919 | G121: 2.31 | H121: NSE
A122: 2022-09-29 | B122: KBCGLOBAL | C122: KBC Global Limited | D122: KARDA NARESH JAGUMAL | E122: SELL | F122: 3,164,896 | G122: 2.37 | H122: NSE
A123: 2022-09-29 | B123: LIBERTSHOE | C123: Liberty Shoes Ltd | D123: XTX MARKETS LLP | E123: SELL | F123: 114,047 | G123: 292.06 | H123: NSE
A124: 2022-09-29 | B124: LIBERTSHOE | C124: Liberty Shoes Ltd | D124: MATHISYS ADVISORS LLP | E124: SELL | F124: 89,620 | G124: 292.33 | H124: NSE
A125: 2022-09-29 | B125: MARSHALL | C125: Marshall Machines Ltd | D125: PRASHANT SARUP | E125: SELL | F125: 164,975 | G125: 28.27 | H125: NSE
A126: 2022-09-29 | B126: SALSTEEL | C126: S.A.L. Steel Limited | D126: SHRIPAL V VORA HUF | E126: SELL | F126: 668,864 | G126: 15.01 | H126: NSE
A127: 2022-09-29 | B127: SCAPDVR | C127: Stampede Capital Limited | D127: MADHAW PRASAD BAJAJ | E127: SELL | F127: 302,347 | G127: 14.86 | H127: NSE
A128: 2022-09-29 | B128: SVPGLOB | C128: SVP GLOBAL TEXTILES LTD | D128: RASHIMA AGGARWAL | E128: SELL | F128: 700,000 | G128: 31.06 | H128: NSE
A129: 2022-09-29 | B129: VAISHALI | C129: Vaishali Pharma Limited | D129: VIKRAMKUMAR KARANRAJ SAKARIA HUF DAKSH CORPORATION | E129: SELL | F129: 57,707 | G129: 97.59 | H129: NSE

Sheet Call Tracker (Equity & F&O)
M5: Back To Main Page
A6: Retail Research Technical Calls & Fundamental Performance Report for the month of Sep-2022
M7: =Main!B10 -> 2022-09-30
B8: Positional Call
A9: Sr.no | B9: Date | D9: Company | E9: Rec | F9: Rec Price | G9: Stop Loss*** | H9: Call Closed At | I9: Target | J9: Remark | K9: Profit / Loss per Share | L9: All charges | M9: Net Gain / Loss % | N9: Status | O9: Closed Date | P9: Market Closing Price
A10: 1 | B10: 2022-08-12 | D10: BATAINDIA | E10: Buy | F10: 1905 | G10: 1750 | H10: =(1845+1982.5)/2 -> 1913.75 | I10: 2100-2200 | J10: Profit of Rs.8.75/- | K10: =H10-F10 -> 8.75 | L10: =(F10*-0.7)/100 -> -13.34 | M10: =(K10+L10)/F10 -> -0.24% | N10: Neutral | O10: 2022-09-19 | R10: H
A11: 2 | B11: 2022-08-19 | D11: GSPL | E11: Buy | F11: 246.5 | G11: 229 | H11: 261 | I11: 270-280 | J11: Profit of Rs.14.5/- | K11: 14.5 | L11: -1.73 | M11: 5.18% | N11: Successful | O11: 2022-09-13 | R11: H
A12: 3 | B12: 2022-08-22 | D12: VTL | E12: Buy | F12: 327.5 | G12: 298 | H12: 353 | I12: 360-390 | J12: Profit of Rs.25.5/- | K12: =H12-F12 -> 25.5 | L12: =(F12*-0.7)/100 -> -2.29 | M12: =(K12+L12)/F12 -> 7.09% | N12: Successful | O12: 2022-09-14 | R12: H
A13: 4 | B13: 2022-08-22 | D13: RELIANCE | E13: Buy | F13: 2595 | G13: 2480 | H13: 2480 | I13: 2750-2800 | J13: Loss of Rs.115/- | K13: -115 | L13: -18.17 | M13: -5.13% | N13: Unsuccessful | O13: 2022-09-23 | R13: H
A14: 5 | B14: 2022-08-23 | D14: IGL | E14: Buy | F14: 405 | G14: 375 | H14: 428.5 | I14: 440-460 | J14: Profit of Rs.23.5/- | K14: =H14-F14 -> 23.5 | L14: =(F14*-0.7)/100 -> -2.84 | M14: =(K14+L14)/F14 -> 5.10% | N14: Successful | O14: 2022-09-02 | R14: H
A15: 6 | B15: 2022-08-26 | D15: DELTACORP | E15: Buy | F15: 212 | G15: 199 | H15: 227 | I15: 230-235 | J15: Profit of Rs.15/- | K15: 15 | L15: -1.48 | M15: 6.38% | N15: Successful | O15: 2022-09-16 | R15: N
A16: 7 | B16: 2022-08-29 | D16: GMMPFAUDLR | E16: Buy | F16: 1650 | G16: 1540 | H16: 1775 | I16: 1770-1850 | J16: Profit of Rs.125/- | K16: =H16-F16 -> 125 | L16: =(F16*-0.7)/100 -> -11.55 | M16: =(K16+L16)/F16 -> 6.88% | N16: Successful | O16: 2022-09-02 | R16: N
A17: 8 | B17: 2022-08-29 | D17: IEX | E17: Buy | F17: 157 | G17: 149.5 | H17: 158.5 | I17: 165-170 | J17: Profit of Rs.1.5/- | K17: =H17-F17 -> 1.5 | L17: =(F17*-0.7)/100 -> -1.10 | M17: =(K17+L17)/F17 -> 0.26% | N17: Neutral | O17: 2022-09-05 | R17: H
A18: 9 | B18: 2022-09-05 | D18: AMARAJABAT | E18: Buy | F18: 514 | G18: 480 | H18: 545 | I18: 550-580 | J18: Profit of Rs.31/- | K18: =H18-F18 -> 31 | L18: =(F18*-0.07)/100 -> -0.36 | M18: =(K18+L18)/F18 -> 5.96% | N18: Successful | O18: 2022-09-12 | R18: N
A19: 10 | B19: 2022-09-06 | D19: COLPAL | E19: Buy | F19: 1610-1640 | G19: 1535 | I19: 1750-1800 | J19: Open | R19: H
A20: 11 | B20: 2022-09-07 | D20: LTI | E20: Buy | F20: 4415 | G20: 4140 | H20: 4677.5 | I20: 4800-5000 | J20: Profit of Rs.262.5/- | K20: =H20-F20 -> 262.5 | L20: =(F20*-0.7)/100 -> -30.91 | M20: =(K20+L20)/F20 -> 5.25% | N20: Successful | O20: 2022-09-09 | R20: H
A21: 12 | B21: 2022-09-08 | D21: ENGINERSIN | E21: Buy | F21: 71 | G21: 65 | H21: 65 | I21: 80-82 | J21: Loss of Rs. 35/- | K21: -6 | L21: -0.50 | M21: -9.15% | N21: Unsuccessful | O21: 2022-09-26 | R21: H
A22: 13 | B22: 2022-09-12 | D22: GMMPFAUDLR | E22: Buy | F22: 1915 | G22: 1800 | H22: 1995 | I22: 2050-2150 | J22: Part profit of Rs.80/- | K22: =H22-F22 -> 80 | L22: =(F22*-0.7)/100 -> -13.41 | M22: =(K22+L22)/F22 -> 3.48% | N22: Successful | O22: 2022-09-13 | R22: N
A23: 14 | B23: 2022-09-12 | D23: MAPMYINDIA | E23: Buy | F23: 1415 | G23: 1325 | H23: 1325 | I23: 1550-1650 | J23: Loss of Rs.90/- | K23: =H23-F23 -> -90 | L23: =(F23*-0.7)/100 -> -9.91 | M23: =(K23+L23)/F23 -> -7.06% | N23: Unsuccessful | O23: 2022-09-19 | R23: H
A24: 15 | B24: 2022-09-12 | D24: HEIDELBERG | E24: Buy | F24: 191.5 | G24: 183 | H24: 203.5 | I24: 205-215 | J24: Profit of Rs.12/- | K24: =H24-F24 -> 12 | L24: =(F24*-0.7)/100 -> -1.34 | M24: =(K24+L24)/F24 -> 5.57% | N24: Successful | O24: 2022-09-20 | R24: N
A25: 16 | B25: 2022-09-15 | D25: VTL | E25: Buy | F25: 342.5 | G25: 318 | H25: 362 | I25: 370-390 | J25: Profit of Rs.19.5/- | K25: =H25-F25 -> 19.5 | L25: =(F25*-0.4)/100 -> -1.37 | M25: =(K25+L25)/F25 -> 5.29% | N25: Successful | O25: 2022-09-19 | R25: H
A26: 17 | B26: 2022-09-16 | D26: AMARAJABAT | E26: Buy | F26: 527.5 | G26: 495 | H26: 495 | I26: 570-590 | J26: Loss of Rs. 32.5/- | K26: -32.5 | L26: =(F26*-0.7)/100 -> -3.69 | M26: -6.86% | N26: Unsuccessful | O26: 2022-09-26 | R26: H
A27: 18 | B27: 2022-09-16 | D27: ACC | E27: Buy | F27: 2625 | G27: 2440 | H27: =(2740+2440)/2 -> 2590 | I27: 2900-3000 | J27: Loss of Rs. 35/- | K27: =H27-F27 -> -35 | L27: =(F27*-0.7)/100 -> -18.38 | M27: =(K27+L27)/F27 -> -2.03% | N27: Unsuccessful | O27: 2022-09-26 | R27: H
A28: 19 | B28: 2022-09-19 | D28: SBIN | E28: Buy | F28: 565 | G28: 539 | H28: 527 | I28: 610-630 | J28: Loss of Rs. 38/- | K28: =H28-F28 -> -38 | L28: =(F28*-0.7)/100 -> -3.96 | M28: =(K28+L28)/F28 -> -7.43% | N28: Unsuccessful | O28: 2022-09-26 | R28: H
A29: 20 | B29: 2022-09-19 | D29: BALKRISIND | E29: Buy | F29: 1900-1930 | G29: 1780 | I29: 2100-2200 | J29: Open | R29: H
A30: 21 | B30: 2022-09-20 | D30: MINDTREE | E30: Buy | F30: 3150-3190 | G30: 2940 | I30: 3400-3600 | J30: Open | R30: H
A31: 22 | B31: 2022-09-20 | D31: DELTACORP | E31: Buy | F31: 213 | G31: 199 | H31: 198 | I31: 230-240 | J31: Loss of Rs. 15/- | K31: =H31-F31 -> -15 | L31: =(F31*-0.7)/100 -> -1.49 | M31: =(K31+L31)/F31 -> -7.74% | N31: Unsuccessful | O31: 2022-09-27 | R31: H
A32: 23 | B32: 2022-09-26 | D32: PIIND | E32: Buy | F32: 2980-3010 | G32: 2740 | I32: 3300-3500 | J32: Open | R32: H
A33: 24 | B33: 2022-09-26 | D33: REDINGTON | E33: Buy | F33: 137-139 | G33: 129 | I33: 150-160 | J33: Open | R33: H
A34: 25 | B34: 2022-09-27 | D34: IGL | E34: Buy | F34: 406 | G34: 379 | H34: 421 | I34: 440-460 | J34: Part profit of Rs.15/- | K34: =H34-F34 -> 15 | L34: =(F34*-0.07)/100 -> -0.28 | M34: =(K34+L34)/F34 -> 3.62% | N34: Successful | O34: 2022-09-27
A35: 26 | B35: 2022-09-29 | D35: INDIACEM | E35: Buy | F35: 238-242 | G35: 225 | I35: 260-270 | J35: Open
A39: CLBS = Closing Basis ***
A40: Dividend adjusted <> | F40: Reinitiated $
A41: Part book {} | D41: s | F41: Revised stoploss #
B43: Momentum Call
A44: Sr.no | B44: Date | D44: Company | E44: Rec | F44: Rec Price | G44: Stop Loss | H44: Call Closed At | I44: Target | J44: Remark | K44: Profit / Loss per Share/Lot | L44: All charges | M44: Net Gain / Loss % | N44: Status | O44: Closed Date
A45: 1 | B45: 2022-08-23 | D45: INDIGO | E45: Buy | F45: 2005 | G45: 1940 | H45: 2060 | I45: 2080-2120 | J45: Profit of Rs.55/- | K45: =H45-F45 -> 55 | L45: =(F45*-0.7)/100 -> -14.04 | M45: =(K45+L45)/F45 -> 2.04% | N45: Successful | O45: 2022-09-02 | R45: H
A46: 2 | B46: 2022-08-26 | D46: MCDOWELL-N | E46: Buy | F46: 810 | G46: 787 | H46: 829 | I46: 840-850 | J46: Profit of Rs.19/- | K46: =H46-F46 -> 19 | L46: =(F46*-0.7)/100 -> -5.67 | M46: =(K46+L46)/F46 -> 1.65% | N46: Successful | O46: 2022-09-02 | R46: H
A47: 3 | B47: 2022-08-30 | D47: COFORGE | E47: Buy | F47: 3555 | G47: 3430 | H47: 3655 | I47: 3700-3800 | J47: Profit of Rs.100/- | K47: =H47-F47 -> 100 | L47: =(F47*-0.7)/100 -> -24.89 | M47: =(K47+L47)/F47 -> 2.11% | N47: Successful | O47: 2022-09-12 | R47: H
A48: 4 | B48: 2022-09-01 | D48: ZYDUSLIFE | E48: Buy | F48: 378 | G48: 367 | H48: 367 | I48: 400-410 | J48: Loss of Rs.11/- | K48: =H48-F48 -> -11 | L48: =(F48*-0.7)/100 -> -2.65 | M48: =(K48+L48)/F48 -> -3.61% | N48: Unsuccessful | O48: 2022-09-16 | R48: N
A49: 5 | B49: 2022-09-05 | D49: REDINGTON | E49: Buy | F49: 150 | G49: 145 | H49: 154.5 | I49: 157-160 | J49: Profit of Rs.4.5/- | K49: =H49-F49 -> 4.5 | L49: =(F49*-0.7)/100 -> -1.05 | M49: =(K49+L49)/F49 -> 2.30% | N49: Successful | O49: 2022-09-06 | R49: H
A50: 6 | B50: 2022-09-06 | D50: BALKRISIND | E50: Buy | F50: 1970 | G50: 1915 | H50: 2003 | I50: 2050-2100 | J50: Profit of Rs.33/- | K50: =H50-F50 -> 33 | L50: =(F50*-0.07)/100 -> -1.38 | M50: =(K50+L50)/F50 -> 1.61% | N50: Successful | O50: 2022-09-06 | R50: H
A51: 7 | B51: 2022-09-06 | D51: TATAPOWER | E51: Buy | F51: 243 | G51: 237 | H51: 251 | I51: 250-255 | J51: Profit of Rs.8/- | K51: 8 | L51: =(F51*-0.7)/100 -> -1.70 | M51: 2.59% | N51: Successful | O51: 2022-09-06 | R51: H
A52: 8 | B52: 2022-09-07 | D52: BALKRISIND | E52: Buy | F52: 1995 | G52: 1930 | H52: 1930 | I52: 2060-2100 | J52: Loss of Rs.65/- | K52: -65 | L52: -13.97 | M52: -3.96% | N52: Unsuccessful | O52: 2022-09-16 | R52: H
A53: 9 | B53: 2022-09-09 | D53: TATAPOWER | E53: Buy | F53: 242 | G53: 235 | H53: 235 | I53: 250-255 | J53: Loss of Rs.-7/- | K53: =H53-F53 -> -7 | L53: =(F53*-0.7)/100 -> -1.69 | M53: =(K53+L53)/F53 -> -3.59% | N53: Unsuccessful | O53: 2022-09-16 | R53: H
A54: 10 | B54: 2022-09-13 | D54: RELAXO | E54: Buy | F54: 1025 | G54: 994 | H54: 1050 | I54: 1060-1100 | J54: Profit of Rs.25/- | K54: =H54-F54 -> 25 | L54: =(F54*-0.07)/100 -> -0.72 | M54: =(K54+L54)/F54 -> 2.37% | N54: Successful | O54: 2022-09-13 | R54: H
A55: 11 | B55: 2022-09-13 | D55: ZEEL | E55: Buy | F55: 267.5 | G55: 259 | H55: 274 | I55: 280-282 | J55: Profit of Rs.6.5/- | K55: =H55-F55 -> 6.5 | L55: =(F55*-0.07)/100 -> -0.19 | M55: =(K55+L55)/F55 -> 2.36% | N55: Successful | O55: 2022-09-13 | R55: H
A56: 12 | B56: 2022-09-13 | D56: RAMCOCEM | E56: Buy | F56: 799 | G56: 774 | H56: 774 | I56: 830-850 | J56: Loss of Rs.25/- | K56: -25 | L56: =(F56*-0.7)/100 -> -5.59 | M56: -3.83% | N56: Unsuccessful | O56: 2022-09-16 | R56: H
A57: 13 | B57: 2022-09-15 | D57: REDINGTON | E57: Buy | F57: 156 | G57: 152 | H57: 161 | I57: 165-170 | J57: Profit of Rs.5/- | K57: =H57-F57 -> 5 | L57: =(F57*-0.7)/100 -> -1.09 | M57: =(K57+L57)/F57 -> 2.51% | N57: Successful | O57: 2022-09-16 | R57: H
A58: 14 | B58: 2022-09-19 | D58: CARBORUNIV | E58: Buy | F58: 848 | G58: 824 | H58: 824 | I58: 880-900 | J58: Loss of Rs.24/- | K58: -24 | L58: -5.94 | M58: -3.53% | N58: Unsuccessful | O58: 2022-09-26 | R58: H
A59: 15 | B59: 2022-09-20 | D59: KPITTECH | E59: Buy | F59: 580.5 | G59: 564 | H59: 596.5 | I59: 610-620 | J59: Profit of Rs.16/- | K59: =H59-F59 -> 16 | L59: =(F59*-0.7)/100 -> -4.06 | M59: =(K59+L59)/F59 -> 2.06% | N59: Successful | O59: 2022-09-21 | R59: H
A60: 16 | B60: 2022-09-21 | D60: ZYDUSLIFE | E60: Buy | F60: 366.5 | G60: 354 | H60: 378 | I60: 380-394 | J60: Profit of Rs.11.5/- | K60: =H60-F60 -> 11.5 | L60: =(F60*-0.7)/100 -> -2.57 | M60: =(K60+L60)/F60 -> 2.44% | N60: Successful | O60: 2022-09-29 | R60: H
A61: 17 | B61: 2022-09-21 | D61: SUNPHARMA | E61: Buy | F61: 904.5 | G61: 879 | H61: 936 | I61: 935-955 | J61: Profit of Rs.31.5/- | K61: =H61-F61 -> 31.5 | L61: =(F61*-0.7)/100 -> -6.33 | M61: =(K61+L61)/F61 -> 2.78% | N61: Successful | O61: 2022-09-29 | R61: H
A62: 18 | B62: 2022-09-26 | D62: TATACONSUM | E62: Buy | F62: 780 | G62: 758 | H62: 781.5 | I62: 810-820 | J62: Profit of Rs.1.5/- | K62: =H62-F62 -> 1.5 | L62: =(F62*-0.07)/100 -> -0.55 | M62: =(K62+L62)/F62 -> 0.12% | N62: Neutral | O62: 2022-09-26 | R62: H
A63: 19 | B63: 2022-09-27 | D63: TCS | E63: Buy | F63: 2995-3015 | G63: 2890 | I63: 3120-3200 | J63: Open
A64: 20 | B64: 2022-09-27 | D64: VTL | E64: Buy | F64: 327.5 | G64: 318 | H64: 335.5 | I64: 340-345 | J64: Profit of Rs.8/- | K64: =H64-F64 -> 8 | L64: =(F64*-0.07)/100 -> -0.23 | M64: =(K64+L64)/F64 -> 2.37% | N64: Successful | O64: 2022-09-27
A65: 21 | B65: 2022-09-27 | D65: VTL | E65: Buy | F65: 326 | G65: 314 | H65: 334 | I65: 340-345 | J65: Profit of Rs.8/- | K65: 8 | L65: =(F65*-0.07)/100 -> -0.23 | M65: =(K65+L65)/F65 -> 2.38% | N65: Successful | O65: 2022-09-27
A66: 22 | B66: 2022-09-27 | D66: SBIN | E66: Buy | F66: 549 | G66: 535 | H66: 527 | I66: 570-580 | J66: Loss of Rs.22/- | K66: -22 | L66: =(F66*-0.7)/100 -> -3.84 | M66: -4.71% | N66: Unsuccessful | O66: 2022-09-28
A67: 23 | B67: 2022-09-27 | D67: CARBORUNIV | E67: Buy | F67: 817 | G67: 795 | H67: 836 | I67: 840-860 | J67: Profit of Rs.19/- | K67: =H67-F67 -> 19 | L67: =(F67*-0.07)/100 -> -0.57 | M67: =(K67+L67)/F67 -> 2.26% | N67: Successful | O67: 2022-09-27
A68: 24 | B68: 2022-09-28 | D68: CARBORUNIV | E68: Buy | F68: 814 | G68: 790 | H68: 832 | I68: 840-850 | J68: Profit of Rs.18/- | K68: =H68-F68 -> 18 | L68: =(F68*-0.07)/100 -> -0.57 | M68: =(K68+L68)/F68 -> 2.14% | N68: Successful | O68: 2022-09-28
A69: 25 | B69: 2022-09-29 | D69: LTI | E69: Buy | F69: 4500-4540 | G69: 4395 | I69: 4650-4750 | J69: Open
A70: 26 | B70: 2022-09-29 | D70: ICICIBANK | E70: Buy | F70: 847-851 | G70: 825 | I70: 880-900 | J70: Open
A73: CLBS = Closing Basis *** | H73: *
A74: Dividend adjusted <> | F74: Reinitiated $
F75: Revised stoploss #
A77: Master Trade High Risk
A78: Sr.no | B78: Date | D78: Company | E78: Rec | F78: Rec Price | G78: Stop Loss | H78: Call Closed At | I78: Target | J78: Remark | K78: Profit / Loss per share | L78: All charges | M78: Gain / Loss per Lot | N78: Lot | O78: Status | P78: Closed Date
A79: 1 | B79: 2022-08-29 | D79: BHARTIARTL SEP FUT | E79: Buy | F79: 724 | G79: 710 | H79: 735.5 | I79: 740-750 | J79: Profit of Rs 11.5/- | K79: =H79-F79 -> 11.5 | L79: =(H79*N79)*0.07% -> 489.11 | M79: =(K79*N79)-L79 -> 10435.9 | N79: 950 | O79: Successful | P79: 2022-09-01 | R79: H
A80: 2 | B80: 2022-09-01 | D80: ICICIBANK SEP FUT | E80: Buy | F80: 873.5 | G80: 864 | H80: 884 | I80: 890-895 | J80: Profit of Rs 10.5/- | K80: =H80-F80 -> 10.5 | L80: =(H80*N80)*0.07% -> 850.85 | M80: =(K80*N80)-L80 -> 13586.7 | N80: 1375 | O80: Successful | P80: 2022-09-01 | R80: H
A81: 3 | B81: 2022-09-01 | D81: CONCOR SEP FUT | E81: Buy | F81: 696.5 | G81: 685 | H81: 685 | I81: 715-720 | J81: Loss of Rs 11.5/- | K81: =H81-F81 -> -11.5 | L81: =(H81*N81)*0.07% -> 479.50 | M81: =(K81*N81)-L81 -> -11979.5 | N81: 1000 | O81: Unsuccessful | P81: 2022-09-02 | R81: N
A82: 4 | B82: 2022-09-01 | D82: GSPL SEPT FUT | E82: Buy | F82: 240 | G82: 234.5 | H82: 246 | I82: 246-250 | J82: Profit of Rs 6/- | K82: =H82-F82 -> 6 | L82: =(H82*N82)*0.07% -> 430.50 | M82: =(K82*N82)-L82 -> 14569.5 | N82: 2500 | O82: Successful | P82: 2022-09-01 | R82: N
A83: 5 | B83: 2022-09-01 | D83: HDFCAMC SEPT FUT | E83: Buy | F83: 2070 | G83: 2000 | H83: 2000 | I83: 2140-2180 | J83: Loss of Rs 70/- | K83: -70 | L83: 280.00 | M83: -14280.0 | N83: 200 | O83: Unsuccessful | P83: 2022-09-06 | R83: N
A84: 6 | B84: 2022-09-02 | D84: SBIN SEPT FUT | E84: Sell | F84: 534 | G84: 545 | H84: 543 | I84: 520-510 | J84: Loss of Rs 9/- | K84: =F84-H84 -> -9 | L84: =(H84*N84)*0.07% -> 570.15 | M84: =(K84*N84)-L84 -> -14070.2 | N84: 1500 | O84: Unsuccessful | P84: 2022-09-06 | R84: H
A85: 7 | B85: 2022-09-02 | D85: ZYDUSLIFE SEPT FUT | E85: Buy | F85: 371.5 | G85: 365 | H85: 376 | I85: 380-385 | J85: Profit of Rs 4.5/- | K85: =H85-F85 -> 4.5 | L85: =(H85*N85)*0.07% -> 473.76 | M85: =(K85*N85)-L85 -> 7626.2 | N85: 1800 | O85: Successful | P85: 2022-09-05 | R85: H
A86: 8 | B86: 2022-09-02 | D86: GSPL SEPT FUT | E86: Buy | F86: 239.5 | G86: 234.5 | H86: 234.5 | I86: 246-250 | J86: Loss of Rs 5/- | K86: =H86-F86 -> -5 | L86: =(H86*N86)*0.07% -> 410.38 | M86: =(K86*N86)-L86 -> -12910.4 | N86: 2500 | O86: Unsuccessful | P86: 2022-09-05 | R86: N
A87: 9 | B87: 2022-09-05 | D87: PFC SEPT FUT | E87: Sell | F87: 117 | G87: 119 | H87: 115.5 | I87: 112 | J87: Profit of Rs 1.5/- | K87: =F87-H87 -> 1.5 | L87: =(H87*N87)*0.07% -> 501.27 | M87: =(K87*N87)-L87 -> 8798.7 | N87: 6200 | O87: Successful | P87: 2022-09-05 | R87: H
A88: 10 | B88: 2022-09-06 | D88: ZYDUSLIFE SEPT FUT | E88: Buy | F88: 370.5 | G88: 364 | H88: 375.5 | I88: 380-385 | J88: Profit of Rs 5/- | K88: =H88-F88 -> 5 | L88: 473.13 | M88: 8526.9 | N88: 1800 | O88: Successful | P88: 2022-09-07 | R88: H
A89: 11 | B89: 2022-09-06 | D89: TATACONSUM SEPT FUT | E89: Buy | F89: 825 | G89: 810 | H89: 836 | I89: 840-855 | J89: Profit of Rs 11/- | K89: 11 | L89: 585.20 | M89: 10414.8 | N89: 1000 | O89: Successful | P89: 2022-09-13 | R89: H
A90: 12 | B90: 2022-09-07 | D90: HINDUNILVR SEPT FUT | E90: Buy | F90: 2585 | G90: 2540 | H90: 2619 | I90: 2630-2670 | J90: Profit of Rs 34/- | K90: =H90-F90 -> 34 | L90: =(H90*N90)*0.07% -> 549.99 | M90: =(K90*N90)-L90 -> 9650.0 | N90: 300 | O90: Successful | P90: 2022-09-09 | R90: N
A91: 13 | B91: 2022-09-07 | D91: BHARTIARTL SEPT FUT | E91: Buy | F91: 750 | G91: 736 | H91: 759 | I91: 770-780 | J91: Profit of Rs 9/- | K91: =H91-F91 -> 9 | L91: =(H91*N91)*0.07% -> 504.74 | M91: =(K91*N91)-L91 -> 8045.3 | N91: 950 | O91: Successful | P91: 2022-09-07 | R91: H
A92: 14 | B92: 2022-09-07 | D92: TECHM SEPT FUT | E92: Buy | F92: 1059 | G92: 1040 | H92: 1076 | I92: 1090-1100 | J92: Profit of Rs 17/- | K92: 17 | L92: 489.58 | M92: 10560.4 | N92: 650 | O92: Successful | P92: 2022-09-07 | R92: N
A93: 15 | B93: 2022-09-07 | D93: HCLTECH SEPT FUT | E93: Buy | F93: 933 | G93: 915 | H93: 943 | I93: 950-960 | J93: Profit of Rs 10/- | K93: 10 | L93: 462.07 | M93: 6537.9 | N93: 700 | O93: Successful | P93: 2022-09-07 | R93: H
A94: 16 | B94: 2022-09-08 | D94: SBIN SEPT FUT | E94: Sell | F94: 540 | G94: 548 | H94: 546 | I94: 530-520 | J94: Loss of Rs 6/- | K94: =F94-H94 -> -6 | L94: 573.30 | M94: -9573.3 | N94: 1500 | O94: Unsuccessful | P94: 2022-09-08 | R94: H
A95: 17 | B95: 2022-09-08 | D95: HCLTECH SEPT FUT | E95: Buy | F95: 935 | G95: 918 | H95: 946.5 | I95: 955-965 | J95: Profit of Rs 11.5/- | K95: =H95-F95 -> 11.5 | L95: =(H95*N95)*0.07% -> 463.79 | M95: =(K95*N95)-L95 -> 7586.2 | N95: 700 | O95: Successful | P95: 2022-09-09 | R95: H
A96: 18 | B96: 2022-09-09 | D96: SBIN SEPT FUT | E96: Buy | F96: 552 | G96: 544 | H96: 557.5 | I96: 560-568 | J96: Profit of Rs 5.5/- | K96: =H96-F96 -> 5.5 | L96: =(H96*N96)*0.07% -> 585.38 | M96: =(K96*N96)-L96 -> 7664.6 | N96: 1500 | O96: Successful | P96: 2022-09-12 | R96: H
A97: 19 | B97: 2022-09-12 | D97: ACC SEPT FUT | E97: Sell | F97: 2415 | G97: 2460 | H97: 2460 | I97: 2360-2320 | J97: Loss of Rs 45/- | K97: =F97-H97 -> -45 | L97: =(H97*N97)*0.07% -> 430.50 | M97: =(K97*N97)-L97 -> -11680.5 | N97: 250 | O97: Unsuccessful | P97: 2022-09-12 | R97: H
A98: 20 | B98: 2022-09-12 | D98: HINDUNILVR SEPT FUT | E98: Buy | F98: 2595 | G98: 2550 | H98: 2550 | I98: 2650-2690 | J98: Loss of Rs 45/- | K98: =H98-F98 -> -45 | L98: 535.50 | M98: -14035.5 | N98: 300 | O98: Unsuccessful | P98: 2022-09-16 | R98: N
A99: 21 | B99: 2022-09-12 | D99: HDFCBANK SEPT FUT | E99: Buy | F99: 1502 | G99: 1480 | H99: 1517.5 | I99: 1525-1545 | J99: Profit of Rs 15.5/- | K99: =H99-F99 -> 15.5 | L99: =(H99*N99)*0.07% -> 584.24 | M99: =(K99*N99)-L99 -> 7940.8 | N99: 550 | O99: Successful | P99: 2022-09-13 | R99: N
A100: 22 | B100: 2022-09-12 | D100: BAJAJFINSV SEPT FUT | E100: Buy | F100: 1718 | G100: 16890 | H100: 1760 | I100: 1750-1770 | J100: Profit of Rs 42/- | K100: =H100-F100 -> 42 | L100: =(H100*N100)*0.07% -> 616.00 | M100: =(K100*N100)-L100 -> 20384.0 | N100: 500 | O100: Successful | P100: 2022-09-13 | R100: H
A101: 23 | B101: 2022-09-13 | D101: MINDTREE SEPT FUT | E101: Buy | F101: 3370 | G101: 3300 | H101: 3300 | I101: 3450-3500 | J101: Loss of Rs 70/- | K101: -70 | L101: 462.00 | M101: -14462.0 | N101: 200 | O101: Unsuccessful | P101: 2022-09-14 | R101: H
A102: 24 | B102: 2022-09-13 | D102: AMARAJABAT SEPT FUT | E102: Buy | F102: 548 | G102: 535 | H102: 535 | I102: 565-575 | J102: Loss of Rs 13/- | K102: -13 | L102: 374.50 | M102: -13374.5 | N102: 1000 | O102: Unsuccessful | P102: 2022-09-16 | R102: N
A103: 25 | B103: 2022-09-13 | D103: HCLTECH SEPT FUT | E103: Buy | F103: 959 | G103: 940 | H103: 940 | I103: 980-990 | J103: Loss of Rs 19/- | K103: =H103-F103 -> -19 | L103: =(H103*N103)*0.07% -> 460.60 | M103: =(K103*N103)-L103 -> -13760.6 | N103: 700 | O103: Unsuccessful | P103: 2022-09-14 | R103: N
A104: 26 | B104: 2022-09-14 | D104: INDIACEM SEPT FUT | E104: Buy | F104: 243.5 | G104: 238 | H104: 249 | I104: 250-255 | J104: Profit of Rs 42/- | K104: 5.5 | L104: 505.47 | M104: 15444.5 | N104: 2900 | O104: Successful | P104: 2022-09-14 | R104: N
A105: 27 | B105: 2022-09-14 | D105: COLPAL SEPT FUT | E105: Buy | F105: 1635 | G105: 1597 | H105: 1597 | I105: 1680-1700 | J105: Loss of Rs 38/- | K105: -38 | L105: 391.27 | M105: -13691.3 | N105: 350 | O105: Unsuccessful | P105: 2022-09-16 | R105: H
A106: 28 | B106: 2022-09-14 | D106: TATASTEEL SEPT FUT | E106: Buy | F106: 110.25 | G106: 107.5 | H106: 107.5 | I106: 115-117 | J106: Loss of Rs 2.75/- | K106: =H106-F106 -> -2.75 | L106: =(H106*N106)*0.07% -> 319.81 | M106: =(K106*N106)-L106 -> -12007.3 | N106: 4250 | O106: Unsuccessful | P106: 2022-09-15 | R106: H
A107: 29 | B107: 2022-09-14 | D107: GUJGASLTD SEPT FUT | E107: Buy | F107: 511 | G107: 499 | H107: 519 | I107: 525-535 | J107: Profit of Rs 8/- | K107: 8 | L107: 435.96 | M107: 9164.0 | N107: 1200 | O107: Successful | P107: 2022-09-15 | R107: N
A108: 30 | B108: 2022-09-14 | D108: BEL SEPT FUT | E108: Buy | F108: 112.5 | G108: 111.1 | H108: 113.75 | I108: 115 | J108: Profit of Rs.1.25/- | K108: =H108-F108 -> 1.25 | L108: =(H108*N108)*0.07% -> 907.73 | M108: =(K108*N108)-L108 -> 13342.3 | N108: 11400 | O108: Successful | P108: 2022-09-15 | R108: H
A109: 31 | B109: 2022-09-16 | D109: APOLLOHOSP SEPT FUT | E109: Buy | F109: 4345 | G109: 4230 | H109: 4412.5 | I109: 4500-4550 | J109: Profit of Rs.40/- | K109: 67.5 | L109: 386.09 | M109: 8051.4 | N109: 125 | O109: Successful | P109: 2022-09-20 | R109: N
A110: 32 | B110: 2022-09-16 | D110: BALKRISIND SEPT FUT | E110: Buy | F110: 2015 | G110: 1965 | H110: 1965 | I110: 2070-2100 | J110: Loss of Rs 50/- | K110: =H110-F110 -> -50 | L110: =(H110*N110)*0.07% -> 412.65 | M110: =(K110*N110)-L110 -> -15412.7 | N110: 300 | O110: Unsuccessful | P110: 2022-09-16 | R110: H
A111: 33 | B111: 2022-09-19 | D111: AXISBANK SEPT FUT | E111: Sell | F111: 799 | G111: 810 | H111: 810 | I111: 785-775 | J111: Loss of Rs 11/- | K111: =F111-H111 -> -11 | L111: 680.40 | M111: -13880.4 | N111: 1200 | O111: Unsuccessful | P111: 2022-09-20 | R111: N
A112: 34 | B112: 2022-09-19 | D112: GRASIM SEPT FUT | E112: Buy | F112: 1752.5 | G112: 1725 | H112: 1725 | I112: 1780-1810 | J112: Loss of Rs 27.5/- | K112: =H112-F112 -> -27.5 | L112: =(H112*N112)*0.07% -> 573.56 | M112: =(K112*N112)-L112 -> -13636.1 | N112: 475 | O112: Unsuccessful | P112: 2022-09-21 | R112: H
A113: 35 | B113: 2022-09-20 | D113: CROMPTON SEPT FUT | E113: Buy | F113: 397 | G113: 388 | H113: 404 | I113: 410-418 | J113: Profit of Rs.7/- | K113: =H113-F113 -> 7 | L113: =(H113*N113)*0.07% -> 424.20 | M113: =(K113*N113)-L113 -> 10075.8 | N113: 1500 | O113: Successful | P113: 2022-09-20 | R113: N
A114: 36 | B114: 2022-09-20 | D114: VOLTAS SEPT FUT | E114: Sell | F114: 919 | G114: 945 | H114: 894 | I114: 900-880 | J114: Profit of Rs 25/- | K114: =F114-H114 -> 25 | L114: 312.90 | M114: 12187.1 | N114: 500 | O114: Successful | P114: 2022-09-22 | R114: N
A115: 37 | B115: 2022-09-20 | D115: PIIND SEPT FUT | E115: Buy | F115: 3155 | G115: 3095 | H115: 3197.5 | I115: 3220-3250 | J115: Profit of Rs.42.50/- | K115: =H115-F115 -> 42.5 | L115: =(H115*N115)*0.07% -> 559.56 | M115: =(K115*N115)-L115 -> 10065.4 | N115: 250 | O115: Successful | P115: 2022-09-20 | R115: H
A116: 38 | B116: 2022-09-20 | D116: SIEMENS SEPT FUT | E116: Buy | F116: 2980 | G116: 2930 | H116: 2930 | I116: 3050-3080 | J116: Loss of Rs 50/- | K116: -50 | L116: 564.03 | M116: -14314.0 | N116: 275 | O116: Unsuccessful | P116: 2022-09-21 | R116: N
A117: 39 | B117: 2022-09-22 | D117: CROMPTON SEPT FUT | E117: Buy | F117: 405 | G117: 395 | H117: 395 | I117: 420-428 | J117: Loss of Rs 10/- | K117: =H117-F117 -> -10 | L117: =(H117*N117)*0.07% -> 414.75 | M117: =(K117*N117)-L117 -> -15414.8 | N117: 1500 | O117: Unsuccessful | P117: 2022-09-26 | R117: N
A118: 40 | B118: 2022-09-22 | D118: PIIND SEPT FUT | E118: Buy | F118: 3155 | G118: 3095 | H118: 3095 | I118: 3220-3250 | J118: Loss of Rs 60/- | K118: =H118-F118 -> -60 | L118: =(H118*N118)*0.07% -> 541.63 | M118: =(K118*N118)-L118 -> -15541.6 | N118: 250 | O118: Unsuccessful | P118: 2022-09-22 | R118: H
A119: 41 | B119: 2022-09-22 | D119: COLPAL SEPT FUT | E119: Buy | F119: 1597 | G119: 1560 | H119: 1598 | I119: 1640-1660 | J119: Profit of Rs 1/- | K119: 1 | L119: 391.51 | M119: -41.5 | N119: 350 | O119: Neutral | P119: 2022-09-28 | R119: N
A120: 42 | B120: 2022-09-22 | D120: GSPL SEPT FUT | E120: Buy | F120: 239.5 | G120: 234.5 | H120: 234.5 | I120: 246-250 | J120: Loss of Rs 5/- | K120: =H120-F120 -> -5 | L120: =(H120*N120)*0.07% -> 410.38 | M120: =(K120*N120)-L120 -> -12910.4 | N120: 2500 | O120: Unsuccessful | P120: 2022-09-23 | R120: H
A121: 43 | B121: 2022-09-22 | D121: GUJGASLTD SEPT FUT | E121: Buy | F121: 501 | G121: 490 | H121: 511.5 | I121: 515-520 | J121: Profit of Rs.10.50/- | K121: =H121-F121 -> 10.5 | L121: =(H121*N121)*0.07% -> 447.56 | M121: =(K121*N121)-L121 -> 12677.4 | N121: 1250 | O121: Successful | P121: 2022-09-22 | R121: N
A122: 44 | B122: 2022-09-23 | D122: TECHM SEPT FUT | E122: Buy | F122: 1040 | G122: 1020 | H122: 1020 | I122: 1070-1080 | J122: Loss of Rs 5/- | K122: -20 | L122: 428.40 | M122: -12428.4 | N122: 600 | O122: Unsuccessful | P122: 2022-09-26 | R122: N
A123: 45 | B123: 2022-09-23 | D123: COFORGE SEPT FUT | E123: Buy | F123: 3405 | G123: 3310 | H123: 3454 | I123: 3550-3600 | J123: Profit of Rs.49/- | K123: 49 | L123: 362.67 | M123: 6987.3 | N123: 150 | O123: Successful | P123: 2022-09-27 | R123: H
A124: 46 | B124: 2022-09-26 | D124: NIFTY SEPT FUT | E124: Buy | F124: 17015 | G124: 16850 | H124: 17125 | I124: 17200-17300 | J124: Profit of Rs.110/- | K124: =H124-F124 -> 110 | L124: =(H124*N124)*0.07% -> 599.38 | M124: =(K124*N124)-L124 -> 4900.6 | N124: 50 | O124: Successful | P124: 2022-09-26 | R124: H
A125: 47 | B125: 2022-09-26 | D125: HCLTECH OCT FUT | E125: Buy | F125: 902.5 | G125: 885 | H125: 914 | I125: 925-935 | J125: Profit of Rs.11.5/- | K125: =H125-F125 -> 11.5 | L125: =(H125*N125)*0.07% -> 447.86 | M125: =(K125*N125)-L125 -> 7602.1 | N125: 700 | O125: Successful | P125: 2022-09-27 | R125: H
A126: 48 | B126: 2022-09-27 | D126: RELIANCE OCT FUT | E126: Buy | F126: 2400 | G126: 2360 | H126: 2434 | I126: 2450-2500 | J126: Profit of Rs.34/- | K126: =H126-F126 -> 34 | L126: =(H126*N126)*0.07% -> 425.95 | M126: =(K126*N126)-L126 -> 8074.1 | N126: 250 | O126: Successful | P126: 2022-09-27
A127: 49 | B127: 2022-09-27 | D127: NIFTY OCT FUT | E127: Buy | F127: 17065 | G127: 16880 | H127: 17160 | I127: 17300-17400 | J127: Profit of Rs.95/- | K127: =H127-F127 -> 95 | L127: =(H127*N127)*0.07% -> 600.60 | M127: =(K127*N127)-L127 -> 4149.4 | N127: 50 | O127: Successful | P127: 2022-09-27
A128: 50 | B128: 2022-09-28 | D128: GSPL OCT FUT | E128: Buy | F128: 230.5 | G128: 225 | H128: 234.25 | I128: 238-245 | J128: Profit of Rs 3.75/- | K128: 3.75 | L128: 409.94 | M128: 8965.1 | N128: 2500 | O128: Successful | P128: 2022-09-29
A129: 51 | B129: 2022-09-28 | D129: VOLTAS OCT FUT | E129: Sell | F129: 908-910 | G129: 935 | I129: 880-860 | J129: Open
A130: 52 | B130: 2022-09-29 | D130: NIFTY OCT FUT | E130: Buy | F130: 16955-16975 | G130: 16790 | I130: 17200-17300 | J130: Open
A136: Master Trade Medium Risk
A137: Sr.no | B137: Date | D137: Company | E137: Rec | F137: Rec Price | G137: Stop Loss | H137: Call Closed At | I137: Target | J137: Remark | K137: Profit/ Loss per lot | L137: All charges | M137: Gain / Loss per Lot | N137: Lot | O137: Status | P137: Closed Date
A138: 1 | B138: 2022-08-30 | D138: BANKNIFTY 39700 CE 8 SEP | E138: Buy | F138: 390 | G138: 280 | H138: 280 | I138: 600-700 | J138: Loss of Rs.110/- | K138: =H138-F138 -> -110 | L138: 100.00 | M138: =(K138*N138)-L138 -> -2850.0 | N138: 25 | O138: Unsuccessful | P138: 2022-09-01 | R138: H
A139: 2 | B139: 2022-09-01 | D139: BANKNIFTY 39500 CE 1-SEP | E139: Buy | F139: 120 | G139: 30 | H139: 175 | I139: 250-300 | J139: Profit of Rs.55/- | K139: 55 | L139: 100.00 | M139: 1275.0 | N139: 25 | O139: Successful | P139: 2022-09-01 | R139: N
A140: 3 | B140: 2022-09-01 | D140: BANKNIFTY 39500 CE 1-SEP | E140: Buy | F140: 95 | G140: 0 | H140: 0 | I140: 200-250 | J140: Loss of Rs.95/- | K140: =H140-F140 -> -95 | L140: 100.00 | M140: =(K140*N140)-L140 -> -2475.0 | N140: 25 | O140: Unsuccessful | P140: 2022-09-01 | R140: N
A141: 4 | B141: 2022-09-02 | D141: NIFTY 17400 PE 8 SEP | E141: Buy | F141: 82 | G141: 45 | H141: 122.5 | I141: 120-160 | J141: Profit of Rs.40.5/- | K141: 40.5 | L141: 100.00 | M141: 1925.0 | N141: 50 | O141: Successful | P141: 2022-09-02 | R141: H
A142: 5 | B142: 2022-09-02 | D142: BANKNIFTY 40000 CE 8 SEP | E142: Sell | F142: 170 | G142: 350 | H142: 340 | I142: 0.1 | J142: Loss of Rs.170/- | K142: =F142-H142 -> -170 | L142: 100.00 | M142: -4350.0 | N142: 25 | O142: Unsuccessful | P142: 2022-09-06 | R142: H
A143: 6 | B143: 2022-09-02 | D143: NIFTY 17400 PE 8 SEP | E143: Buy | F143: 97.5 | G143: 65 | H143: 65 | I143: 140-160 | J143: Loss of Rs.32.5/- | K143: =H143-F143 -> -32.5 | L143: 100.00 | M143: =(K143*N143)-L143 -> -1725.0 | N143: 50 | O143: Unsuccessful | P143: 2022-09-05 | R143: H
A144: 7 | B144: 2022-09-02 | D144: BANKNIFTY 39300 PE 8 SEP | E144: Buy | F144: 375 | G144: 270 | H144: 270 | I144: 500-600 | J144: Loss of Rs.105/- | K144: -105 | L144: 100.00 | M144: -2725.0 | N144: 25 | O144: Unsuccessful | P144: 2022-09-05 | R144: N
A145: 8 | B145: 2022-09-02 | D145: TATACOMM 1320 CE SEP | E145: Sell | F145: 26 | G145: 35 | H145: 35 | I145: 10.0-5 | J145: Loss of Rs.9/- | K145: =F145-H145 -> -9 | L145: 100.00 | M145: -4600.0 | N145: 500 | O145: Unsuccessful | P145: 2022-09-05 | R145: H
A146: 9 | B146: 2022-09-05 | D146: NIFTY 17500 PE 8 SEP | E146: Buy | F146: 77.5 | G146: 45 | H146: 45 | I146: 120-160 | J146: Loss of Rs.32.5/- | K146: =H146-F146 -> -32.5 | L146: 100.00 | M146: =(K146*N146)-L146 -> -1725.0 | N146: 50 | O146: Unsuccessful | P146: 2022-09-06 | R146: H
A147: 10 | B147: 2022-09-08 | D147: BANKNIFTY 39900 PE 8 SEP | E147: Buy | F147: 140 | G147: 30 | H147: 30 | I147: 250-300 | J147: Loss of Rs.110/- | K147: -110 | L147: 100.00 | M147: -2850.0 | N147: 25 | O147: Unsuccessful | P147: 2022-09-08 | R147: N
A148: 11 | B148: 2022-09-08 | D148: BALKRISIND 2050 CE SEP | E148: Buy | F148: 50 | G148: 35 | H148: 59 | I148: 65-80 | J148: Profit of Rs.9/- | K148: 9 | L148: 100.00 | M148: 2600.0 | N148: 300 | O148: Successful | P148: 2022-09-09 | R148: H
A149: 12 | B149: 2022-09-12 | D149: SBIN 580 CE SEP | E149: Buy | F149: 5 | G149: 1.75 | H149: 6.25 | I149: 9-11.0 | J149: Profit of Rs.1.25/- | K149: =H149-F149 -> 1.25 | L149: 100.00 | M149: =(K149*N149)-L149 -> 1775.0 | N149: 1500 | O149: Successful | P149: 2022-09-09 | R149: H
A150: 13 | B150: 2022-09-12 | D150: AMARAJABAT 555 CE SEP | E150: Buy | F150: 12.5 | H150: 0 | J150: Loss of Rs.4.75 | K150: -12.5 | L150: 100.00 | M150: =(-4.75*1000)-200 -> -4950.0 | N150: 1000 | O150: Unsuccessful | P150: 2022-09-29 | R150: N
D151: AMARAJABAT 570 CE SEP | E151: Sell | F151: 7.75 | H151: 7.75 | K151: 7.75 | L151: 100.00
A152: 14 | B152: 2022-09-13 | D152: NIFTY 17900 PE 15 SEP | E152: Sell | F152: 54 | G152: 90 | H152: 90 | I152: 0.1 | J152: Loss of Rs.9/- | K152: =F152-H152 -> -36 | L152: 100.00 | M152: =(K152*N152)-L152 -> -1900.0 | N152: 50 | O152: Unsuccessful | P152: 2022-09-14 | R152: H
A153: 15 | B153: 2022-09-13 | D153: BALKRISIND 2050 CE SEP | E153: Buy | F153: 51 | G153: 37 | H153: 37 | I153: 65-70 | J153: Loss of Rs.14/- | K153: =H153-F153 -> -14 | L153: 100.00 | M153: -4300.0 | N153: 300 | O153: Unsuccessful | P153: 2022-09-14 | R153: H
A154: 16 | B154: 2022-09-13 | D154: AXISBANK 820 CE SEP | E154: Buy | F154: 11.5 | G154: 7 | H154: 14.75 | I154: 17-22 | J154: Profit of Rs.3.25/- | K154: 3.25 | L154: 100.00 | M154: 3800.0 | N154: 1200 | O154: Successful | P154: 2022-09-14 | R154: N
A155: 17 | B155: 2022-09-13 | D155: BHARTIARTL 790 CE SEP | E155: Buy | F155: 12.5 | G155: 7.5 | H155: 14.5 | I155: 18-22 | J155: Profit of Rs.2/- | K155: 2 | L155: 100.00 | M155: 1700.0 | N155: 900 | O155: Successful | P155: 2022-09-14 | R155: H
A156: 18 | B156: 2022-09-14 | D156: BHARTIARTL 790 CE SEP | E156: Buy | F156: 11.5 | G156: 6.5 | H156: 14 | I156: 18-22 | J156: Profit of Rs.2.5/- | K156: 2.5 | L156: 100.00 | M156: 2150.0 | N156: 900 | O156: Successful | P156: 2022-09-15 | R156: H
A157: 19 | B157: 2022-09-14 | D157: OBEROIRLTY 1140 CE SEP | E157: Buy | F157: 17.5 | G157: 9.5 | H157: 21 | I157: 30-35 | J157: Profit of Rs.3.5/- | K157: =H157-F157 -> 3.5 | L157: 100.00 | M157: =(K157*N157)-L157 -> 2350.0 | N157: 700 | O157: Successful | P157: 2022-09-14 | R157: H
A158: 20 | B158: 2022-09-14 | D158: INFY 1500 CE SEP | E158: Buy | F158: 26 | G158: 9.5 | H158: 9.5 | I158: 45-60 | J158: Loss of Rs.16.5/- | K158: -16.5 | L158: 100.00 | M158: -5050.0 | N158: 300 | O158: Unsuccessful | P158: 2022-09-16 | R158: N
A159: 21 | B159: 2022-09-14 | D159: NIFTY 18000 PE 15-SEP | E159: Buy | F159: 72 | G159: 30 | H159: 72 | I159: 120-150 | J159: Neutal | K159: =H159-F159 -> 0 | L159: 100.00 | M159: =(K159*N159)-L159 -> -100.0 | N159: 50 | O159: Neutral | P159: 2022-09-14 | R159: N
A160: 22 | B160: 2022-09-14 | D160: BANKNIFTY 41500 CE 15-SEP | E160: Buy | F160: 225 | G160: 110 | H160: 285 | I160: 350-450 | J160: Profit of Rs.60/- | K160: =H160-F160 -> 60 | L160: 100.00 | M160: =(K160*N160)-L160 -> 1400.0 | N160: 25 | O160: Successful | P160: 2022-09-14 | R160: H
A161: 23 | B161: 2022-09-14 | D161: BANKNIFTY 41500 CE 15-SEP | E161: Buy | F161: 225 | G161: 110 | H161: 165 | I161: 350-450 | J161: Loss of Rs.60/- | K161: -60 | L161: 100.00 | M161: -1600.0 | N161: 25 | O161: Unsuccessful | P161: 2022-09-14 | R161: H
A162: 24 | B162: 2022-09-15 | D162: NIFTY 18050 PE 15-SEP | E162: Buy | F162: 45 | G162: 10 | H162: 76 | I162: 90-120 | J162: Profit of Rs.31/- | K162: =H162-F162 -> 31 | L162: 100.00 | M162: =(K162*N162)-L162 -> 1450.0 | N162: 50 | O162: Successful | P162: 2022-09-15 | R162: H
A163: 25 | B163: 2022-09-15 | D163: NIFTY 18050 PE 15-SEP | E163: Buy | F163: 57 | G163: 14 | H163: 96 | I163: 90-120 | J163: Profit of Rs.39/- | K163: 39 | L163: 100.00 | M163: 1850.0 | N163: 50 | O163: Successful | P163: 2022-09-15 | R163: H
A164: 26 | B164: 2022-09-15 | D164: BANKNIFTY 41300 CE 15-SEP | E164: Buy | F164: 135 | G164: 30 | H164: 185 | I164: 250-330 | J164: Profit of Rs.50/- | K164: =H164-F164 -> 50 | L164: 100.00 | M164: =(K164*N164)-L164 -> 1150.0 | N164: 25 | O164: Successful | P164: 2022-09-15 | R164: N
A165: 27 | B165: 2022-09-15 | D165: BALKRISIND 2050 CE SEP | E165: Buy | F165: 53.5 | G165: 37 | H165: 65 | I165: 70-80 | J165: Profit of Rs.11.5/- | K165: =H165-F165 -> 11.5 | L165: 100.00 | M165: =(K165*N165)-L165 -> 3350.0 | N165: 300 | O165: Successful | P165: 2022-09-15 | R165: H
A166: 28 | B166: 2022-09-20 | D166: NIFTY 17700 PE 22-SEP | E166: Buy | F166: 75 | G166: 34 | H166: 82 | I166: 120-140 | J166: Profit of Rs.7/- | K166: =H166-F166 -> 7 | L166: 100.00 | M166: =(K166*N166)-L166 -> 250.0 | N166: 50 | O166: Neutral | P166: 2022-09-21 | R166: H
A167: 29 | B167: 2022-09-20 | D167: INFY 1420 CE SEP | E167: Buy | F167: 27 | G167: 10 | H167: 10 | I167: 45-60 | J167: Loss of Rs.17/- | K167: -17 | L167: 100.00 | M167: -5200.0 | N167: 300 | O167: Unsuccessful | P167: 2022-09-22 | R167: H
A168: 30 | B168: 2022-09-22 | D168: BANKNIFTY 41100 CE 22-SEP | E168: Buy | F168: 155 | G168: 50 | H168: 50 | I168: 250-300 | J168: Loss of Rs.105/- | K168: =H168-F168 -> -105 | L168: 100.00 | M168: =(K168*N168)-L168 -> -2725.0 | N168: 25 | O168: Unsuccessful | P168: 2022-09-22 | R168: H
A169: 31 | B169: 2022-09-22 | D169: TATACONSUM 810 CE SEP | E169: Buy | F169: 10.5 | G169: 5 | H169: 5 | I169: 18-22 | J169: Loss of Rs.5.5/- | K169: -5.5 | L169: 100.00 | M169: -5050.0 | N169: 900 | O169: Unsuccessful | P169: 2022-09-23 | R169: H
A170: 32 | B170: 2022-09-23 | D170: BIOCON 300 CE SEP | E170: Buy | F170: 1.9 | H170: 2.95 | I170: 4-5.0 | J170: Profit of Rs.1.05/- | K170: =H170-F170 -> 1.05 | L170: 100.00 | M170: =(K170*N170)-L170 -> 2210.0 | N170: 2200 | O170: Successful | P170: 2022-09-23 | R170: H
A171: 33 | B171: 2022-09-23 | D171: BIOCON 300 CE SEP | E171: Buy | F171: 2.4 | G171: 0 | H171: 0 | I171: 4.5-5.5 | J171: Loss of Rs.2.4/- | K171: =H171-F171 -> -2.4 | L171: 100.00 | M171: =(K171*N171)-L171 -> -5380.0 | N171: 2200 | O171: Unsuccessful | P171: 2022-09-29 | R171: H
A172: 34 | B172: 2022-09-28 | D172: NIFTY 16950 PE 29-SEP | E172: Buy | F172: 63 | G172: 19 | H172: 83 | I172: 120-150 | J172: Profit of Rs.20/- | K172: =H172-F172 -> 20 | L172: 100.00 | M172: =(K172*N172)-L172 -> 900.0 | N172: 50 | O172: Successful | P172: 2022-09-28
A173: 35 | B173: 2022-09-28 | D173: NIFTY 17000 CE 29-SEP | E173: Buy | F173: 64 | G173: 19 | H173: 64.5 | I173: 110-150 | J173: Profit of Rs.0.5/- | K173: 0.5 | L173: 100.00 | M173: -75.0 | N173: 50 | O173: Neutral | P173: 2022-09-29
A174: 36 | B174: 2022-09-29 | D174: NIFTY 17000 CE 29-SEP | E174: Buy | F174: 29.5 | G174: 0 | H174: 0 | I174: 70-80 | J174: Loss of Rs.29.5/- | K174: -29.5 | L174: 100.00 | M174: -1575.0 | N174: 50 | O174: Unsuccessful | P174: 2022-09-29
A175: 37 | B175: 2022-09-29 | D175: BANKNIFTY 37800 CE 29-SEP | E175: Buy | F175: 45 | H175: 85 | I175: 120-180 | J175: Profit of Rs.40/- | K175: =H175-F175 -> 40 | L175: 100.00 | M175: =(K175*N175)-L175 -> 900.0 | N175: 25 | O175: Successful | P175: 2022-09-29
A179: Techno -Funda (positional)
A180: Sr.no | B180: Date | D180: Company | E180: Rec | F180: Rec Price | G180: Stop Loss*** | H180: Call Closed At | I180: Target | J180: Remark | K180: Profit / Loss per Share/Lot | L180: All charges | M180: Net Gain / Loss % | N180: Status | O180: Closed Date | P180: Market Closing Price
A184: CLBS = Closing Basis *** | F184: Reinitiated $
A185: Dividend adjusted <> | F185: Revised stoploss # | H185: .................
B189: Investment Idea
A190: Sr.no | B190: Date | D190: Company | E190: Rec | F190: Rec Price | G190: Point of Review | H190: Close Rate | I190: Target | J190: Remark | K190: Profit / Loss per Share | L190: Gain / Loss % | M190: Status | N190: Closed Date
A191: 1 | B191: 2013-11-01 | D191: L&T Finance Holding | E191: Accu | F191: 82.00 | G191: - | H191: 100 | I191: 100.00 | J191: Target Achieved | K191: =H191-F191 -> 18.00 | L191: =K191/F191 -> 21.95% | M191: Successful | N191: 2016-10-14
A192: 2 | B192: 2014-06-04 | D192: Finolex Inds | E192: Buy | F192: 257.00 | G192: - | H192: 300 | I192: 300.00 | J192: Target Achieved | K192: 43.00 | L192: 16.73% | M192: Successful | N192: 2014-07-02
A193: 3 | B193: 2014-07-08 | D193: JK Cement | E193: Buy | F193: 393.00 | G193: - | H193: 468 | I193: 468.00 | J193: Target Achieved | K193: 75.00 | L193: 19.08% | M193: Successful | N193: 2014-08-12
A194: 4 | B194: 2014-08-06 | D194: Finolex Cables | E194: Buy | F194: 205.00 | G194: - | H194: 275 | I194: 250.00 | J194: Target Achieved | K194: 70.00 | L194: 34.15% | M194: Successful | N194: 2014-11-19
A195: 5 | B195: 2014-09-04 | D195: Exide Inds | E195: Buy | F195: 162.00 | G195: - | H195: 190 | I195: 190.00 | J195: Target Achieved | K195: 28.00 | L195: 17.28% | M195: Successful | N195: 2015-01-02
A196: 6 | B196: 2014-09-04 | D196: Deepak Nitrite | E196: Buy | F196: 75.00 | G196: - | H196: 91.5 | I196: 95-100 | J196: Profit of Rs.16.50/- | K196: 16.50 | L196: 22.00% | M196: Successful | N196: 2014-11-11
A197: 7 | B197: 2014-10-01 | D197: Mercks | E197: Buy | F197: 850.00 | G197: - | H197: 982.5 | I197: 1050.00 | J197: Profit of Rs.132.50/- | K197: 132.50 | L197: 15.59% | M197: Successful | N197: 2015-02-04
A198: 8 | B198: 2014-10-01 | D198: Grindwell Norton | E198: Buy | F198: 475.00 | G198: - | H198: 515 | I198: 600.00 | J198: Profit of Rs.40/- | K198: 40.00 | L198: 8.42% | M198: Successful | N198: 2014-10-27
A199: 9 | B199: 2014-10-01 | D199: Snowman Logistics | E199: Buy | F199: 86.00 | G199: - | H199: 99 | I199: 140.00 | J199: Profit of Rs.13.00/- | K199: 13.00 | L199: 15.12% | M199: Successful | N199: 2014-10-27
A200: 10 | B200: 2014-10-14 | D200: Birla Corp | E200: Buy | F200: 496.60 | G200: - | H200: 621 | I200: 580.00 | J200: Target Achieved | K200: 124.40 | L200: 25.05% | M200: Successful | N200: 2016-08-23
A201: 11 | B201: 2014-10-14 | D201: Ultratech Cem | E201: Buy | F201: 2481.90 | G201: - | H201: 2840 | I201: 2870.00 | J201: Profit of Rs.358.10/- | K201: 358.10 | L201: 14.43% | M201: Successful | N201: 2015-01-13
A202: 12 | B202: 2014-10-16 | D202: Sintex Inds | E202: Buy | F202: 84.50 | G202: - | H202: 93 | I202: 110.00 | J202: Profit of Rs.8.50/- | K202: 8.50 | L202: 10.06% | M202: Successful | N202: 2014-10-27
A203: 13 | B203: 2014-10-16 | D203: HSIL | E203: Buy | F203: 401.00 | G203: - | H203: 428 | I203: 450.00 | J203: Profit of Rs.27.00/- | K203: 27.00 | L203: 6.73% | M203: Successful | N203: 2015-01-16
A204: 14 | B204: 2014-10-16 | D204: Eveready Inds | E204: Buy | F204: 101.00 | G204: - | H204: 112 | I204: 120.00 | J204: Profit of Rs.11.00/- | K204: 11.00 | L204: 10.89% | M204: Successful | N204: 2014-10-27
A205: 15 | B205: 2014-11-11 | D205: Pennar Inds | E205: Buy | F205: 59.00 | G205: - | H205: 76 | I205: 76.00 | J205: Target Achieved | K205: 17.00 | L205: 28.81% | M205: Successful | N205: 2017-10-24
A206: 16 | B206: 2014-11-11 | D206: Snowman Logistics | E206: Buy | F206: 99.00 | G206: - | H206: 120 | I206: 120.00 | J206: Profit of Rs.21/- | K206: 21.00 | L206: 21.21% | M206: Successful | N206: 2014-11-17
A207: 17 | B207: 2014-11-13 | D207: Dharamsi Morarji Chem | E207: Buy | F207: 22.00 | G207: - | H207: 33.55 | I207: 32.00 | J207: Profit of Rs 11.55/- | K207: 11.55 | L207: 52.50% | M207: Successful | N207: 2015-07-03
A208: 18 | B208: 2014-12-03 | D208: Tatachem | E208: Buy | F208: 440.00 | G208: - | H208: 520 | I208: 520.00 | J208: Profit of Rs 80.00/- | K208: 80.00 | L208: 18.18% | M208: Successful | N208: 2015-07-23
A209: 19 | B209: 2014-12-03 | D209: Advanta | E209: Buy | F209: 360.00 | G209: - | H209: 427 | I209: 425.00 | J209: Profit of Rs.67.00/- | K209: 67.00 | L209: 18.61% | M209: Successful | N209: 2015-02-23
A210: 20 | B210: 2015-01-08 | D210: GDL | E210: Buy | F210: 360.00 | G210: - | H210: 455 | I210: 420.00 | J210: Profit of Rs.95.00/- | K210: 95.00 | L210: 26.39% | M210: Successful | N210: 2015-01-20
A211: 21 | B211: 2015-01-08 | D211: NRB Bearing | E211: Buy | F211: 130.00 | H211: 175.5 | I211: 165.00 | J211: Profit of Rs 45.50/- | K211: 45.50 | L211: 35.00% | M211: Successful | N211: 2017-12-19
A212: 22 | B212: 2015-02-05 | D212: GSFC | E212: Accu | F212: 98.00 | H212: 120 | I212: 120.00 | J212: Target Achieved | K212: 22.00 | L212: 22.45% | M212: Successful | N212: 2017-01-18
A213: 23 | B213: 2015-02-05 | D213: Sundrmfast | E213: Accu | F213: 196.00 | H213: 262 | I213: 255.00 | J213: Target Achieved | K213: 66.00 | L213: 33.67% | M213: Successful | N213: 2016-08-17
A214: 24 | B214: 2015-03-04 | D214: GPPL | E214: Accu | F214: 235 | H214: 77.00 | I214: 280-285 | J214: Loss of Rs.158/- | K214: -158.00 | L214: -67.23% | M214: Unsuccessful | N214: 2019-02-26
A215: 25 | B215: 2015-03-04 | D215: ORIENTCEM | E215: Accu | F215: 185.00 | H215: 224 | I215: 220-225 | J215: Target Achieved | K215: 39.00 | L215: 21.08% | M215: Successful | N215: 2016-10-04
A216: 26 | B216: 2015-03-27 | D216: PFS | E216: Accu | F216: 49.5 | H216: 15.85 | I216: 67.00 | J216: Loss of Rs.33.65/- | K216: -33.65 | L216: -68% | M216: Unsuccessful | N216: 2019-06-11
A217: 27 | B217: 2015-03-30 | D217: Walchandnagar Ind Ltd | E217: Accu | F217: 183.50 | H217: 219 | I217: 218.00 | J217: Profit of Rs.35.50/- | K217: 35.50 | L217: 19.35% | M217: Successful | N217: 2015-04-09
A218: 28 | B218: 2015-04-20 | D218: Kalpataru Power Transmission Ltd | E218: Accu | F218: =(227+237)/2 -> 232.00 | H218: 298 | I218: 298.00 | J218: Target Achieved | K218: 66.00 | L218: 28.45% | M218: Successful | N218: 2017-03-29
A219: 29 | B219: 2015-05-04 | D219: Mastek Ltd | E219: Buy | F219: 385.00 | H219: =212.5+331 -> 543.5 | I219: 510.00 | J219: Profit of Rs 158.50/- | K219: 158.50 | L219: 41.17% | M219: Successful | N219: 2015-08-19
A220: 30 | B220: 2015-05-04 | D220: Suprajit Eng | E220: Buy | F220: 115.50 | H220: 146 | I220: 142.00 | J220: Profit of Rs 30.50/- | K220: 30.50 | L220: 26.41% | M220: Successful | N220: 2015-07-17
A221: 31 | B221: 2015-05-27 | D221: TCI | E221: Buy | F221: 237.50 | H221: 279.5 | I221: 278.00 | J221: Target Achieved | K221: 42.00 | L221: 17.68% | M221: Successful | N221: 2015-08-06
A222: 32 | B222: 2015-06-19 | D222: HSIL | E222: Accu | F222: 340.00 | H222: 448 | I222: 448.00 | J222: Target Achieved | K222: 108.00 | L222: 31.76% | M222: Successful | N222: 2017-10-10
A223: 33 | B223: 2015-07-06 | D223: Capital First | E223: Accu | F223: 390.00 | H223: 460 | I223: 460.00 | J223: Target Achieved | K223: 70.00 | L223: 17.95% | M223: Successful | N223: 2016-04-18
A224: 34 | B224: 2015-07-10 | D224: Dolphin OffShore | E224: Accu | F224: 122.5 | H224: 61.00 | I224: 172.00 | J224: Loss of Rs.61.50/- | K224: -61.50 | L224: -50.20% | M224: Unsuccessful | N224: 2018-08-21
A225: 35 | B225: 2015-08-03 | D225: Allcargo logistics | E225: Accu | F225: 297.50 | H225: 350 | I225: 360.00 | J225: Profit of Rs 52.50/- | K225: 52.50 | L225: 17.65% | M225: Successful | N225: 2015-08-16
... 144 more rows
